Workbook

Sheet INDEX
A1: ARTERIAL MANAGEMENT SURVEYS
D2: Variable Type | E2: Row | G2: 1999 | H2: 2000 | I2: 2002 | J2: 2004 | K2: 2005 | L2: 2006 | M2: 2007 | N2: 2010 | O2: 2013 | P2: 2016
A3: Auto Enforcement
B4: Auto Enforcement | I4: 1 | J4: 1 | N4: 1 | P4: 1
C5: Auto enforcement | D5: Multiple Choice | E5: 13 | I5: 29 | J5: 42 | N5: 24 | P5: 23
B6: Types of Automated Enforcement Used | I6: 1 | J6: 1 | L6: 1 | M6: 1 | N6: 1 | O6: 1 | P6: 1
C7: Speed | D7: Multiple Choice | E7: 22 | I7: 29 | J7: 42 | L7: 43 | M7: 38 | N7: 25 | O7: 28 | P7: 23
C8: Red-light running | D8: Multiple Choice | E8: 29 | I8: 29 | J8: 42 | N8: 25 | O8: 28 | P8: 23
C9: Rail-road crossing | D9: Multiple Choice | E9: 36 | I9: 29 | J9: 42 | N9: 25 | P9: 23
C10: School zone | D10: Boolean | E10: 43 | P10: 23
C11: Work zone | D11: Boolean | E11: 50 | P11: 23
C12: Bus-use only | D12: Boolean | E12: 57 | P12: 23
C13: Other | D13: Text | E13: 64 | I13: 29 | J13: 42 | N13: 25 | O13: 28 | P13: 23
C14: No auto enforcement | D14: Boolean | E14: 71 | O14: 28
B15: Automated Enforcement Technologies Used | P15: 1
C16: License plate recognition | D16: Boolean | E16: 80 | P16: 23
C17: Video camera | D17: Boolean | E17: 87 | P17: 23
C18: Toll tag reader | D18: Boolean | E18: 94 | P18: 23
C19: Radar | D19: Boolean | E19: 101 | P19: 23
C20: Other | D20: Text | E20: 108 | P20: 23
B21: Signalized Intersections with Red Light Running Photo Enforcement | N21: 1 | O21: 1 | P21: 1
C22: Intersections red light running | D22: Numeric | E22: 117 | N22: 25 | O22: 28 | P22: 23
B23: Automated Enforcement Data Sharing | I23: 1 | J23: 1 | N23: 1
C24: Auto enforcement data sharing | D24: Text | E24: 126 | I24: 30 | J24: 43 | N24: 26
B25: Automated Enforcement Data Coordination | I25: 1 | J25: 1 | N25: 1
C26: Auto enforcement data coordination | D26: Text | E26: 135 | I26: 31 | J26: 44 | N26: 27
A28: Connected Vehicles (CV)
B29: Connected Vehicle Applications Deployment | P29: 1
C30: CV deployment plans | D30: Multiple Choice | E30: 13 | P30: 61
C31: When deployment expected | D31: Multiple Choice | E31: 21 | P31: 61
B32: Planned Connected Vehicle Applications | P32: 1
C33: Reduced Speed/Work Zone Warning (RSWZ) | D33: Boolean | E33: 30 | P33: 62
C34: Curve Speed Warning (CWS) | D34: Boolean | E34: 37 | P34: 62
C35: Other speed management applications | D35: Boolean | E35: 44 | P35: 62
C36: Pedestrian and bicycle | D36: Boolean | E36: 51 | P36: 62
C37: Transit safety | D37: Boolean | E37: 58 | P37: 62
C38: Intelligent traffic signal systems | D38: Boolean | E38: 65 | P38: 62
C39: Advanced traveler information systems | D39: Boolean | E39: 72 | P39: 62
C40: Incident and emergency management | D40: Boolean | E40: 79 | P40: 62
C41: Integrated dynamic transit operations (IDTO) | D41: Boolean | E41: 86 | P41: 62
C42: Eco-signal operations | D42: Boolean | E42: 93 | P42: 62
C43: Eco-traveler information | D43: Boolean | E43: 100 | P43: 62
C44: Low emission zones | D44: Boolean | E44: 107 | P44: 62
C45: Eco-lanes | D45: Boolean | E45: 114 | P45: 62
C46: Eco-ICM | D46: Boolean | E46: 121 | P46: 62
C47: Road Weather | D47: Boolean | E47: 128 | P47: 62
C48: Fee payments | D48: Boolean | E48: 135 | P48: 62
C49: Commercial Vehicle applications | D49: Boolean | E49: 142 | P49: 62
C50: Agency data applications (performance measures, probe data applications, etc.) | D50: Boolean | E50: 149 | P50: 62
C51: Other (describe) | D51: Text | E51: 156 | P51: 62
B52: Reasons for Not Planning to Deploy Connected Vehicle Applications | P52: 1
C53: Too costly for now | D53: Boolean | E53: 165 | P53: 63
C54: Too much technical risk; want to wait until technology and standards mature | D54: Boolean | E54: 172 | P54: 63
C55: Want to see benefits proven by pilot/early deployments | D55: Boolean | E55: 179 | P55: 63
C56: Not ready from an institutional or organizational point of view | D56: Boolean | E56: 186 | P56: 63
C57: Do not have enough staff with the right qualifications to plan and deploy CV applications | D57: Boolean | E57: 193 | P57: 63
C58: Concerned about security issues | D58: Boolean | E58: 200 | P58: 63
C59: Concerned about privacy issues | D59: Boolean | E59: 207 | P59: 63
C60: Not a high priority right now | D60: Boolean | E60: 214 | P60: 63
C61: We are more focused on | D61: Text | E61: 221 | P61: 63
C62: Other | D62: Text | E62: 228 | P62: 63
B63: Connected Vehicle Applications Priorities | P63: 1
C64: Deployment priority | D64: Multiple Choice | E64: 237 | P64: 64
C65: Other | D65: Text | E65: 244 | P65: 64
B66: CVIRA and Set-It Familiarity | P66: 1
C67: Connected Vehicle Reference Implementation Architecture (CVRIA) - very familiar | D67: Boolean | E67: 253 | P67: 66
C68: Connected Vehicle Reference Implementation Architecture (CVRIA)- moderately familiar | D68: Boolean | E68: 260 | P68: 66
C69: Connected Vehicle Reference Implementation Architecture (CVRIA) - slightly familiar | D69: Boolean | E69: 267 | P69: 66
C70: Connected Vehicle Reference Implementation Architecture (CVRIA)- not familiar at all | D70: Boolean | E70: 274 | P70: 66
C71: Systems Engineering Tool Intelligent Transportation (SET-IT) - very familiar | D71: Boolean | E71: 281 | P71: 66
C72: Systems Engineering Tool Intelligent Transportation (SET-IT) - moderately familiar | D72: Boolean | E72: 288 | P72: 66
C73: Systems Engineering Tool Intelligent Transportation (SET-IT) - slightly familiar | D73: Boolean | E73: 295 | P73: 66
C74: Systems Engineering Tool Intelligent Transportation (SET-IT) - not familiar at all | D74: Boolean | E74: 302 | P74: 66
B75: Connected Vehicle Communications | P75: 1
C76: Fiber | D76: Boolean | E76: 311 | P76: 69
C77: Digital Subscriber Line (DSL) | D77: Boolean | E77: 318 | P77: 69
C78: Cable TV | D78: Boolean | E78: 325 | P78: 69
C79: Powerline carrier communications (PLCC) | D79: Boolean | E79: 332 | P79: 69
C80: Cellular (LTE) | D80: Boolean | E80: 339 | P80: 69
C81: Cellular (GPRS) | D81: Boolean | E81: 346 | P81: 69
C82: WiMAX | D82: Boolean | E82: 353 | P82: 69
C83: Fixed service satellite (FSS) | D83: Boolean | E83: 360 | P83: 69
C84: Satellite digital audio radio service (SDARS) | D84: Boolean | E84: 367 | P84: 69
C85: Ultra wideband (UWB) | D85: Boolean | E85: 374 | P85: 69
C86: Wi-Fi | D86: Boolean | E86: 381 | P86: 69
C87: Dedicated Short Range Communications (DSRC) | D87: Boolean | E87: 388 | P87: 69
C88: ZigBee | D88: Boolean | E88: 395 | P88: 69
C89: Microwave | D89: Boolean | E89: 402 | P89: 69
C90: Other | D90: Text | E90: 409 | P90: 69
B91: Back Haul Communications Capabilities of Field Devices | P91: 1
C92: Back haul | D92: Multiple Choice | E92: 418 | P92: 70
C93: Back haul provider | D93: Multiple Choice | E93: 426 | P93: 70
C94: Communications security | D94: Multiple Choice | E94: 434 | P94: 71
C95: Communications cyber policy | D95: Multiple Choice | E95: 442 | P95: 71
B96: Public and/or Private Sector Partnerships | P96: 1
C97: Partnerships | D97: Multiple Choice | E97: 451 | P97: 70
B98: Assistance or Resources Needed | P98: 1
C99: Funding | D99: Boolean | E99: 460 | P99: 65
C100: Technology Procurement Information | D100: Boolean | E100: 467 | P100: 65
C101: Training | D101: Boolean | E101: 474 | P101: 65
C102: Please indicate in what areas training is needed | D102: Text | E102: 481 | P102: 65
C103: Technical assistance (e.g., CV technology information, deployment guidance, etc.) | D103: Boolean | E103: 488 | P103: 65
C104: Please indicate in what areas technical assistance is needed | D104: Text | E104: 495 | P104: 65
C105: Information on institutional arrangements and agreements | D105: Boolean | E105: 502 | P105: 65
C106: Information on the benefits/return on investment | D106: Boolean | E106: 509 | P106: 65
C107: Information/data on costs of CV technologies | D107: Boolean | E107: 516 | P107: 65
C108: Other | D108: Text | E108: 523 | P108: 65
B109: Supportive Connected Vehicle Deployment Actions | P109: 1
C110: Hired a Chief Technology Officer or Chief Information Officer - Yes | D110: Boolean | E110: 532 | P110: 67
C111: Hired a Chief Technology Officer or Chief Information Officer - Plan to hire | D111: Boolean | E111: 539 | P111: 67
C112: Hired a Chief Technology Officer or Chief Information Officer - No plan to hire | D112: Boolean | E112: 546 | P112: 67
C113: Obtained an FCC License to use 5.9GhZ frequency spectrum (Dedicated Short-Range Communication) - Yes | D113: Boolean | E113: 553 | P113: 67
C114: Obtained an FCC License to use 5.9GhZ frequency spectrum (Dedicated Short-Range Communication) - Plan to hire | D114: Boolean | E114: 560 | P114: 67
C115: Obtained an FCC License to use 5.9GhZ frequency spectrum (Dedicated Short-Range Communication) - No plan to hire | D115: Boolean | E115: 567 | P115: 67
C116: Included CV technologies and/or applications in agency planning documents (e.g., long range transportation plan, Strategic Highway Safety Plan, Transportation Improvement Program, etc.) - Yes | D116: Boolean | E116: 574 | P116: 67
C117: Included CV technologies and/or applications in agency planning documents (e.g., long range transportation plan, Strategic Highway Safety Plan, Transportation Improvement Program, etc.) - Plan to include | D117: Boolean | E117: 581 | P117: 67
C118: Included CV technologies and/or applications in agency planning documents (e.g., long range transportation plan, Strategic Highway Safety Plan, Transportation Improvement Program, etc.) - No plan to include | D118: Boolean | E118: 588 | P118: 67
C119: Included CV applications and communications interfaces within your metropolitan area- Yes | D119: Boolean | E119: 595 | P119: 67
C120: Included CV applications and communications interfaces within your metropolitan area- Plan to include | D120: Boolean | E120: 602 | P120: 67
C121: Included CV applications and communications interfaces within your metropolitan area- No plan to include | D121: Boolean | E121: 609 | P121: 67
A123: Data Archiving
B124: Type of Information Collected/Archived | G124: 1458 | H124: 588 | I124: 2179 | J124: 2899 | N124: 1260
C125: Traffic volumes-Collect | D125: Multiple Choice | E125: 13 | G125: 18 | H125: 14 | I125: 48 | J125: 64
C126: Traffic volumes-Archive | D126: Multiple Choice | E126: 20 | G126: 18 | H126: 14 | I126: 48 | J126: 64 | N126: 50
C127: Traffic volumes-Transfer | D127: Boolean | E127: 27 | G127: 18
C128: Traffic volumes-Importance | D128: Text | E128: 34 | G128: 18
C129: Traffic speeds-Collect | D129: Multiple Choice | E129: 41 | G129: 18 | H129: 14 | I129: 48 | J129: 64
C130: Traffic speeds-Archive | D130: Multiple Choice | E130: 48 | G130: 18 | H130: 14 | I130: 48 | J130: 64 | N130: 50
C131: Traffic speeds-Transfer | D131: Boolean | E131: 55 | G131: 18
C132: Traffic speeds-Importance | D132: Text | E132: 62 | G132: 18
C133: Lane occupancy-Collect | D133: Multiple Choice | E133: 69 | G133: 18 | H133: 14 | I133: 48 | J133: 64
C134: Lane occupancy-Archive | D134: Multiple Choice | E134: 76 | G134: 18 | H134: 14 | I134: 48 | J134: 64 | N134: 50
C135: Lane occupancy-Transfer | D135: Boolean | E135: 83 | G135: 18
C136: Lane occupancy-Importance | D136: Text | E136: 90 | G136: 18
C137: Vehicle classification-Collect | D137: Multiple Choice | E137: 97 | G137: 18 | H137: 14 | I137: 48 | J137: 64
C138: Vehicle classification-Archive | D138: Multiple Choice | E138: 104 | G138: 18 | H138: 14 | I138: 48 | J138: 64 | N138: 50
C139: Vehicle classification-Transfer | D139: Boolean | E139: 111 | G139: 18
C140: Vehicle classification-Importance | D140: Text | E140: 118 | G140: 18
C141: Probe vehicles-Collect | D141: Multiple Choice | E141: 125 | G141: 18 | H141: 14 | I141: 48 | J141: 64
C142: Probe vehicles-Archive | D142: Multiple Choice | E142: 132 | G142: 18 | H142: 14 | I142: 48 | J142: 64 | N142: 50
C143: Probe vehicles-Transfer | D143: Boolean | E143: 139 | G143: 18
C144: Probe vehicles-Importance | D144: Text | E144: 146 | G144: 18
C145: Turning movements-Collect | D145: Multiple Choice | E145: 153 | G145: 18 | H145: 14 | I145: 48 | J145: 64
C146: Turning movements-Archive | D146: Multiple Choice | E146: 160 | G146: 18 | H146: 14 | I146: 48 | J146: 64 | N146: 50
C147: Turning movements-Transfer | D147: Boolean | E147: 167 | G147: 18
C148: Turning movements-Importance | D148: Text | E148: 174 | G148: 18
C149: Queues-Collect | D149: Multiple Choice | E149: 181 | G149: 18 | H149: 14 | I149: 48 | J149: 64
C150: Queues-Archive | D150: Multiple Choice | E150: 188 | G150: 18 | H150: 14 | I150: 48 | J150: 64 | N150: 50
C151: Queues-Transfer | D151: Boolean | E151: 195 | G151: 18
C152: Queues-Importance | D152: Text | E152: 202 | G152: 18
C153: Phasing/cycle lengths-Collect | D153: Multiple Choice | E153: 209 | G153: 18 | H153: 14 | I153: 48 | J153: 64
C154: Phasing/cycle lengths-Archive | D154: Multiple Choice | E154: 216 | G154: 18 | H154: 14 | I154: 48 | J154: 64 | N154: 50
C155: Phasing/cycle lengths-Transfer | D155: Boolean | E155: 223 | G155: 18
C156: Phasing/cycle lengths-Importance | D156: Text | E156: 230 | G156: 18
C157: Road Conditions-Collect | D157: Multiple Choice | E157: 237 | G157: 18 | H157: 14 | I157: 48 | J157: 64
C158: Road Conditions-Archive | D158: Multiple Choice | E158: 244 | G158: 18 | H158: 14 | I158: 48 | J158: 64 | N158: 50
C159: Road Conditions-Transfer | D159: Boolean | E159: 251 | G159: 18
C160: Road Conditions-Importance | D160: Text | E160: 258 | G160: 18
C161: Emergency vehicle preemption-Collect | D161: Multiple Choice | E161: 265 | G161: 18 | H161: 14 | I161: 48 | J161: 64
C162: Emergency vehicle preemption-Archive | D162: Multiple Choice | E162: 272 | G162: 18 | H162: 14 | I162: 48 | J162: 64 | N162: 50
C163: Emergency vehicle preemption-Transfer | D163: Boolean | E163: 279 | G163: 18
C164: Emergency vehicle preemption-Importance | D164: Text | E164: 286 | G164: 18
C165: Transit vehicle priority-Collect | D165: Multiple Choice | E165: 293 | G165: 18 | H165: 14 | I165: 48 | J165: 64
C166: Transit vehicle priority-Archive | D166: Multiple Choice | E166: 300 | G166: 18 | H166: 14 | I166: 48 | J166: 64 | N166: 50
C167: Transit vehicle priority-Transfer | D167: Boolean | E167: 307 | G167: 18
C168: Transit vehicle priority-Importance | D168: Text | E168: 314 | G168: 18
C169: Road designations (snow emergency, etc.)-Collect | D169: Multiple Choice | E169: 321 | G169: 18 | H169: 14 | I169: 49 | J169: 65
C170: Road designations (snow emergency, etc.)-Archive | D170: Multiple Choice | E170: 328 | G170: 18 | H170: 14 | I170: 49 | J170: 65 | N170: 51
C171: Road designations (snow emergency, etc.)-Transfer | D171: Boolean | E171: 335 | G171: 18
C172: Road designations (snow emergency, etc.)-Importance | D172: Text | E172: 342 | G172: 18
C173: Weather conditions-Collect | D173: Multiple Choice | E173: 349 | G173: 18 | H173: 14 | I173: 48 | J173: 64
C174: Weather conditions-Archive | D174: Multiple Choice | E174: 356 | G174: 18 | H174: 14 | I174: 48 | J174: 64 | N174: 50
C175: Weather conditions-Transfer | D175: Boolean | E175: 363 | G175: 18
C176: Weather conditions-Importance | D176: Text | E176: 370 | G176: 18
C177: Incidents-Collect | D177: Multiple Choice | E177: 377 | G177: 18 | H177: 14 | I177: 48 | J177: 64
C178: Incidents-Archive | D178: Multiple Choice | E178: 384 | G178: 18 | H178: 14 | I178: 48 | J178: 64 | N178: 50
C179: Incidents-Transfer | D179: Boolean | E179: 391 | G179: 18
C180: Incidents-Importance | D180: Text | E180: 398 | G180: 18
C181: Current work zones-Collect | D181: Multiple Choice | E181: 405 | G181: 18 | H181: 14 | I181: 49 | J181: 65
C182: Current work zones-Archive | D182: Multiple Choice | E182: 412 | G182: 18 | H182: 14 | I182: 49 | J182: 65 | N182: 51
C183: Current work zones-Transfer | D183: Boolean | E183: 419 | G183: 18
C184: Current work zones-Importance | D184: Text | E184: 426 | G184: 18
C185: Scheduled work zones-Collect | D185: Multiple Choice | E185: 433 | G185: 18 | H185: 14 | I185: 49 | J185: 65
C186: Scheduled work zones-Archive | D186: Multiple Choice | E186: 440 | G186: 18 | H186: 14 | I186: 49 | J186: 65 | N186: 51
C187: Scheduled work zones-Transfer | D187: Boolean | E187: 447 | G187: 18
C188: Scheduled work zones-Importance | D188: Text | E188: 454 | G188: 18
C189: Intermodal (air, rail, water) connections-Collect | D189: Multiple Choice | E189: 461 | G189: 18 | H189: 14 | I189: 49 | J189: 65
C190: Intermodal (air, rail, water) connections-Archive | D190: Multiple Choice | E190: 468 | G190: 18 | H190: 14 | I190: 49 | J190: 65 | N190: 51
C191: Intermodal (air, rail, water) connections-Transfer | D191: Boolean | E191: 475 | G191: 18
C192: Intermodal (air, rail, water) connections-Importance | D192: Text | E192: 482 | G192: 18
C193: Emergency evacuation routes and procedures-Collect | D193: Multiple Choice | E193: 489 | G193: 18 | H193: 14 | I193: 49 | J193: 65
C194: Emergency evacuation routes and procedures-Archive | D194: Multiple Choice | E194: 496 | G194: 18 | H194: 14 | I194: 49 | J194: 65 | N194: 51
C195: Emergency evacuation routes and procedures-Transfer | D195: Boolean | E195: 503 | G195: 18
C196: Emergency evacuation routes and procedures-Importance | D196: Text | E196: 510 | G196: 18
C197: Highway operations coordination information-Collect | D197: Boolean | E197: 517 | G197: 18
C198: Highway operations coordination information-Archive | D198: Boolean | E198: 524 | G198: 18
C199: Highway operations coordination information-Transfer | D199: Boolean | E199: 531 | G199: 18
C200: Highway operations coordination information-Importance | D200: Text | E200: 538 | G200: 18
C201: Incident status - Archive | D201: Multiple Choice | E201: 545 | I201: 49 | J201: 65
C202: Incident status - Archive | D202: Multiple Choice | E202: 552 | I202: 49 | J202: 65 | N202: 51
... 1998 more rows

Sheet Auto Enforcement
B2: Auto Enforcement
C3: Choices (in batteries) | D3: 1999 | E3: 2000 | F3: 2002 | G3: 2004 | H3: 2005 | I3: 2006 | J3: 2007 | K3: 2010 | L3: 2013 | M3: 2016
B7: AUTOMATED ENFORCEMENT USAGE
B8: Question Wording | F8: Does your agency use automated enforcement in facilities under its jurisdiction? | G8: Does your agency use automated enforcement in facilities under its jurisdiction? | K8: Does your agency use automated enforcement in facilities under its jurisdiction? | M8: Does your agency deploy automated enforcement technologies?
B9: Question # (Where to find in survey) | F9: 29 | G9: 42 | K9: 24 | M9: 23
B10: Question Format | F10: Multiple Choice | G10: Multiple Choice | K10: Multiple Choice | M10: Multiple Choice
B11: Values | F11: 0,1,2 | G11: 0,1,2 | K11: 0,1,2 | M11: 0,1,2
B12: Value Labels | F12: 0=No;1=Yes;2=No Response | G12: 0=No;1=Yes;2=No Response | K12: 0=No;1=Yes;2=No Response | M12: 0=No;1=Yes;2=No Response
B13: Survey Variable1 Name | C13: Auto enforcement | F13: autoEnforce | G13: autoEnforce | K13: AutoEnforcement | M13: DeployAutomatedEnf
B14: Data File Variable1 Name | F14: 02_AM_Q29_1R01C01 | G14: 04_AM_Q42_1R01C01 | K14: 10_AM_Q24_1R01C01 | M14: 16_AM_Q23_1R01C01
B16: TYPES OF AUTOMATED ENFORCEMENT USED
B17: Question Wording | F17: What types of automated enforcement are used? | G17: What types of automated enforcement are used? | I17: Does your agency deploy speed enforcement technologies on arterials? | J17: Does your agency deploy speed enforcement technologies on arterials? | K17: What types of automated enforcement are used? | L17: What types of automated enforcement does your agency use? | M17: What types of automated enforcement does your agency use?
B18: Question # (Where to find in survey) | F18: 29 | G18: 42 | I18: 43 | J18: 38 | K18: 25 | L18: 28 | M18: 23
B19: Question Format | F19: Multiple Choice | G19: Multiple Choice | I19: Multiple Choice | J19: Multiple Choice | K19: Boolean | L19: Boolean | M19: Boolean
B20: Values | F20: 0,1,2 | G20: 0,1,2 | I20: 0,1,2 | J20: 0,1,2 | K20: 0,1 | L20: 0,1 | M20: 0,1
B21: Value Labels | F21: 0=No;1=Yes;2=No Response | G21: 0=No;1=Yes;2=No Response | I21: 0=No;1=Yes;2=No Response | J21: 0=No;1=Yes;2=No Response | K21: 0=No;1=Yes | L21: 0=No;1=Yes | M21: 0-No;1=Yes
B22: Survey Variable1 Name | C22: Speed | F22: autoEnforce_Speeding | G22: autoEnforce_Speeding | I22: SpeedEnforcement | J22: SpeedEnforcement | K22: AutoEnforSpeed | L22: AutoEnforcementSpeed | M22: AutoEnforcementSpeed
B23: Data File Variable1 Name | F23: 02_AM_Q29_2R01C01 | G23: 04_AM_Q42_2R01C01 | I23: 06_AM_Q43_1R01C01 | J23: 07_AM_Q38_1R01C01 | K23: 10_AM_Q25_1R01C01 | L23: 13_AM_Q28_1R01C01 | M23: 16_AM_Q23_2R01C01
B25: Question # (Where to find in survey) | F25: 29 | G25: 42 | K25: 25 | L25: 28 | M25: 23
B26: Question Format | F26: Multiple Choice | G26: Multiple Choice | K26: Boolean | L26: Boolean | M26: Boolean
B27: Values | F27: 0,1,2 | G27: 0,1,2 | K27: 0,1 | L27: 0,1 | M27: 0,1
B28: Value Labels | F28: 0=No;1=Yes;2=No Response | G28: 0=No;1=Yes;2=No Response | K28: 0=No;1=Yes | L28: 0=No;1=Yes | M28: 0-No;1=Yes
B29: Survey Variable2 Name | C29: Red-light running | F29: autoEnforce_Redlight | G29: autoEnforce_Redlight | K29: AutoEnforRedLight | L29: AutoEnforcementRedLight | M29: AutoEnforcementRedLight
B30: Data File Variable2 Name | F30: 02_AM_Q29_2R02C01 | G30: 04_AM_Q42_2R02C01 | K30: 10_AM_Q25_1R03C01 | L30: 13_AM_Q28_1R02C01 | M30: 16_AM_Q23_2R02C01
B32: Question # (Where to find in survey) | F32: 29 | G32: 42 | K32: 25 | M32: 23
B33: Question Format | F33: Multiple Choice | G33: Multiple Choice | K33: Boolean | M33: Boolean
B34: Values | F34: 0,1,2 | G34: 0,1,2 | K34: 0,1 | M34: 0,1
B35: Value Labels | F35: 0=No;1=Yes;2=No Response | G35: 0=No;1=Yes;2=No Response | K35: 0=No;1=Yes | M35: 0-No;1=Yes
B36: Survey Variable3 Name | C36: Rail-road crossing | F36: autoEnforce_Railroad | G36: autoEnforce_Railroad | K36: AutoEnforRailRoad | M36: AutoEnforcementRail
B37: Data File Variable3 Name | F37: 02_AM_Q29_2R03C01 | G37: 04_AM_Q42_2R03C01 | K37: 10_AM_Q25_1R02C01 | M37: 16_AM_Q23_2R06C01
B39: Question # (Where to find in survey) | M39: 23
B40: Question Format | M40: Boolean
B41: Values | M41: 0,1
B42: Value Labels | M42: 0-No;1=Yes
B43: Survey Variable4 Name | C43: School zone | M43: AutoEnforcementSchoolZone
B44: Data File Variable4 Name | M44: 16_AM_Q23_2R03C01
B46: Question # (Where to find in survey) | M46: 23
B47: Question Format | M47: Boolean
B48: Values | M48: 0,1
B49: Value Labels | M49: 0-No;1=Yes
B50: Survey Variable5 Name | C50: Work zone | M50: AutoEnforcementWorkZone
B51: Data File Variable5 Name | M51: 16_AM_Q23_2R04C01
B53: Question # (Where to find in survey) | M53: 23
B54: Question Format | M54: Boolean
B55: Values | M55: 0,1
B56: Value Labels | M56: 0-No;1=Yes
B57: Survey Variable6 Name | C57: Bus-use only | M57: AutoEnforcementBusOnly
B58: Data File Variable6 Name | M58: 16_AM_Q23_2R05C01
B60: Question # (Where to find in survey) | F60: 29 | G60: 42 | K60: 25 | L60: 28 | M60: 23
B61: Question Format | F61: Text | G61: Text | K61: Text | L61: Text | M61: Text
B62: Values
B63: Value Labels
B64: Survey Variable7 Name | C64: Other | F64: autoEnforce_Other | G64: autoEnforce_Other | K64: AutoEnforOtherText | L64: AutoEnforcementOtherText | M64: AutoEnforcementOtherText
B65: Data File Variable7 Name | F65: 02_AM_Q29_2R04C01TXT | G65: 04_AM_Q42_2R04C01TXT | K65: 10_AM_Q25_1R05C01TXT | L65: 13_AM_Q28_1R04C01TXT | M65: 16_AM_Q23_2R07C01TXT
B67: Question # (Where to find in survey) | L67: 28
B68: Question Format | L68: Boolean
B69: Values | L69: 0,1
B70: Value Labels | L70: 0=No;1=Yes
B71: Survey Variable8 Name | C71: No auto enforcement | L71: AutoEnforcementNone
B72: Data File Variable8 Name | L72: 13_AM_Q28_1R03C01
B74: AUTOMATED ENFORCEMENT TECHNOLOGIES USED
B75: Question Wording | M75: What automated enforcement technologies are used?
B76: Question # (Where to find in survey) | M76: 23
B77: Question Format | M77: Boolean
B78: Values | M78: 0,1
B79: Value Labels | M79: 0-No;1=Yes
B80: Survey Variable1 Name | C80: License plate recognition | M80: AutoEnforcementLPR
B81: Data File Variable1 Name | M81: 16_AM_Q23_3R01C01
B83: Question # (Where to find in survey) | M83: 23
B84: Question Format | M84: Boolean
B85: Values | M85: 0,1
B86: Value Labels | M86: 0-No;1=Yes
B87: Survey Variable2 Name | C87: Video camera | M87: AutoEnforcementCameras
B88: Data File Variable2 Name | M88: 16_AM_Q23_3R02C01
B90: Question # (Where to find in survey) | M90: 23
B91: Question Format | M91: Boolean
B92: Values | M92: 0,1
B93: Value Labels | M93: 0-No;1=Yes
B94: Survey Variable3 Name | C94: Toll tag reader | M94: AutoEnforcementToll
B95: Data File Variable3 Name | M95: 16_AM_Q23_3R03C01
B97: Question # (Where to find in survey) | M97: 23
B98: Question Format | M98: Boolean
B99: Values | M99: 0,1
B100: Value Labels | M100: 0-No;1=Yes
B101: Survey Variable4 Name | C101: Radar | M101: AutoEnforcementRadar
B102: Data File Variable4 Name | M102: 16_AM_Q23_3R04C01
B104: Question # (Where to find in survey) | M104: 23
B105: Question Format | M105: Text
B106: Values
B107: Value Labels
B108: Survey Variable5 Name | C108: Other | M108: AutoEnforcementUsedOtherText
B109: Data File Variable5 Name | M109: 16_AM_Q23_3R05C01TXT
B111: SIGNALIZED INTERSECTIONS WITH RED LIGHT RUNNING PHOTO ENFORCEMENT
B112: Question Wording | K112: Number of signalized intersections with automated photo red-light running enforcement | L112: Number of signalized intersections with automated red light running enforcement | M112: Number of signalized intersections with automated red light running enforcement
B113: Question # (Where to find in survey) | K113: 25 | L113: 28 | M113: 23
B114: Question Format | K114: Numeric | L114: Numeric | M114: Numeric
B115: Values
B116: Value Labels
B117: Survey Variable1 Name | C117: Intersections red light running | K117: AutoEnforRedLightNumber | L117: AutoEnforcementRedLight_intersections | M117: AutoEnforcementRedLightIntersections
B118: Data File Variable1 Name | K118: 10_AM_Q25_1R04C01 | L118: 13_AM_Q28_2R01C01 | M118: 16_AM_Q23_4R01C01
B120: AUTOMATED ENFORCEMENT DATA SHARING
B121: Question Wording | F121: With which agencies are the automated enforcement data shared? | G121: With which agencies are the automated enforcement data shared? | K121: With which agencies are the automated enforcement data shared?
B122: Question # (Where to find in survey) | F122: 30 | G122: 43 | K122: 26
B123: Question Format | F123: Text | G123: Text | K123: Text
B124: Values
B125: Value Labels
B126: Survey Variable1 Name | C126: Auto enforcement data sharing | F126: autoEnforce_shared | G126: autoEnforce_shared | K126: AutoEnforSHARed
B127: Data File Variable1 Name | F127: 02_AM_Q30_1R01C01TXT | G127: 04_AM_Q43_1R01C01TXT | K127: 10_AM_Q26_1R01C01TXT
B129: AUTOMATED ENFORCEMENT DATA COORDINATION
B130: Question Wording | F130: With which agencies are the automated enforcement data coordinated? | G130: With which agencies are the automated enforcement data coordinated? | K130: With which agencies are the automated enforcement data coordinated?
B131: Question # (Where to find in survey) | F131: 31 | G131: 44 | K131: 27
B132: Question Format | F132: Text | G132: Text | K132: Text
B133: Values
B134: Value Labels
B135: Survey Variable1 Name | C135: Auto enforcement data coordination | F135: autoEnforce_coordinated | G135: autoEnforce_coordinated | K135: AutoEnforCoord
B136: Data File Variable1 Name | F136: 02_AM_Q31_1R01C01TXT | G136: 04_AM_Q44_1R01C01TXT | K136: 10_AM_Q27_1R01C01TXT

Sheet Connected Vehicles
B2: Connected Vehicles (CV)
C3: Choices (in batteries) | D3: 1999 | E3: 2000 | F3: 2002 | G3: 2004 | H3: 2005 | I3: 2006 | J3: 2007 | K3: 2010 | L3: 2013 | M3: 2016
B7: CONNECTED VEHICLE APPLICATIONS DEPLOYMENT
B8: Question Wording | M8: Does your agency have plans to deploy connected vehicle applications?
B9: Question # (Where to find in survey) | M9: 61
B10: Question Format | M10: Multiple Choice
B11: Values | M11: 0,1,2
B12: Value Labels | M12: 0=No;1=Yes;2=No Response
B13: Survey Variable1 Name | C13: CV deployment plans | M13: ConvehPlansDeploy
B14: Data File Variable1 Name | M14: 16_AM_Q61_1R01C01
B16: Question Wording | M16: When do you expect to deploy?
B17: Question # (Where to find in survey) | M17: 61
B18: Question Format | M18: Multiple Choice
B19: Values | M19: 1,2,3,4
B20: Value Labels | M20: 1=Within the next 3 years;2=In 3 to 6 years; 3=In 7 or more years; 4=No Response
B21: Survey Variable1 Name | C21: When deployment expected | M21: ConvehPlansDeployExpect
B22: Data File Variable1 Name | M22: 16_AM_Q61_2R01C01
B24: PLANNED CONNECTED VEHICLE APPLICATIONS
B25: Question Wording | M25: Which of the following connected vehicle applications is your agency planning to deploy? (Check all that apply)
B26: Question # (Where to find in survey) | M26: 62
B27: Question Format | M27: Boolean
B28: Values | M28: 0,1
B29: Value Labels | M29: 0-No;1=Yes
B30: Survey Variable1 Name | C30: Reduced Speed/Work Zone Warning (RSWZ) | M30: ConVehPlannedAppsv21Rswz
B31: Data File Variable1 Name | M31: 16_AM_Q62_1R01C01
B33: Question # (Where to find in survey) | M33: 62
B34: Question Format | M34: Boolean
B35: Values | M35: 0,1
B36: Value Labels | M36: 0-No;1=Yes
B37: Survey Variable2 Name | C37: Curve Speed Warning (CWS) | M37: ConVehPlannedAppsv21Cws
B38: Data File Variable2 Name | M38: 16_AM_Q62_1R02C01
B40: Question # (Where to find in survey) | M40: 62
B41: Question Format | M41: Boolean
B42: Values | M42: 0,1
B43: Value Labels | M43: 0-No;1=Yes
B44: Survey Variable3 Name | C44: Other speed management applications | M44: ConVehPlannedAppsv21Osma
B45: Data File Variable3 Name | M45: 16_AM_Q62_1R03C01
B47: Question # (Where to find in survey) | M47: 62
B48: Question Format | M48: Boolean
B49: Values | M49: 0,1
B50: Value Labels | M50: 0-No;1=Yes
B51: Survey Variable4 Name | C51: Pedestrian and bicycle | M51: ConVehPlannedAppsv21Pab
B52: Data File Variable4 Name | M52: 16_AM_Q62_1R04C01
B54: Question # (Where to find in survey) | M54: 62
B55: Question Format | M55: Boolean
B56: Values | M56: 0,1
B57: Value Labels | M57: 0-No;1=Yes
B58: Survey Variable5 Name | C58: Transit safety | M58: ConVehPlannedAppsv21Ts
B59: Data File Variable5 Name | M59: 16_AM_Q62_1R05C01
B61: Question # (Where to find in survey) | M61: 62
B62: Question Format | M62: Boolean
B63: Values | M63: 0,1
B64: Value Labels | M64: 0-No;1=Yes
B65: Survey Variable6 Name | C65: Intelligent traffic signal systems | M65: ConVehPlannedAppsMobItss
B66: Data File Variable6 Name | M66: 16_AM_Q62_2R01C01
B68: Question # (Where to find in survey) | M68: 62
B69: Question Format | M69: Boolean
B70: Values | M70: 0,1
B71: Value Labels | M71: 0-No;1=Yes
B72: Survey Variable7 Name | C72: Advanced traveler information systems | M72: ConVehPlannedAppsMobATIS
B73: Data File Variable7 Name | M73: 16_AM_Q62_2R02C01
B75: Question # (Where to find in survey) | M75: 62
B76: Question Format | M76: Boolean
B77: Values | M77: 0,1
B78: Value Labels | M78: 0-No;1=Yes
B79: Survey Variable8 Name | C79: Incident and emergency management | M79: ConVehPlannedAppsMobIaem
B80: Data File Variable8 Name | M80: 16_AM_Q62_2R03C01
B82: Question # (Where to find in survey) | M82: 62
B83: Question Format | M83: Boolean
B84: Values | M84: 0,1
B85: Value Labels | M85: 0-No;1=Yes
B86: Survey Variable9 Name | C86: Integrated dynamic transit operations (IDTO) | M86: ConVehPlannedAppsMobIdto
B87: Data File Variable9 Name | M87: 16_AM_Q62_2R04C01
B89: Question # (Where to find in survey) | M89: 62
B90: Question Format | M90: Boolean
B91: Values | M91: 0,1
B92: Value Labels | M92: 0-No;1=Yes
B93: Survey Variable10 Name | C93: Eco-signal operations | M93: ConVehPlannedAppsEnvEso
B94: Data File Variable10 Name | M94: 16_AM_Q62_3R01C01
B96: Question # (Where to find in survey) | M96: 62
B97: Question Format | M97: Boolean
B98: Values | M98: 0,1
B99: Value Labels | M99: 0-No;1=Yes
B100: Survey Variable11 Name | C100: Eco-traveler information | M100: ConVehPlannedAppsEnvEti
B101: Data File Variable11 Name | M101: 16_AM_Q62_3R02C01
B103: Question # (Where to find in survey) | M103: 62
B104: Question Format | M104: Boolean
B105: Values | M105: 0,1
B106: Value Labels | M106: 0-No;1=Yes
B107: Survey Variable12 Name | C107: Low emission zones | M107: ConVehPlannedAppsEnvLez
B108: Data File Variable12 Name | M108: 16_AM_Q62_3R03C01
B110: Question # (Where to find in survey) | M110: 62
B111: Question Format | M111: Boolean
B112: Values | M112: 0,1
B113: Value Labels | M113: 0-No;1=Yes
B114: Survey Variable13 Name | C114: Eco-lanes | M114: ConVehPlannedAppsEnvEl
B115: Data File Variable13 Name | M115: 16_AM_Q62_3R04C01
B117: Question # (Where to find in survey) | M117: 62
B118: Question Format | M118: Boolean
B119: Values | M119: 0,1
B120: Value Labels | M120: 0-No;1=Yes
B121: Survey Variable14 Name | C121: Eco-ICM | M121: ConVehPlannedAppsEnvEicm
B122: Data File Variable14 Name | M122: 16_AM_Q62_3R05C01
B124: Question # (Where to find in survey) | M124: 62
B125: Question Format | M125: Boolean
B126: Values | M126: 0,1
B127: Value Labels | M127: 0-No;1=Yes
B128: Survey Variable15 Name | C128: Road Weather | M128: ConVehPlannedAppsOtherRw
B129: Data File Variable15 Name | M129: 16_AM_Q62_4R01C01
B131: Question # (Where to find in survey) | M131: 62
B132: Question Format | M132: Boolean
B133: Values | M133: 0,1
B134: Value Labels | M134: 0-No;1=Yes
B135: Survey Variable16 Name | C135: Fee payments | M135: ConVehPlannedAppsOtherFp
B136: Data File Variable16 Name | M136: 16_AM_Q62_4R02C01
B138: Question # (Where to find in survey) | M138: 62
B139: Question Format | M139: Boolean
B140: Values | M140: 0,1
B141: Value Labels | M141: 0-No;1=Yes
B142: Survey Variable17 Name | C142: Commercial Vehicle applications | M142: ConVehPlannedAppsOtherCv
B143: Data File Variable17 Name | M143: 16_AM_Q62_4R03C01
B145: Question # (Where to find in survey) | M145: 62
B146: Question Format | M146: Boolean
B147: Values | M147: 0,1
B148: Value Labels | M148: 0-No;1=Yes
B149: Survey Variable18 Name | C149: Agency data applications (performance measures, probe data applications, etc.) | M149: ConVehPlannedAppsOtherData
B150: Data File Variable18 Name | M150: 16_AM_Q62_4R04C01
B152: Question # (Where to find in survey) | M152: 62
B153: Question Format | M153: Text
B154: Values
B155: Value Labels
B156: Survey Variable19 Name | C156: Other (describe) | M156: ConVehPlannedAppsOtherText
B157: Data File Variable19 Name | M157: 16_AM_Q62_4R05C01TXT
B159: REASONS FOR NOT PLANNING TO DEPLOY CONNECTED VEHICLE APPLICATIONS
B160: Question Wording | M160: If your agency is not planning to deploy connected vehicle (CV) applications, why not? (Check all that apply)
B161: Question # (Where to find in survey) | M161: 63
B162: Question Format | M162: Boolean
B163: Values | M163: 0,1
B164: Value Labels | M164: 0-No;1=Yes
B165: Survey Variable1 Name | C165: Too costly for now | M165: ConVehPlanWhyNotCost
B166: Data File Variable1 Name | M166: 16_AM_Q63_1R01C01
B168: Question # (Where to find in survey) | M168: 63
B169: Question Format | M169: Boolean
B170: Values | M170: 0,1
B171: Value Labels | M171: 0-No;1=Yes
B172: Survey Variable2 Name | C172: Too much technical risk; want to wait until technology and standards mature | M172: ConVehPlanWhyNotTech
B173: Data File Variable2 Name | M173: 16_AM_Q63_1R02C01
B175: Question # (Where to find in survey) | M175: 63
B176: Question Format | M176: Boolean
B177: Values | M177: 0,1
B178: Value Labels | M178: 0-No;1=Yes
B179: Survey Variable3 Name | C179: Want to see benefits proven by pilot/early deployments | M179: ConVehPlanWhyNotBenefits
B180: Data File Variable3 Name | M180: 16_AM_Q63_1R03C01
B182: Question # (Where to find in survey) | M182: 63
B183: Question Format | M183: Boolean
B184: Values | M184: 0,1
B185: Value Labels | M185: 0-No;1=Yes
B186: Survey Variable4 Name | C186: Not ready from an institutional or organizational point of view | M186: ConVehPlanWhyNotNotready
B187: Data File Variable4 Name | M187: 16_AM_Q63_1R04C01
B189: Question # (Where to find in survey) | M189: 63
B190: Question Format | M190: Boolean
B191: Values | M191: 0,1
B192: Value Labels | M192: 0-No;1=Yes
B193: Survey Variable5 Name | C193: Do not have enough staff with the right qualifications to plan and deploy CV applications | M193: ConVehPlanWhyNotStaff
B194: Data File Variable5 Name | M194: 16_AM_Q63_1R05C01
B196: Question # (Where to find in survey) | M196: 63
B197: Question Format | M197: Boolean
B198: Values | M198: 0,1
B199: Value Labels | M199: 0-No;1=Yes
B200: Survey Variable6 Name | C200: Concerned about security issues | M200: ConVehPlanWhyNotSecurity
B201: Data File Variable6 Name | M201: 16_AM_Q63_1R06C01
B203: Question # (Where to find in survey) | M203: 63
B204: Question Format | M204: Boolean
B205: Values | M205: 0,1
B206: Value Labels | M206: 0-No;1=Yes
B207: Survey Variable7 Name | C207: Concerned about privacy issues | M207: ConVehPlanWhyNotPrivacy
B208: Data File Variable7 Name | M208: 16_AM_Q63_1R07C01
B210: Question # (Where to find in survey) | M210: 63
B211: Question Format | M211: Boolean
B212: Values | M212: 0,1
B213: Value Labels | M213: 0-No;1=Yes
B214: Survey Variable8 Name | C214: Not a high priority right now | M214: ConVehPlanWhyNotNotHigh
B215: Data File Variable8 Name | M215: 16_AM_Q63_1R08C01
B217: Question # (Where to find in survey) | M217: 63
B218: Question Format | M218: Text
B219: Values
B220: Value Labels
B221: Survey Variable9 Name | C221: We are more focused on | M221: ConVehPlanWhyNotNotHighFocused
B222: Data File Variable9 Name | M222: 16_AM_Q63_1R09C01TXT
B224: Question # (Where to find in survey) | M224: 63
B225: Question Format | M225: Text
B226: Values
B227: Value Labels
B228: Survey Variable10 Name | C228: Other | M228: ConVehPlanWhyNotOtherText
B229: Data File Variable10 Name | M229: 16_AM_Q63_1R10C01TXT
B231: CONNECTED VEHICLE APPLICATIONS PRIORITIES
B232: Question Wording | M232: When your agency starts planning the deployment of Connected Vehicle applications, which type of application will be the priority? (Select one)
B233: Question # (Where to find in survey) | M233: 64
B234: Values | M234: Multiple Choice
B235: Question Format | M235: 1,2,3,4,5,6
... 324 more rows

Sheet Data Archiving
B2: Data Archiving
C3: Choices (in batteries) | D3: 1999 | E3: 2000 | F3: 2002 | G3: 2004 | H3: 2005 | I3: 2006 | J3: 2007 | K3: 2010 | L3: 2013 | M3: 2016
B7: TYPE OF INFORMATION COLLECTED/ARCHIVED
B8: Question Working | D8: Please indicate whether data are collected, archived, and/or transferred to another agency or Information Service Provider (ISP). We also ask that you indicate the importance making the information available to the public by ranking it High, Medium, or Low. | E8: Type of information collected in real-time | F8: Please check the information your agency collects/archives from sensors. | G8: Please check the information your agency collects/archives in real-time. | K8: What information does your agency archive from sensors?
B9: Question # (Where to find in survey) | D9: 18 | E9: 14 | F9: 48 | G9: 64
B10: Question Format | D10: Boolean | E10: Boolean | F10: Multiple Choice | G10: Multiple Choice
B11: Values | D11: 0,1 | E11: 0,1 | F11: 0,1,2 | G11: 0,1,2
B12: Value Labels | D12: 0=No;1=Yes | E12: 0=No;1=Yes | F12: 0=No;1=Yes;2=No Response | G12: 0=No;1=Yes;2=No Response
B13: Survey Variable1 Name | C13: Traffic volumes-Collect | D13: Traffic_volumesCollect99 | E13: Traffic_volumesReal_TimeCollect2000 | F13: Traffic_volumesCollect2002 | G13: Traffic_volumesCollect04
B14: Data File Variable1 Name | D14: 99_AM_Q18_1R01C01 | E14: 00_AM_Q14_1R01C01 | F14: 02_AM_Q48_1R01C01 | G14: 04_AM_Q64_1R01C01
B16: Question # (Where to find in survey) | D16: 18 | E16: 14 | F16: 48 | G16: 64 | K16: 50
B17: Question Format | D17: Boolean | E17: Boolean | F17: Multiple Choice | G17: Multiple Choice | K17: Boolean
B18: Values | D18: 0,1 | E18: 0,1 | F18: 0,1,2 | G18: 0,1,2 | K18: 0,1
B19: Value Labels | D19: 0=No;1=Yes | E19: 0=No;1=Yes | F19: 0=No;1=Yes;2=No Response | G19: 0=No;1=Yes;2=No Response | K19: 0=No;1=Yes
B20: Survey Variable2 Name | C20: Traffic volumes-Archive | D20: Traffic_volumesArchive99 | E20: Traffic_volumesReal_timeArchive2000 | F20: Traffic_volumesArchive2002 | G20: Traffic_volumesArchive04 | K20: ArchiveTrafficVolumes
B21: Data File Variable2 Name | D21: 99_AM_Q18_1R01C02 | E21: 00_AM_Q14_3R01C01 | F21: 02_AM_Q48_1R01C02 | G21: 04_AM_Q64_1R01C02 | K21: 10_AM_Q50_1R01C01
B23: Question # (Where to find in survey) | D23: 18
B24: Question Format | D24: Boolean
B25: Values | D25: 0,1
B26: Value Labels | D26: 0=No;1=Yes
B27: Survey Variable3 Name | C27: Traffic volumes-Transfer | D27: Traffic_volumesTranfer99
B28: Data File Variable3 Name | D28: 99_AM_Q18_1R01C03
B30: Question # (Where to find in survey) | D30: 18
B31: Question Format | D31: Text
B32: Values
B33: Value Labels
B34: Survey Variable4 Name | C34: Traffic volumes-Importance | D34: Traffic_volumesImportance
B35: Data File Variable4 Name | D35: 99_AM_Q18_1R01C04TXT
B37: Question # (Where to find in survey) | D37: 18 | E37: 14 | F37: 48 | G37: 64
B38: Question Format | D38: Boolean | E38: Boolean | F38: Multiple Choice | G38: Multiple Choice
B39: Values | D39: 0,1 | E39: 0,1 | F39: 0,1,2 | G39: 0,1,2
B40: Value Labels | D40: 0=No;1=Yes | E40: 0=No;1=Yes | F40: 0=No;1=Yes;2=No Response | G40: 0=No;1=Yes;2=No Response
B41: Survey Variable5 Name | C41: Traffic speeds-Collect | D41: Traffic_speedsCollect99 | E41: Traffic_speedsReal_TimeCollect2000 | F41: Traffic_speedsCollect2002 | G41: Traffic_speedsCollect04
B42: Data File Variable5 Name | D42: 99_AM_Q18_1R02C01 | E42: 00_AM_Q14_1R02C01 | F42: 02_AM_Q48_1R02C01 | G42: 04_AM_Q64_1R02C01
B44: Question # (Where to find in survey) | D44: 18 | E44: 14 | F44: 48 | G44: 64 | K44: 50
B45: Question Format | D45: Boolean | E45: Boolean | F45: Multiple Choice | G45: Multiple Choice | K45: Boolean
B46: Values | D46: 0,1 | E46: 0,1 | F46: 0,1,2 | G46: 0,1,2 | K46: 0,1
B47: Value Labels | D47: 0=No;1=Yes | E47: 0=No;1=Yes | F47: 0=No;1=Yes;2=No Response | G47: 0=No;1=Yes;2=No Response | K47: 0=No;1=Yes
B48: Survey Variable6 Name | C48: Traffic speeds-Archive | D48: Traffic_speedsArchive99 | E48: Traffic_speedsReal_timeArchive2000 | F48: Traffic_speedsArchive2002 | G48: Traffic_speedsArchive04 | K48: ArchiveTrafficSpeeds
B49: Data File Variable6 Name | D49: 99_AM_Q18_1R02C02 | E49: 00_AM_Q14_3R02C01 | F49: 02_AM_Q48_1R02C02 | G49: 04_AM_Q64_1R02C02 | K49: 10_AM_Q50_1R02C01
B51: Question # (Where to find in survey) | D51: 18
B52: Question Format | D52: Boolean
B53: Values | D53: 0,1
B54: Value Labels | D54: 0=No;1=Yes
B55: Survey Variable7 Name | C55: Traffic speeds-Transfer | D55: Traffic_speedsTranfer99
B56: Data File Variable7 Name | D56: 99_AM_Q18_1R02C03
B58: Question # (Where to find in survey) | D58: 18
B59: Question Format | D59: Text
B60: Values
B61: Value Labels
B62: Survey Variable8 Name | C62: Traffic speeds-Importance | D62: Traffic_speedsImportance
B63: Data File Variable8 Name | D63: 99_AM_Q18_1R02C04TXT
B65: Question # (Where to find in survey) | D65: 18 | E65: 14 | F65: 48 | G65: 64
B66: Question Format | D66: Boolean | E66: Boolean | F66: Multiple Choice | G66: Multiple Choice
B67: Values | D67: 0,1 | E67: 0,1 | F67: 0,1,2 | G67: 0,1,2
B68: Value Labels | D68: 0=No;1=Yes | E68: 0=No;1=Yes | F68: 0=No;1=Yes;2=No Response | G68: 0=No;1=Yes;2=No Response
B69: Survey Variable9 Name | C69: Lane occupancy-Collect | D69: Lane_occupancyCollect99 | E69: Lane_occupancyReal_TimeCollect2000 | F69: Lane_occupancyCollect2002 | G69: Lane_occupancyCollect04
B70: Data File Variable9 Name | D70: 99_AM_Q18_1R03C01 | E70: 00_AM_Q14_1R03C01 | F70: 02_AM_Q48_1R03C01 | G70: 04_AM_Q64_1R03C01
B72: Question # (Where to find in survey) | D72: 18 | E72: 14 | F72: 48 | G72: 64 | K72: 50
B73: Question Format | D73: Boolean | E73: Boolean | F73: Multiple Choice | G73: Multiple Choice | K73: Boolean
B74: Values | D74: 0,1 | E74: 0,1 | F74: 0,1,2 | G74: 0,1,2 | K74: 0,1
B75: Value Labels | D75: 0=No;1=Yes | E75: 0=No;1=Yes | F75: 0=No;1=Yes;2=No Response | G75: 0=No;1=Yes;2=No Response | K75: 0=No;1=Yes
B76: Survey Variable10 Name | C76: Lane occupancy-Archive | D76: Lane_occupancyArchive99 | E76: Lane_occupancyReal_timeArchive2000 | F76: Lane_occupancyArchive2002 | G76: Lane_occupancyArchive04 | K76: ArchiveLaneOccupancy
B77: Data File Variable10 Name | D77: 99_AM_Q18_1R03C02 | E77: 00_AM_Q14_3R03C01 | F77: 02_AM_Q48_1R03C02 | G77: 04_AM_Q64_1R03C02 | K77: 10_AM_Q50_1R03C01
B79: Question # (Where to find in survey) | D79: 18
B80: Question Format | D80: Boolean
B81: Values | D81: 0,1
B82: Value Labels | D82: 0=No;1=Yes
B83: Survey Variable11 Name | C83: Lane occupancy-Transfer | D83: Lane_occupancyTranfer99
B84: Data File Variable11 Name | D84: 99_AM_Q18_1R03C03
B86: Question # (Where to find in survey) | D86: 18
B87: Question Format | D87: Text
B88: Values
B89: Value Labels
B90: Survey Variable12 Name | C90: Lane occupancy-Importance | D90: Lane_occupancyImportance
B91: Data File Variable12 Name | D91: 99_AM_Q18_1R03C04TXT
B93: Question # (Where to find in survey) | D93: 18 | E93: 14 | F93: 48 | G93: 64
B94: Question Format | D94: Boolean | E94: Boolean | F94: Multiple Choice | G94: Multiple Choice
B95: Values | D95: 0,1 | E95: 0,1 | F95: 0,1,2 | G95: 0,1,2
B96: Value Labels | D96: 0=No;1=Yes | E96: 0=No;1=Yes | F96: 0=No;1=Yes;2=No Response | G96: 0=No;1=Yes;2=No Response
B97: Survey Variable13 Name | C97: Vehicle classification-Collect | D97: Vehicle_classificationCollect99 | E97: Vehicle_classificationReal_TimeCollect2000 | F97: Vehicle_classificationCollect2002 | G97: Vehicle_classificationCollect04
B98: Data File Variable13 Name | D98: 99_AM_Q18_1R04C01 | E98: 00_AM_Q14_1R04C01 | F98: 02_AM_Q48_1R04C01 | G98: 04_AM_Q64_1R04C01
B100: Question # (Where to find in survey) | D100: 18 | E100: 14 | F100: 48 | G100: 64 | K100: 50
B101: Question Format | D101: Boolean | E101: Boolean | F101: Multiple Choice | G101: Multiple Choice | K101: Boolean
B102: Values | D102: 0,1 | E102: 0,1 | F102: 0,1,2 | G102: 0,1,2 | K102: 0,1
B103: Value Labels | D103: 0=No;1=Yes | E103: 0=No;1=Yes | F103: 0=No;1=Yes;2=No Response | G103: 0=No;1=Yes;2=No Response | K103: 0=No;1=Yes
B104: Survey Variable14 Name | C104: Vehicle classification-Archive | D104: Vehicle_classificationArchive99 | E104: Vehicle_classificationReal_timeArchive2000 | F104: Vehicle_classificationArchive2002 | G104: Vehicle_classificationArchive04 | K104: ArchiveVehicleClass
B105: Data File Variable14 Name | D105: 99_AM_Q18_1R04C02 | E105: 00_AM_Q14_3R04C01 | F105: 02_AM_Q48_1R04C02 | G105: 04_AM_Q64_1R04C02 | K105: 10_AM_Q50_1R04C01
B107: Question # (Where to find in survey) | D107: 18
B108: Question Format | D108: Boolean
B109: Values | D109: 0,1
B110: Value Labels | D110: 0=No;1=Yes
B111: Survey Variable15 Name | C111: Vehicle classification-Transfer | D111: Vehicle_classificationTranfer99
B112: Data File Variable15 Name | D112: 99_AM_Q18_1R04C03
B114: Question # (Where to find in survey) | D114: 18
B115: Question Format | D115: Text
B116: Values
B117: Value Labels
B118: Survey Variable16 Name | C118: Vehicle classification-Importance | D118: Vehicle_classificationImportance
B119: Data File Variable16 Name | D119: 99_AM_Q18_1R04C04TXT
B121: Question # (Where to find in survey) | D121: 18 | E121: 14 | F121: 48 | G121: 64
B122: Question Format | D122: Boolean | E122: Boolean | F122: Multiple Choice | G122: Multiple Choice
B123: Values | D123: 0,1 | E123: 0,1 | F123: 0,1,2 | G123: 0,1,2
B124: Value Labels | D124: 0=No;1=Yes | E124: 0=No;1=Yes | F124: 0=No;1=Yes;2=No Response | G124: 0=No;1=Yes;2=No Response
B125: Survey Variable17 Name | C125: Probe vehicles-Collect | D125: Probe_vehiclesCollect99 | E125: Vehicle_locationReal_TimeCollect2000 | F125: Travel_timeCollect2002 | G125: Travel_timeCollect04
B126: Data File Variable17 Name | D126: 99_AM_Q18_1R05C01 | E126: 00_AM_Q14_1R05C01 | F126: 02_AM_Q48_1R05C01 | G126: 04_AM_Q64_1R05C01
B128: Question # (Where to find in survey) | D128: 18 | E128: 14 | F128: 48 | G128: 64 | K128: 50
B129: Question Format | D129: Boolean | E129: Boolean | F129: Multiple Choice | G129: Multiple Choice | K129: Boolean
B130: Values | D130: 0,1 | E130: 0,1 | F130: 0,1,2 | G130: 0,1,2 | K130: 0,1
B131: Value Labels | D131: 0=No;1=Yes | E131: 0=No;1=Yes | F131: 0=No;1=Yes;2=No Response | G131: 0=No;1=Yes;2=No Response | K131: 0=No;1=Yes
B132: Survey Variable18 Name | C132: Probe vehicles-Archive | D132: Probe_vehiclesArchive99 | E132: Vehicle_locationReal_timeArchive2000 | F132: Travel_timeArchive2002 | G132: Travel_timeArchive04 | K132: ArchiveTurningMovements
B133: Data File Variable18 Name | D133: 99_AM_Q18_1R05C02 | E133: 00_AM_Q14_3R05C01 | F133: 02_AM_Q48_1R05C02 | G133: 04_AM_Q64_1R05C02 | K133: 10_AM_Q50_1R06C01
B135: Question # (Where to find in survey) | D135: 18
B136: Question Format | D136: Boolean
B137: Values | D137: 0,1
B138: Value Labels | D138: 0=No;1=Yes
B139: Survey Variable19 Name | C139: Probe vehicles-Transfer | D139: Probe_vehiclesTranfer99
B140: Data File Variable19 Name | D140: 99_AM_Q18_1R05C03
B142: Question # (Where to find in survey) | D142: 18
B143: Question Format | D143: Text
B144: Values
B145: Value Labels
B146: Survey Variable20 Name | C146: Probe vehicles-Importance | D146: Probe_vehiclesImportance
B147: Data File Variable20 Name | D147: 99_AM_Q18_1R05C04TXT
B149: Question # (Where to find in survey) | D149: 18 | E149: 14 | F149: 48 | G149: 64
B150: Question Format | D150: Boolean | E150: Boolean | F150: Multiple Choice | G150: Multiple Choice
B151: Values | D151: 0,1 | E151: 0,1 | F151: 0,1,2 | G151: 0,1,2
B152: Value Labels | D152: 0=No;1=Yes | E152: 0=No;1=Yes | F152: 0=No;1=Yes;2=No Response | G152: 0=No;1=Yes;2=No Response
B153: Survey Variable21 Name | C153: Turning movements-Collect | D153: Turning_movementsCollect99 | E153: Turning_movementsReal_TimeCollect2000 | F153: Turning_movementsCollect2002 | G153: Turning_movementsCollect04
B154: Data File Variable21 Name | D154: 99_AM_Q18_1R06C01 | E154: 00_AM_Q14_1R06C01 | F154: 02_AM_Q48_1R06C01 | G154: 04_AM_Q64_1R06C01
B156: Question # (Where to find in survey) | D156: 18 | E156: 14 | F156: 48 | G156: 64 | K156: 50
B157: Question Format | D157: Boolean | E157: Boolean | F157: Multiple Choice | G157: Multiple Choice | K157: Boolean
B158: Values | D158: 0,1 | E158: 0,1 | F158: 0,1,2 | G158: 0,1,2 | K158: 0,1
B159: Value Labels | D159: 0=No;1=Yes | E159: 0=No;1=Yes | F159: 0=No;1=Yes;2=No Response | G159: 0=No;1=Yes;2=No Response | K159: 0=No;1=Yes
B160: Survey Variable22 Name | C160: Turning movements-Archive | D160: Turning_movementsArchive99 | E160: Turning_movementsReal_timeArchive2000 | F160: Turning_movementsArchive2002 | G160: Turning_movementsArchive04 | K160: ArchiveTravelTime
B161: Data File Variable22 Name | D161: 99_AM_Q18_1R06C02 | E161: 00_AM_Q14_3R06C01 | F161: 02_AM_Q48_1R06C02 | G161: 04_AM_Q64_1R06C02 | K161: 10_AM_Q50_1R05C01
B163: Question # (Where to find in survey) | D163: 18
B164: Question Format | D164: Boolean
B165: Values | D165: 0,1
B166: Value Labels | D166: 0=No;1=Yes
B167: Survey Variable23 Name | C167: Turning movements-Transfer | D167: Turning_movementsTranfer99
B168: Data File Variable23 Name | D168: 99_AM_Q18_1R06C03
B170: Question # (Where to find in survey) | D170: 18
B171: Question Format | D171: Text
B172: Values
B173: Value Labels
B174: Survey Variable24 Name | C174: Turning movements-Importance | D174: Turning_movementsImportance
B175: Data File Variable24 Name | D175: 99_AM_Q18_1R06C04TXT
B177: Question # (Where to find in survey) | D177: 18 | E177: 14 | F177: 48 | G177: 64
B178: Question Format | D178: Boolean | E178: Boolean | F178: Multiple Choice | G178: Multiple Choice
B179: Values | D179: 0,1 | E179: 0,1 | F179: 0,1,2 | G179: 0,1,2
B180: Value Labels | D180: 0=No;1=Yes | E180: 0=No;1=Yes | F180: 0=No;1=Yes;2=No Response | G180: 0=No;1=Yes;2=No Response
B181: Survey Variable25 Name | C181: Queues-Collect | D181: QueuesCollect99 | E181: QueuesReal_TimeCollect2000 | F181: QueuesCollect2002 | G181: QueuesCollect04
B182: Data File Variable25 Name | D182: 99_AM_Q18_1R07C01 | E182: 00_AM_Q14_1R07C01 | F182: 02_AM_Q48_1R07C01 | G182: 04_AM_Q64_1R07C01
B184: Question # (Where to find in survey) | D184: 18 | E184: 14 | F184: 48 | G184: 64 | K184: 50
B185: Question Format | D185: Boolean | E185: Boolean | F185: Multiple Choice | G185: Multiple Choice | K185: Boolean
B186: Values | D186: 0,1 | E186: 0,1 | F186: 0,1,2 | G186: 0,1,2 | K186: 0,1
B187: Value Labels | D187: 0=No;1=Yes | E187: 0=No;1=Yes | F187: 0=No;1=Yes;2=No Response | G187: 0=No;1=Yes;2=No Response | K187: 0=No;1=Yes
B188: Survey Variable26 Name | C188: Queues-Archive | D188: QueuesArchive99 | E188: QueuesReal_timeArchive2000 | F188: QueuesArchive2002 | G188: QueuesArchive04 | K188: ArchiveQueues
B189: Data File Variable26 Name | D189: 99_AM_Q18_1R07C02 | E189: 00_AM_Q14_3R07C01 | F189: 02_AM_Q48_1R07C02 | G189: 04_AM_Q64_1R07C02 | K189: 10_AM_Q50_1R10C01
B191: Question # (Where to find in survey) | D191: 18
B192: Question Format | D192: Boolean
B193: Values | D193: 0,1
B194: Value Labels | D194: 0=No;1=Yes
B195: Survey Variable27 Name | C195: Queues-Transfer | D195: QueuesTranfer99
B196: Data File Variable27 Name | D196: 99_AM_Q18_1R07C03
B198: Question # (Where to find in survey) | D198: 18
B199: Question Format | D199: Text
B200: Values
B201: Value Labels
B202: Survey Variable28 Name | C202: Queues-Importance | D202: QueuesImportance
B203: Data File Variable28 Name | D203: 99_AM_Q18_1R07C04TXT
B205: Question # (Where to find in survey) | D205: 18 | E205: 14 | F205: 48 | G205: 64
B206: Question Format | D206: Boolean | E206: Boolean | F206: Multiple Choice | G206: Multiple Choice
B207: Values | D207: 0,1 | E207: 0,1 | F207: 0,1,2 | G207: 0,1,2
B208: Value Labels | D208: 0=No;1=Yes | E208: 0=No;1=Yes | F208: 0=No;1=Yes;2=No Response | G208: 0=No;1=Yes;2=No Response
B209: Survey Variable29 Name | C209: Phasing/cycle lengths-Collect | D209: PhasingCycle_lengthsCollect99 | E209: PhasingCycle_lengthsReal_TimeCollect2000 | F209: PhasingCycle_lengthsCollect2002 | G209: PhasingCycle_lengthsCollect04
B210: Data File Variable29 Name | D210: 99_AM_Q18_1R08C01 | E210: 00_AM_Q14_1R08C01 | F210: 02_AM_Q48_1R08C01 | G210: 04_AM_Q64_1R08C01
B212: Question # (Where to find in survey) | D212: 18 | E212: 14 | F212: 48 | G212: 64 | K212: 50
B213: Question Format | D213: Boolean | E213: Boolean | F213: Multiple Choice | G213: Multiple Choice | K213: Boolean
B214: Values | D214: 0,1 | E214: 0,1 | F214: 0,1,2 | G214: 0,1,2 | K214: 0,1
B215: Value Labels | D215: 0=No;1=Yes | E215: 0=No;1=Yes | F215: 0=No;1=Yes;2=No Response | G215: 0=No;1=Yes;2=No Response | K215: 0=No;1=Yes
B216: Survey Variable30 Name | C216: Phasing/cycle lengths-Archive | D216: PhasingCycle_lengthsArchive99 | E216: PhasingCycle_lengthsReal_timeArchive2000 | F216: PhasingCycle_lengthsArchive2002 | G216: PhasingCycle_lengthsArchive04 | K216: ArchivePhasing
B217: Data File Variable30 Name | D217: 99_AM_Q18_1R08C02 | E217: 00_AM_Q14_3R08C01 | F217: 02_AM_Q48_1R08C02 | G217: 04_AM_Q64_1R08C02 | K217: 10_AM_Q50_1R11C01
B219: Question # (Where to find in survey) | D219: 18
B220: Question Format | D220: Boolean
B221: Values | D221: 0,1
B222: Value Labels | D222: 0=No;1=Yes
B223: Survey Variable31 Name | C223: Phasing/cycle lengths-Transfer | D223: PhasingCycle_lengthsTranfer99
B224: Data File Variable31 Name | D224: 99_AM_Q18_1R08C03
B226: Question # (Where to find in survey) | D226: 18
B227: Question Format | D227: Text
B228: Values
B229: Value Labels
B230: Survey Variable32 Name | C230: Phasing/cycle lengths-Importance | D230: PhasingCycle_lengthsImportance
B231: Data File Variable32 Name | D231: 99_AM_Q18_1R08C04TXT
B233: Question # (Where to find in survey) | D233: 18 | E233: 14 | F233: 48 | G233: 64
B234: Question Format | D234: Boolean | E234: Boolean | F234: Multiple Choice | G234: Multiple Choice
B235: Values | D235: 0,1 | E235: 0,1 | F235: 0,1,2 | G235: 0,1,2
B236: Value Labels | D236: 0=No;1=Yes | E236: 0=No;1=Yes | F236: 0=No;1=Yes;2=No Response | G236: 0=No;1=Yes;2=No Response
... 657 more rows

Sheet DSRC
B2: DSRC
C3: Choices (in batteries) | D3: 1999 | E3: 2000 | F3: 2002 | G3: 2004 | H3: 2005 | I3: 2006 | J3: 2007 | K3: 2010 | L3: 2013 | M3: 2016
B7: DSRC DEPLOYMENT
B8: Question Wording | L8: Is your agency familiar with Dedicated Short Range Communications (DSRC) technology?
B9: Question # (Where to find in survey) | L9: 55
B10: Question Format | L10: Multiple Choice
B11: Values | L11: 0,1,2
B12: Value Labels | L12: 0=No;1=Yes;2=No Response
B13: Survey Variable1 Name | C13: Familiar with DSRC | L13: FamiliarDSRC
B14: Data File Variable1 Name | L14: 13_AM_Q55_1R01C01
B16: Question Wording | L16: Does your agency currently use or have plans to use DSRC in operating any of its ITS infrastructure?
B17: Question # (Where to find in survey) | L17: 56
B18: Question Format | L18: Multiple Choice
B19: Values | L19: 1,2,3,4
B20: Value Labels | L20: 1=Currently use DSRC;2=Plan to us DSRC;3=No plans to use DSRC;4=NR
B21: Survey Variable1 Name | C21: Currently use DSRC | L21: CurrentlyUsePlanDSRC
B22: Data File Variable1 Name | L22: 13_AM_Q56_1R01C01
B24: DSRC APPLICATIONS
B25: Question Wording | L25: Is your agency using or does it plan to use any DSRC-enabled technologies to support the deployment of the following
B26: Question # (Where to find in survey) | L26: 57
B27: Question Format | L27: Boolean
B28: Values | L28: 0,1
B29: Value Labels | L29: 0=No;1=Yes
B30: Survey Variable1 Name | C30: Safety applications (e.g. intersection collision avoidance) - currently use | L30: DSRCSafetyCurrently
B31: Data File Variable1 Name | L31: 13_AM_Q57_1R01C01
B33: Question # (Where to find in survey) | L33: 57
B34: Question Format | L34: Boolean
B35: Values | L35: 0,1
B36: Value Labels | L36: 0=No;1=Yes
B37: Survey Variable2 Name | C37: Mobility applications - currently use | L37: DSRCMobilityCurrently
B38: Data File Variable2 Name | L38: 13_AM_Q57_1R02C01
B40: Question # (Where to find in survey) | L40: 57
B41: Question Format | L41: Boolean
B42: Values | L42: 0,1
B43: Value Labels | L43: 0=No;1=Yes
B44: Survey Variable3 Name | C44: Tolling operations - currently use | L44: DSRCTollingCurrently
B45: Data File Variable3 Name | L45: 13_AM_Q57_1R03C01
B47: Question # (Where to find in survey) | L47: 57
B48: Question Format | L48: Boolean
B49: Values | L49: 0,1
B50: Value Labels | L50: 0=No;1=Yes
B51: Survey Variable4 Name | C51: Commercial Vehicle Operations and regulation - currently use | L51: DSRCCommercialCurrently
B52: Data File Variable4 Name | L52: 13_AM_Q57_1R04C01
B54: Question # (Where to find in survey) | L54: 57
B55: Question Format | L55: Boolean
B56: Values | L56: 0,1
B57: Value Labels | L57: 0=No;1=Yes
B58: Survey Variable5 Name | C58: Safety applications (e.g. intersection collision avoidance) - plan to use | L58: DSRCSafetyPlan
B59: Data File Variable5 Name | L59: 13_AM_Q57_1R01C02
B61: Question # (Where to find in survey) | L61: 57
B62: Question Format | L62: Boolean
B63: Values | L63: 0,1
B64: Value Labels | L64: 0=No;1=Yes
B65: Survey Variable6 Name | C65: Mobility applications - plan to use | L65: DSRCMobilityPlan
B66: Data File Variable6 Name | L66: 13_AM_Q57_1R02C02
B68: Question # (Where to find in survey) | L68: 57
B69: Question Format | L69: Boolean
B70: Values | L70: 0,1
B71: Value Labels | L71: 0=No;1=Yes
B72: Survey Variable7 Name | C72: Tolling operations - plan to use | L72: DSRCTollingPlan
B73: Data File Variable7 Name | L73: 13_AM_Q57_1R03C02
B75: Question # (Where to find in survey) | L75: 57
B76: Question Format | L76: Boolean
B77: Values | L77: 0,1
B78: Value Labels | L78: 0=No;1=Yes
B79: Survey Variable8 Name | C79: Commercial Vehicle Operations and regulation- plan to use | L79: DSRCCommercialPlan
B80: Data File Variable8 Name | L80: 13_AM_Q57_1R04C02
B82: Question # (Where to find in survey) | L82: 57
B83: Question Format | L83: Boolean
B84: Values | L84: 0,1
B85: Value Labels | L85: 0=No;1=Yes
B86: Survey Variable9 Name | C86: Safety applications (e.g. intersection collision avoidance) - no plan to use | L86: DSRCSafetyNoplans
B87: Data File Variable9 Name | L87: 13_AM_Q57_1R01C03
B89: Question # (Where to find in survey) | L89: 57
B90: Question Format | L90: Boolean
B91: Values | L91: 0,1
B92: Value Labels | L92: 0=No;1=Yes
B93: Survey Variable10 Name | C93: Mobility applications - no plan to use | L93: DSRCMobilityNoplans
B94: Data File Variable10 Name | L94: 13_AM_Q57_1R02C03
B96: Question # (Where to find in survey) | L96: 57
B97: Question Format | L97: Boolean
B98: Values | L98: 0,1
B99: Value Labels | L99: 0=No;1=Yes
B100: Survey Variable11 Name | C100: Tolling operations - no plan to use | L100: DSRCTollingNoplans
B101: Data File Variable11 Name | L101: 13_AM_Q57_1R03C03
B103: Question # (Where to find in survey) | L103: 57
B104: Question Format | L104: Boolean
B105: Values | L105: 0,1
B106: Value Labels | L106: 0=No;1=Yes
B107: Survey Variable12 Name | C107: Commercial Vehicle Operations and regulation - no plan to use | L107: DSRCCommercialNoplans
B108: Data File Variable12 Name | L108: 13_AM_Q57_1R04C03

Sheet DMS
B2: Dynamic Message Signs (DMS)
C3: Choices (in batteries) | D3: 1999 | E3: 2000 | F3: 2002 | G3: 2004 | H3: 2005 | I3: 2006 | J3: 2007 | K3: 2010 | L3: 2013 | M3: 2016
B7: VARIABLE MESSAGE SIGNS LOCATIONS
B8: Question Wording | D8: Number of candidate locations for deployment of VMS where VMS has been or will be deployed
B9: Question # (Where to find in survey) | D9: 12
B10: Question Format | D10: Numeric
B11: Values
B12: Value Labels
B13: Survey Variable1 Name | C13: Total candidate locations | D13: VMSCandidateLocations1999
B14: Data File Variable1 Name | D14: 99_AM_Q12_2R02C01
D16: Please describe criteria used to identify these locations
B17: Question # (Where to find in survey) | D17: 12
B18: Question Format | D18: Text
B19: Values
B20: Value Labels
B21: Survey Variable1 Name | C21: VMS deployment criteria | D21: VMSLocationCriteria
B22: Data File Variable1 Name | D22: 99_AM_Q12_2R04C01TXT
B24: Question Wording | D24: Have you identified candidate locations for the deployment of Variable Message Signs (VMS) on arterials?
B25: Question # (Where to find in survey) | D25: 12
B26: Question Format | D26: Boolean
B27: Values | D27: 0,1
B28: Value Labels | D28: 0=No;1=Yes
B29: Survey Variable1 Name | C29: VMS sites identified | D29: VMSIdentified
B30: Data File Variable1 Name | D30: 99_AM_Q12_1R01C01
B32: VARIABLE MESSAGE SIGNS (VMS); DYNAMIC MESSAGE SIGNS (DMS)
B33: Question Wording | E33: Total number of Permanent VMS deployed on arterials | F33: Total number of Permanent CMS deployed on arterials | G33: Total number of Permanent CMS deployed on arterials | H33: Total number of Permanent CMS deployed on arterials | I33: Total number of Permanent DMS deployed on arterials | J33: Total number of Permanent DMS deployed on arterials | K33: Total number of Permanent DMS deployed on arterials | L33: Total number of Permanent DMS deployed on arterials | M33: Total number of Permanent DMS deployed on arterials
B34: Question # (Where to find in survey) | E34: 10 | F34: 09 | G34: 17 | H34: 06 | I34: 21 | J34: 21 | K34: 28 | L34: 40 | M34: 34
B35: Question Format | E35: Numeric | F35: Numeric | G35: Numeric | H35: Numeric | I35: Numeric | J35: Numeric | K35: Numeric | L35: Numeric | M35: Numeric
B36: Values
B37: Value Labels
B38: Survey Variable1 Name | C38: Permanent VMS | E38: PermanentVMS2000 | F38: PermanentVMS2002 | G38: PermanentVMS2004 | H38: PermanentVMS2005 | I38: PermanenVMS2006 | J38: PermanentVMS2007 | K38: DMSNumber | L38: NumberOfDMS | M38: NumberOfDMS
B39: Data File Variable1 Name | E39: 00_AM_Q10_1R02C01 | F39: 02_AM_Q09_1R01C01 | G39: 04_AM_Q17_1R01C01 | H39: 05_AM_Q06_1R01C01 | I39: 06_AM_Q21_1R01C01 | J39: 07_AM_Q21_1R01C01 | K39: 10_AM_Q28_1R01C01 | L39: 13_AM_Q40_1R01C01 | M39: 16_AM_Q34_1R01C01
B41: Question Wording | E41: Total Number of Portable VMS deployed on arterials
B42: Question # (Where to find in survey) | E42: 10
B43: Question Format | E43: Numeric
B44: Values
B45: Value Labels
B46: Survey Variable1 Name | C46: Portable VMS | E46: PortableVMS2000
B47: Data File Variable1 Name | E47: 00_AM_Q10_1R03C01
B49: MULTIMODAL TRAVELER INFORMATION SYSTEM PLAN
B50: Question Wording | E50: Do you have a regional multi-modal traveler information system plan?
B51: Question # (Where to find in survey) | E51: 10
B52: Question Format | E52: Multiple Choice
B53: Values | E53: 0,1,2
B54: Value Labels | E54: 0=No;1=Yes;2=No Response
B55: Survey Variable1 Name | C55: Multi modal traveler information | E55: MultiYearTravSys
B56: Data File Variable1 Name | E56: 00_AM_Q10_2R01C01
E58: Are the VMS considered part of this plan?
B59: Question # (Where to find in survey) | E59: 10
B60: Question Format | E60: Multiple Choice
B61: Values | E61: 0,1,2
B62: Value Labels | E62: 0=No;1=Yes;2=No Response
B63: Survey Variable1 Name | C63: VMS part of the plan | E63: VMSPartofPlan
B64: Data File Variable1 Name | E64: 00_AM_Q10_2R02C01
B66: VMS PLANS AND PROCEDURES
B67: Question Wording | E67: Do you have established procedures and policies related to the messages that are displayed on the VMS's?
B68: Question # (Where to find in survey) | E68: 10
B69: Question Format | E69: Multiple Choice
B70: Values | E70: 0,1,2
B71: Value Labels | E71: 0=No;1=Yes;2=No Response
B72: Survey Variable1 Name | C72: Policy procedures and VMS | E72: Policy_Procedure_VMS
B73: Data File Variable1 Name | E73: 00_AM_Q10_3R01C01
B75: Question Wording | E75: Indicate the types of messages your agency displays on VMS. | I75: What type of information is displayed on your DMS?
B76: Question # (Where to find in survey) | E76: 10
B77: Question Format | E77: Boolean
B78: Values | E78: 0,1
B79: Value Labels | E79: 0=No;1=Yes
B80: Survey Variable1 Name | C80: Freeway traffic congestion | E80: Freeway_traffic_congestion
B81: Data File Variable1 Name | E81: 00_AM_Q10_4R01C01
B83: Question # (Where to find in survey) | E83: 10
B84: Question Format | E84: Boolean
B85: Values | E85: 0,1
B86: Value Labels | E86: 0=No;1=Yes
B87: Survey Variable2 Name | C87: Arterial traffic congestion | E87: Arterial_traffic_congestion
B88: Data File Variable2 Name | E88: 00_AM_Q10_4R02C01
B90: Question # (Where to find in survey) | E90: 10
B91: Question Format | E91: Boolean
B92: Values | E92: 0,1
B93: Value Labels | E93: 0=No;1=Yes
B94: Survey Variable3 Name | C94: Travel times for freeways | E94: Travel_times_for_freeways
B95: Data File Variable3 Name | E95: 00_AM_Q10_4R03C01
B97: Question # (Where to find in survey) | E97: 10
B98: Question Format | E98: Boolean
B99: Values | E99: 0,1
B100: Value Labels | E100: 0=No;1=Yes
B101: Survey Variable4 Name | C101: Travel speeds for freeways | E101: Travel_speeds_for_freeways
B102: Data File Variable4 Name | E102: 00_AM_Q10_4R04C01
B104: Question # (Where to find in survey) | E104: 10
B105: Question Format | E105: Boolean
B106: Values | E106: 0,1
B107: Value Labels | E107: 0=No;1=Yes
B108: Survey Variable5 Name | C108: Travel times for arterials | E108: Travel_times_for_arterials
B109: Data File Variable5 Name | E109: 00_AM_Q10_4R05C01
B111: Question # (Where to find in survey) | E111: 10
B112: Question Format | E112: Boolean
B113: Values | E113: 0,1
B114: Value Labels | E114: 0=No;1=Yes
B115: Survey Variable6 Name | C115: Incident information | E115: Incident_information
B116: Data File Variable6 Name | E116: 00_AM_Q10_4R06C01
B118: Question # (Where to find in survey) | E118: 10
B119: Question Format | E119: Boolean
B120: Values | E120: 0,1
B121: Value Labels | E121: 0=No;1=Yes
B122: Survey Variable7 Name | C122: Construction/Maintenance activities | E122: ConstructionMaintenance_act
B123: Data File Variable7 Name | E123: 00_AM_Q10_4R07C01
B125: Question # (Where to find in survey) | E125: 10
B126: Question Format | E126: Boolean
B127: Values | E127: 0,1
B128: Value Labels | E128: 0=No;1=Yes
B129: Survey Variable8 Name | C129: Alternate routing directions | E129: Alternate_routing_directions
B130: Data File Variable8 Name | E130: 00_AM_Q10_4R08C01
B132: Question # (Where to find in survey) | E132: 10
B133: Question Format | E133: Boolean
B134: Values | E134: 0,1
B135: Value Labels | E135: 0=No;1=Yes
B136: Survey Variable9 Name | C136: Alternate travel mode information | E136: Alternate_travel_mode_info
B137: Data File Variable9 Name | E137: 00_AM_Q10_4R09C01
B139: Question # (Where to find in survey) | E139: 10
B140: Question Format | E140: Boolean
B141: Values | E141: 0,1
B142: Value Labels | E142: 0=No;1=Yes
B143: Survey Variable10 Name | C143: Weather/Roadway conditions alerts | E143: WeatherRoadway_conditions_alerts
B144: Data File Variable10 Name | E144: 00_AM_Q10_4R10C01
B146: Question # (Where to find in survey) | E146: 10
B147: Question Format | E147: Boolean
B148: Values | E148: 0,1
B149: Value Labels | E149: 0=No;1=Yes
B150: Survey Variable11 Name | C150: Roadway access control (e.g., HOV, trucks) | E150: Roadway_access_control
B151: Data File Variable11 Name | E151: 00_AM_Q10_4R11C01
B153: Question # (Where to find in survey) | E153: 10
B154: Question Format | E154: Boolean
B155: Values | E155: 0,1
B156: Value Labels | E156: 0=No;1=Yes
B157: Survey Variable12 Name | C157: Parking information | E157: Parking_information
B158: Data File Variable12 Name | E158: 00_AM_Q10_4R12C01
B160: Question # (Where to find in survey) | E160: 10
B161: Question Format | E161: Boolean
B162: Values | E162: 0,1
B163: Value Labels | E163: 0=No;1=Yes
B164: Survey Variable13 Name | C164: Upcoming event information | E164: Upcoming_event_information
B165: Data File Variable13 Name | E165: 00_AM_Q10_4R13C01
B167: Question # (Where to find in survey) | E167: 10
B168: Question Format | E168: Boolean
B169: Values | E169: 0,1
B170: Value Labels | E170: 0=No;1=Yes
B171: Survey Variable14 Name | C171: Safety related messages | E171: Safety_related_messages
B172: Data File Variable14 Name | E172: 00_AM_Q10_4R14C01
B174: Question # (Where to find in survey) | E174: 10
B175: Question Format | E175: Boolean
B176: Values | E176: 0,1
B177: Value Labels | E177: 0=No;1=Yes
B178: Survey Variable15 Name | C178: Air quality alerts | E178: Air_quality_alerts
B179: Data File Variable15 Name | E179: 00_AM_Q10_4R15C01
B181: Question # (Where to find in survey) | I181: 22
B182: Question Format | I182: Boolean
B183: Values | I183: 0,1
B184: Value Labels | I184: 0=No;1=Yes
B185: Survey Variable16 Name | C185: Travel time | I185: DMSinfoTraveltime
B186: Data File Variable16 Name | I186: 06_AM_Q22_1R01C01
B188: Question # (Where to find in survey) | I188: 22
B189: Question Format | I189: Boolean
B190: Values | I190: 0,1
B191: Value Labels | I191: 0=No;1=Yes
B192: Survey Variable17 Name | C192: Average speed | I192: DMSinfoAveragespeed
B193: Data File Variable17 Name | I193: 06_AM_Q22_1R02C01
B195: Question # (Where to find in survey) | I195: 22
B196: Question Format | I196: Boolean
B197: Values | I197: 0,1
B198: Value Labels | I198: 0=No;1=Yes
B199: Survey Variable18 Name | C199: Congestion | I199: DMSinfoCongestion
B200: Data File Variable18 Name | I200: 06_AM_Q22_1R03C01
B202: Question # (Where to find in survey) | I202: 22
B203: Question Format | I203: Boolean
B204: Values | I204: 0,1
B205: Value Labels | I205: 0=No;1=Yes
B206: Survey Variable19 Name | C206: Diversions | I206: DMSinfoDiversion
B207: Data File Variable19 Name | I207: 06_AM_Q22_1R04C01
B209: Question # (Where to find in survey) | I209: 22
B210: Question Format | I210: Boolean
B211: Values | I211: 0,1
B212: Value Labels | I212: 0=No;1=Yes
B213: Survey Variable20 Name | C213: Incident information | I213: DMSinfoIncidentinfo
B214: Data File Variable20 Name | I214: 06_AM_Q22_1R05C01
B216: Question # (Where to find in survey) | I216: 22
B217: Question Format | I217: Boolean
B218: Values | I218: 0,1
B219: Value Labels | I219: 0=No;1=Yes
B220: Survey Variable21 Name | C220: Maintenance and construction work site information | I220: DMSinfoConstruction
B221: Data File Variable21 Name | I221: 06_AM_Q22_1R06C01
B223: Question # (Where to find in survey) | I223: 22
B224: Question Format | I224: Boolean
B225: Values | I225: 0,1
B226: Value Labels | I226: 0=No;1=Yes
B227: Survey Variable22 Name | C227: Advisory speed limits | I227: DMSinfoSpeedadvisory
B228: Data File Variable22 Name | I228: 06_AM_Q22_1R07C01
B230: Question # (Where to find in survey) | I230: 22
B231: Question Format | I231: Boolean
B232: Values | I232: 0,1
B233: Value Labels | I233: 0=No;1=Yes
B234: Survey Variable23 Name | C234: Weather alerts | I234: DMSinfoWeatheralerts
... 81 more rows

Sheet Highway Rail Intersections
B2: Highway-Rail Intersections
C3: Choices (in batteries) | D3: 1999 | E3: 2000 | F3: 2002 | G3: 2004 | H3: 2005 | I3: 2006 | J3: 2007 | K3: 2010 | L3: 2013 | M3: 2016
B7: HIGHWAY-RAIL INTERSECTIONS
B8: Question Wording | D8: Number of highway-rail intersections contained within the metropolitan transportation planning boundary on roadways that your agency maintains | E8: Number of highway-rail intersections contained within the metropolitan transportation planning boundary on roadways that your agency maintains
B9: Question # (Where to find in survey) | D9: 01 | E9: 01
B10: Question Format | D10: Numeric | E10: Numeric
B11: Values
B12: Value Labels
B13: Survey Variable1 Name | C13: Number of Highway Rail intersections | D13: HighwayRailIntersections | E13: HighwayRailIntersections
B14: Data File Variable1 Name | D14: 99_AM_Q01_3R01C01 | E14: 00_AM_Q01_1R03C01
B16: Question Wording | D16: Number of highway-rail intersections contained within the metropolitan transportation planning boundary that your agency considers when planning for deployment of technologies for highway-rail intersection ITS strategies | E16: Number of highway-rail intersections contained within the metropolitan transportation planning boundary that your agency considers when planning for deployment of technologies for highway-rail intersection ITS strategies | F16: Total number of highway-rail intersections | G16: Total number of highway-rail intersections | H16: Total number of highway-rail intersections | I16: Total number of highway-rail intersections | J16: Total number of highway-rail intersections
B17: Question # (Where to find in survey) | D17: 01 | E17: 01 | F17: 10 | G17: 18 | H17: 07 | I17: 16 | J17: 16
B18: Question Format | D18: Numeric | E18: Numeric | F18: Numeric | G18: Numeric | H18: Numeric | I18: Numeric | J18: Numeric
B19: Values
B20: Value Labels
B21: Survey Variable1 Name | C21: Highway Rail Intersections considered | D21: HighwayRailIntersectionsITS | E21: HighwayRailIntersectionsITS | F21: HRI2002 | G21: HRI2004 | H21: HRI2005 | I21: HRI2006 | J21: HRI2007
B22: Data File Variable1 Name | D22: 99_AM_Q01_4R01C01 | E22: 00_AM_Q01_1R04C01 | F22: 02_AM_Q10_1R01C01 | G22: 04_AM_Q18_1R01C01 | H22: 05_AM_Q07_1R01C01 | I22: 06_AM_Q16_1R01C01 | J22: 07_AM_Q16_1R01C01
B24: HIGHWAY-RAIL INTERSECTIONS EQUIPPED WITH TRAFFIC SIGNALS
B25: Question Wording | D25: Number of signalized intersections operated by your agency within 200 feet of a highway-rail intersection | E25: Number of signalized intersections operated by your agency within 200 feet of a highway-rail intersection
B26: Question # (Where to find in survey) | D26: 06 | E26: 06
B27: Question Format | D27: Numeric | E27: Numeric
B28: Values
B29: Value Labels
B30: Survey Variable1 Name | C30: Signalized intersections within 200 feet | D30: Signals200Feet1999 | E30: Signals200Feet2000
B31: Data File Variable1 Name | D31: 99_AM_Q06_2R05C01 | E31: 00_AM_Q06_2R08C01
B33: Question Wording | D33: Number of signalized intersections operated by your agency within 200 feet of a highway-rail intersection that adjust signal timing in response to train crossing to avoid vehicle entrapment, or are interconnected with active crossing devices | E33: Number of signalized intersections operated by your agency within 200 feet of a highway-rail intersection that adjust signal timing in response to train crossing to avoid vehicle entrapment, or are interconnected with active crossing devices | F33: Number of signalized intersections operated by your agency within 200 feet of a highway-rail intersection that adjust signal timing in response to train crossing to avoid vehicle entrapment
B34: Question # (Where to find in survey) | D34: 06 | E34: 06 | F34: 05
B35: Question Format | D35: Numeric | E35: Numeric | F35: Numeric
B36: Values
B37: Value Labels
B38: Survey Variable1 Name | C38: Signalized intersections adjusted | D38: Signals200FeetAdjust1999 | E38: Signals200FeetAdjust2000 | F38: Signals200FeetAdjust2002
B39: Data File Variable1 Name | D39: 99_AM_Q06_2R06C01 | E39: 00_AM_Q06_2R09C01 | F39: 02_AM_Q05_1R01C01
B41: Question Wording | L41: Number of signalized intersections near a highway-rail intersection that utilize traffic signal preemption to flush a vehicle queue spilled back across an active highway-rail grade crossing: | M41: Number of signalized intersections near a highway-rail intersection that utilize traffic signal preemption to flush a vehicle queue spilled back across an active highway-rail grade crossing:
B42: Question # (Where to find in survey) | L42: 20 | M42: 15
B43: Question Format | L43: Numeric | M43: Numeric
B44: Values
B45: Value Labels
B46: Survey Variable1 Name | C46: Highway Rail Intersections queue spillback | L46: IntersectionsHriQueue | M46: IntersectionsHriQueue
B47: Data File Variable1 Name | L47: 13_AM_Q20_1R01C01 | M47: 16_AM_Q15_1R01C01
B49: HIGHWAY-RAIL INTERSECTION SURVEILLANCE
B50: Question Wording | D50: Has your agency deployed (or will your agency deploy by 2005) any of the following technologies associated with highway-rail intersections?
B51: Question # (Where to find in survey) | D51: 09
B52: Question Format | D52: Boolean
B53: Values | D53: 0,1
B54: Value Labels | D54: 0=No;1=Yes
B55: Survey Variable1 Name | C55: Deploy HRI technology | D55: DeployHRITechnologies
B56: Data File Variable1 Name | D56: 99_AM_Q09_1R01C01
B58: Question Wording | D58: Please record the number of highway-rail intersections that you operate which have the following capabilities: | E58: Number of highway rail intersections under electronic surveillance | F58: Number of highway rail intersections under electronic surveillance | G58: Number of highway rail intersections under electronic surveillance | H58: Number of highway rail intersections under electronic surveillance | I58: Number of highway rail intersections under electronic surveillance | J58: Number of highway rail intersections under electronic surveillance
B59: Question # (Where to find in survey) | E59: 09 | F59: 11 | G59: 19 | H59: 08 | I59: 17 | J59: 17
B60: Question Format | E60: Numeric | F60: Numeric | G60: Numeric | H60: Numeric | I60: Numeric | J60: Numeric
B61: Values
B62: Value Labels
B63: Survey Variable1 Name | C63: Total number of highway rail intersections under electronic surveillance | E63: HRIElecSurv2000 | F63: HRIElecSurv2002 | G63: HRIElecSurv2004 | H63: HRIElecSurv2005 | I63: HRIElecSurv2006 | J63: HRIElecSurv2007
B64: Data File Variable1 Name | E64: 00_AM_Q09_1R01C01 | F64: 02_AM_Q11_1R01C01 | G64: 04_AM_Q19_1R01C01 | H64: 05_AM_Q08_1R01C01 | I64: 06_AM_Q17_1R01C01 | J64: 07_AM_Q17_1R01C01
B66: Question # (Where to find in survey) | D66: 09 | E66: 09
B67: Question Format | D67: Numeric | E67: Numeric
B68: Values
B69: Value Labels
B70: Survey Variable2 Name | C70: Highway intersections with video surveillance | D70: Video_surveillanceHRI1999 | E70: Video_surveillanceHRI2000
B71: Data File Variable2 Name | D71: 99_AM_Q09_2R01C01 | E71: 00_AM_Q09_1R02C01
B73: Question # (Where to find in survey) | D73: 09 | E73: 09
B74: Question Format | D74: Numeric | E74: Numeric
B75: Values
B76: Value Labels
B77: Survey Variable3 Name | C77: Highway rail intersections with electronic surveillance other than video | D77: Electronic_surveillanceHRI1999 | E77: Electronic_surveillanceHRI2000
B78: Data File Variable3 Name | D78: 99_AM_Q09_2R02C01 | E78: 00_AM_Q09_1R03C01
B80: Question # (Where to find in survey) | D80: 09 | E80: 09
B81: Question Format | D81: Numeric | E81: Numeric
B82: Values
B83: Value Labels
B84: Survey Variable4 Name | C84: Highway rail intersections with the ability to predict train arrivals electronically | D84: Ability_predict_arrivalsHRI1999 | E84: Predict_train_arrivalsHRI2000
B85: Data File Variable4 Name | D85: 99_AM_Q09_2R03C01 | E85: 00_AM_Q09_1R04C01
B87: Question # (Where to find in survey) | D87: 09 | E87: 09
B88: Question Format | D88: Numeric | E88: Numeric
B89: Values
B90: Value Labels
B91: Survey Variable5 Name | C91: Highway rail intersections equipped with electronic violator devices | D91: Equipped_with_devicesHRI1999 | E91: Elec_traffic_violator_devHRI2000
B92: Data File Variable5 Name | D92: 99_AM_Q09_2R04C01 | E92: 00_AM_Q09_1R05C01
B94: Question # (Where to find in survey) | F94: 12 | G94: 20
B95: Question Format | F95: Numeric | G95: Numeric
B96: Values
B97: Value Labels
B98: Survey Variable6 Name | C98: Total number of highway rail intersections with vehicle intrusion detection devices | F98: HRIvidd2002 | G98: HRIvidd2004
B99: Data File Variable6 Name | F99: 02_AM_Q12_1R01C01 | G99: 04_AM_Q20_1R01C01
B101: Question # (Where to find in survey) | D101: 09 | E101: 09
B102: Question Format | D102: Text | E102: Text
B103: Values
B104: Value Labels
B105: Survey Variable7 Name | C105: Other: Description | D105: Other_AMQ9 | E105: OTHER_AMQ9
B106: Data File Variable7 Name | D106: 99_AM_Q09_2R06C01TXT | E106: 00_AM_Q09_1R07C01TXT
B108: Question # (Where to find in survey) | D108: 09 | E108: 09
B109: Question Format | D109: Numeric | E109: Numeric
B110: Values
B111: Value Labels
B112: Survey Variable8 Name | C112: Other: Number | D112: Other_AMQ9HRI1999 | E112: OTHER_AMQ9HRI2000
B113: Data File Variable8 Name | D113: 99_AM_Q09_2R05C01 | E113: 00_AM_Q09_1R06C01

Sheet ICM
B2: ICM
C3: Choices (in batteries) | D3: 1999 | E3: 2000 | F3: 2002 | G3: 2004 | H3: 2005 | I3: 2006 | J3: 2007 | K3: 2010 | L3: 2013 | M3: 2016
B7: CORRIDOR CHARACTERISTICS
B8: Question Wording | K8: Have you identified corridors for the purpose of integrating operations across freeways, major arterials, and/or public transit services? | L8: Have you identified corridor(s) for the purpose of integrating operations across multiple transportation facilities (including freeways, major arterials, and public transit networks) in order to actively manage travel demand and capacity in the corridor as a whole? | M8: Have you identified corridor(s) for the purpose of integrating operations across multiple transportation facilities (including freeways, major arterials, and public transit networks) in order to actively manage travel demand and capacity in the corridor as a whole?
B9: Question # (Where to find in survey) | K9: 46 | L9: 58 | M9: 42
B10: Question Format | K10: Multiple Choice | L10: Multiple Choice | M10: Multiple Choice
B11: Values | K11: 0,1,2 | L11: 0,1,2 | M11: 0,1,2
B12: Value Labels | K12: 0=No;1=Yes;2=No Response | L12: 0=No;1=Yes;2=No Response | M12: 0=No;1=Yes;2=No Response
B13: Survey Variable1 Name | C13: ICM Corridors Identified | K13: IdentifyCorridors | L13: IcmIdentifiedCorridors | M13: ICMIdentifiedCorridors
B14: Data File Variable1 Name | K14: 10_AM_Q46_1R01C01 | L14: 13_AM_Q58_1R01C01 | M14: 16_AM_Q42_1R01C01
B16: Question # (Where to find in survey) | K16: 46
B17: Question Format | K17: Text
B18: Values
B19: Value Labels
B20: Survey Variable2 Name | C20: Corridor description | K20: CorridorsDescribe
B21: Data File Variable2 Name | K21: 10_AM_Q46_2R01C01TXT
B23: Question # (Where to find in survey) | K23: 46
B24: Question Format | K24: Text
B25: Values
B26: Value Labels
B27: Survey Variable3 Name | C27: Corridors coordinate | K27: CorridorsCoordinate
B28: Data File Variable3 Name | K28: 10_AM_Q46_2R02C01TXT
B30: Question Wording | L30: How many corridors have been identified for integrated transportation operations? | M30: How many corridors have been identified for integrated transportation operations?
B31: Question # (Where to find in survey) | L31: 58 | M31: 42
B32: Question Format | L32: Multiple Choice | M32: Multiple Choice
B33: Values | L33: 1,2,3,4 | M33: 1,2,3,4
B34: Value Labels | L34: 1=1 corridor identified;2=2 coridors identifed;3=3 orm more corridors identifed; 4=No Response | M34: 1=1 corridor identified; 2=2 corridors identified; 3=3 or more corridors identifeid; 4=No Response.
B35: Survey Variable1 Name | C35: Number of ICM Corridors | L35: IcmIdentifiedNumberCorridors | M35: ICMIdentifiedNumberCorridors
B36: Data File Variable1 Name | L36: 13_AM_Q58_2R01C01 | M36: 16_AM_Q42_2R01C01
B38: Question Wording | L38: The next set of questions all pertain specifically to the corridor you identified above. If you identified more than one corridor, please tell us about the corridor where the greatest level of coordination is taking place. In your responses, please do NOT include coordination efforts that are occurring outside the specific corridor you have identified. | M38: The next set of questions all pertain specifically to the corridor you identified above. If you identified more than one corridor, please tell us about the corridor where the greatest level of coordination is taking place. In your responses, please do NOT include coordination efforts that are occurring outside the specific corridor you have identified.
B39: Question # (Where to find in survey) | L39: 59 | M39: 43
B40: Question Format | L40: Text | M40: Text
B41: Values
B42: Value Labels
B43: Survey Variable1 Name | C43: Freeway name | L43: IcmNameFreeway | M43: ICMNameFreeway
B44: Data File Variable1 Name | L44: 13_AM_Q59_1R01C01TXT | M44: 16_AM_Q43_1R01C01TXT
B46: Question # (Where to find in survey) | L46: 59 | M46: 43
B47: Question Format | L47: Text | M47: Text
B48: Values
B49: Value Labels
B50: Survey Variable2 Name | C50: Arterial name | L50: IcmNameArterial | M50: ICMNameArterial
B51: Data File Variable2 Name | L51: 13_AM_Q59_1R02C01TXT | M51: 16_AM_Q43_2R01C01TXT
B53: Question # (Where to find in survey) | L53: 59 | M53: 43
B54: Question Format | L54: Text | M54: Text
B55: Values
B56: Value Labels
B57: Survey Variable3 Name | C57: Transit name | L57: IcmNameTransit | M57: ICMNameTransit
B58: Data File Variable3 Name | L58: 13_AM_Q59_1R03C01TXT | M58: 16_AM_Q43_3R01C01TXT
B60: Question # (Where to find in survey) | L60: 59 | M60: 43
B61: Question Format | L61: Text | M61: Text
B62: Values
B63: Value Labels
B64: Survey Variable4 Name | C64: Other Name | L64: IcmNameOther | M64: ICMNameOther
B65: Data File Variable4 Name | L65: 13_AM_Q59_1R04C01TXT | M65: 16_AM_Q43_4R01C01TXT
B67: Question Wording | L67: Approximately how long is the corridor? | M67: Approximately how long is the corridor?
B68: Question # (Where to find in survey) | L68: 60 | M68: 44
B69: Question Format | L69: Multiple Choice | M69: Multiple Choice
B70: Values | L70: 1,2,3,4,5 | M70: 1,2,3,4,5
B71: Value Labels | L71: 1=less than 10 miles; 2=11-20 miles; 3=31 - 50 miles; 4=More than 50 miles; 5=No Response | M71: 1=less than 10 miles; 2=11-20 miles; 3=31 - 50 miles; 4=More than 50 miles; 5=No Response.
B72: Survey Variable1 Name | C72: ICM Length | L72: IcmLength | M72: ICMLength
B73: Data File Variable1 Name | L73: 13_AM_Q60_1R01C01 | M73: 16_AM_Q44_1R01C01
B75: CORRIDOR AGREEMENTS
B76: Question Wording | L76: Has your agency signed any formal multi-jurisdictional or multi-agency Agreements, Memorandums of Understanding (MOUs), or other instruments with these coordinating agencies regarding the integrated operations of the corridor? | M76: Has your agency signed any formal multi-jurisdictional or multi-agency Agreements, Memorandums of Understanding (MOUs), or other instruments with these coordinating agencies regarding the integrated operations of the corridor?
B77: Question # (Where to find in survey) | L77: 62 | M77: 46
B78: Question Format | L78: Multiple Choice | M78: Multiple Choice
B79: Values | L79: 1,2,3,4,5 | M79: 1,2,3,4,5
B80: Value Labels | L80: 1=Yes, already signed; 2=No, but agreements, MOUs, or instruments are being developed (plan to sign); 3=No, there is no plan to develop or sign Agreements, MOUs, or other instruments; 4=Do not know' 5=No Reponse | M80: 1=Yes, already signed; 2=No, but agreements, MOUs, or instruments are being developed (plan to sign); 3=No, there is no plan to develop or sign Agreements, MOUs, or other instruments; 4=Do not know' 5=No Reponse
B81: Survey Variable1 Name | C81: Signed Agreement | L81: IcmSignedAgreements | M81: ICMSignedAgreements
B82: Data File Variable1 Name | L82: 13_AM_Q62_1R01C01 | M82: 16_AM_Q46_1R01C01
B84: Question Wording | L84: Number of instruments signed | M84: Number of instruments signed
B85: Question # (Where to find in survey) | L85: 62 | M85: 46
B86: Question Format | L86: Multiple Choice | M86: Multiple Choice
B87: Values | L87: 1,2,3 | M87: 1,2,3
B88: Value Labels | L88: 1=One instrument signed; 2=Multiple instruments signed; 3=No Response. | M88: 1=One instrument signed; 2=Multiple instruments signed; 3=No Response.
B89: Survey Variable1 Name | C89: Number of Signed Agreements | L89: IcmYesSignedAgreements | M89: ICMYesSignedAgreements
B90: Data File Variable1 Name | L90: 13_AM_Q62_2R01C01 | M90: 16_AM_Q46_2R01C01
B92: Question Wording | L92: Please describe what is covered by the Agreements, MOUs, or instruments: | M92: Please describe what is covered by the Agreements, MOUs, or instruments:
B93: Question # (Where to find in survey) | L93: 62 | M93: 46
B94: Question Format | L94: Text | M94: Text
B95: Values
B96: Value Labels
B97: Survey Variable1 Name | C97: Describe contents of agreement | L97: IcmDescribeCoverageAgreement | M97: ICMDescribeCoverageAgreement
B98: Data File Variable1 Name | L98: 13_AM_Q62_2R02C01TXT | M98: 16_AM_Q46_3R01C01TXT
B100: CORRIDOR PLANNING DOCUMENTS
B101: Question Wording | L101: Have the coordinating agencies in the corridor developed any of the following Management (ICM) documents for the corridor? For each item, a-d, select only one response.
B102: Question # (Where to find in survey) | L102: 67
B103: Question Format | L103: Boolean
B104: Values | L104: 0,1
B105: Value Labels | L105: 0=No;1=Yes
B106: Survey Variable1 Name | C106: ICM Concept of Operations-Document Complete | L106: IcmICMDocConopsComplete
B107: Data File Variable1 Name | L107: 13_AM_Q67_1R01C01
B109: Question # (Where to find in survey) | L109: 67
B110: Question Format | L110: Boolean
B111: Values | L111: 0,1
B112: Value Labels | L112: 0=No;1=Yes
B113: Survey Variable2 Name | C113: ICM Concept of Operations-Currently Developing | L113: IcmICMDocConopsDeveloping
B114: Data File Variable2 Name | L114: 13_AM_Q67_1R01C02
B116: Question # (Where to find in survey) | L116: 67
B117: Question Format | L117: Boolean
B118: Values | L118: 0,1
B119: Value Labels | L119: 0=No;1=Yes
B120: Survey Variable3 Name | C120: ICM Concept of Operations-No Immediate Plans to Develop | L120: IcmICMDocConopsNoplan
B121: Data File Variable3 Name | L121: 13_AM_Q67_1R01C03
B123: Question # (Where to find in survey) | L123: 67
B124: Question Format | L124: Boolean
B125: Values | L125: 0,1
B126: Value Labels | L126: 0=No;1=Yes
B127: Survey Variable4 Name | C127: ICM Concept of Operations-Plan to Develop in 2-3 Years | L127: IcmICMDocConopsPlans
B128: Data File Variable4 Name | L128: 13_AM_Q67_1R01C04
B130: Question # (Where to find in survey) | L130: 67
B131: Question Format | L131: Boolean
B132: Values | L132: 0,1
B133: Value Labels | L133: 0=No;1=Yes
B134: Survey Variable5 Name | C134: ICM Concept of Operations-Do Not Know | L134: IcmICMDocConopsDontknow
B135: Data File Variable5 Name | L135: 13_AM_Q67_1R01C05
B137: Question # (Where to find in survey) | L137: 67
B138: Question Format | L138: Boolean
B139: Values | L139: 0,1
B140: Value Labels | L140: 0=No;1=Yes
B141: Survey Variable6 Name | C141: ICM System Requirements Specifications (SyRS)-Document Complete | L141: IcmICMDocSyrsComplete
B142: Data File Variable6 Name | L142: 13_AM_Q67_1R02C01
B144: Question # (Where to find in survey) | L144: 67
B145: Question Format | L145: Boolean
B146: Values | L146: 0,1
B147: Value Labels | L147: 0=No;1=Yes
B148: Survey Variable7 Name | C148: ICM System Requirements Specifications (SyRS)-Currently Developing | L148: IcmICMDocSyrsDeveloping
B149: Data File Variable7 Name | L149: 13_AM_Q67_1R02C02
B151: Question # (Where to find in survey) | L151: 67
B152: Question Format | L152: Boolean
B153: Values | L153: 0,1
B154: Value Labels | L154: 0=No;1=Yes
B155: Survey Variable8 Name | C155: ICM System Requirements Specifications (SyRS)-No Immediate Plans to Develop | L155: IcmICMDocSyrsNoplan
B156: Data File Variable8 Name | L156: 13_AM_Q67_1R02C03
B158: Question # (Where to find in survey) | L158: 67
B159: Question Format | L159: Boolean
B160: Values | L160: 0,1
B161: Value Labels | L161: 0=No;1=Yes
B162: Survey Variable9 Name | C162: ICM System Requirements Specifications (SyRS)-Plan to Develop in 2-3 Years | L162: IcmICMDocSyrsPlans
B163: Data File Variable9 Name | L163: 13_AM_Q67_1R02C04
B165: Question # (Where to find in survey) | L165: 67
B166: Question Format | L166: Boolean
B167: Values | L167: 0,1
B168: Value Labels | L168: 0=No;1=Yes
B169: Survey Variable10 Name | C169: ICM System Requirements Specifications (SyRS)-Do Not Know | L169: IcmICMDocSyrsDontknow
B170: Data File Variable10 Name | L170: 13_AM_Q67_1R02C05
B172: Question # (Where to find in survey) | L172: 67
B173: Question Format | L173: Boolean
B174: Values | L174: 0,1
B175: Value Labels | L175: 0=No;1=Yes
B176: Survey Variable11 Name | C176: ICM Analysis Modeling and Simulation (AMS) Plan-Document Complete | L176: IcmICMDocAMSComplete
B177: Data File Variable11 Name | L177: 13_AM_Q67_1R03C01
B179: Question # (Where to find in survey) | L179: 67
B180: Question Format | L180: Boolean
B181: Values | L181: 0,1
B182: Value Labels | L182: 0=No;1=Yes
B183: Survey Variable12 Name | C183: ICM Analysis Modeling and Simulation (AMS) Plan-Currently Developing | L183: IcmICMDocAMSDeveloping
B184: Data File Variable12 Name | L184: 13_AM_Q67_1R03C02
B186: Question # (Where to find in survey) | L186: 67
B187: Question Format | L187: Boolean
B188: Values | L188: 0,1
B189: Value Labels | L189: 0=No;1=Yes
B190: Survey Variable13 Name | C190: ICM Analysis Modeling and Simulation (AMS) Plan-No Immediate Plans to Develop | L190: IcmICMDocAMSNoplan
B191: Data File Variable13 Name | L191: 13_AM_Q67_1R03C03
B193: Question # (Where to find in survey) | L193: 67
B194: Question Format | L194: Boolean
B195: Values | L195: 0,1
B196: Value Labels | L196: 0=No;1=Yes
B197: Survey Variable14 Name | C197: ICM Analysis Modeling and Simulation (AMS) Plan-Plan to Develop in 2-3 Years | L197: IcmICMDocAMSPlans
B198: Data File Variable14 Name | L198: 13_AM_Q67_1R03C04
B200: Question # (Where to find in survey) | L200: 67
B201: Question Format | L201: Boolean
B202: Values | L202: 0,1
B203: Value Labels | L203: 0=No;1=Yes
B204: Survey Variable15 Name | C204: ICM Analysis Modeling and Simulation (AMS) Plan-Do Not Know | L204: IcmICMDocAMSDontknow
B205: Data File Variable15 Name | L205: 13_AM_Q67_1R03C05
B207: Question # (Where to find in survey) | L207: 67
B208: Question Format | L208: Boolean
B209: Values | L209: 0,1
B210: Value Labels | L210: 0=No;1=Yes
B211: Survey Variable16 Name | C211: ICM Implementation Plan-Document Complete | L211: IcmICMDocPlanComplete
B212: Data File Variable16 Name | L212: 13_AM_Q67_1R04C01
B214: Question # (Where to find in survey) | L214: 67
B215: Question Format | L215: Boolean
B216: Values | L216: 0,1
B217: Value Labels | L217: 0=No;1=Yes
B218: Survey Variable17 Name | C218: ICM Implementation Plan-Currently Developing | L218: IcmICMDocPlanDeveloping
B219: Data File Variable17 Name | L219: 13_AM_Q67_1R04C02
B221: Question # (Where to find in survey) | L221: 67
B222: Question Format | L222: Boolean
B223: Values | L223: 0,1
B224: Value Labels | L224: 0=No;1=Yes
B225: Survey Variable18 Name | C225: ICM Implementation Plan-No Immediate Plans to Develop | L225: IcmICMDocPlanNoplan
B226: Data File Variable18 Name | L226: 13_AM_Q67_1R04C03
B228: Question # (Where to find in survey) | L228: 67
B229: Question Format | L229: Boolean
B230: Values | L230: 0,1
B231: Value Labels | L231: 0=No;1=Yes
B232: Survey Variable19 Name | C232: ICM Implementation Plan-Plan to Develop in 2-3 Years | L232: IcmICMDocPlanPlans
B233: Data File Variable19 Name | L233: 13_AM_Q67_1R04C04
B235: Question # (Where to find in survey) | L235: 67
... 1396 more rows

Sheet Incident Management
B2: Incident Management
C3: Choices (in batteries) | D3: 1999 | E3: 2000 | F3: 2002 | G3: 2004 | H3: 2005 | I3: 2006 | J3: 2007 | K3: 2010 | L3: 2013 | M3: 2016
B7: INCIDENT DETECTION AND VERIFICATION
B8: Question Wording | D8: Does your agency detect and verify incidents on arterial streets?
B9: Question # (Where to find in survey) | D9: 25
B10: Question Format | D10: Boolean
B11: Values | D11: 0,1
B12: Value Labels | D12: 0=No;1=Yes
B13: Survey Variable1 Name | C13: Detect and verify incidents | D13: DetectOrVerifyIncidents
B14: Data File Variable1 Name | D14: 99_AM_Q25_1R01C01
B16: Question Wording | E16: Do not detect/verify incidents | K16: Do Not Detect Incidents
B17: Question # (Where to find in survey) | E17: 30 | K17: 37
B18: Question Format | E18: Boolean | K18: Boolean
B19: Values | E19: 0,1 | K19: 0,1
B20: Value Labels | E20: 0=No;1=Yes | K20: 0=No;1=Yes
B21: Survey Variable1 Name | C21: Do Not Verify | E21: Do_not_detect_incidentsMiles2000 | K21: DetectIncidentsDoNot
B22: Data File Variable1 Name | E22: 00_AM_Q30_1R11C01 | K22: 10_AM_Q37_1R07C01
B24: ARTERIAL SERVICE PATROLS
B25: Question Wording | D25: Does your agency operate or sponsor (or will your agency operate or sponsor by 2005) any of the following service patrols to assist in the detection, verification, and response to incidents on arterial streets? | E25: Does your agency operate or sponsor (or will your agency operate or sponsor by 2005) any of the following service patrols to assist in the detection, verification, and response to incidents on arterial streets?
B26: Question # (Where to find in survey) | D26: 24 | E26: 29
B27: Question Format | D27: Boolean | E27: Boolean
B28: Values | D28: 0,1 | E28: 0,1
B29: Value Labels | D29: 0=No;1=Yes | E29: 0=No;1=Yes
B30: Survey Variable1 Name | C30: Publicly operated service patrol vehicles | D30: PublicServicePatrol | E30: PublicServicePatrol
B31: Data File Variable1 Name | D31: 99_AM_Q24_1R01C01 | E31: 00_AM_Q29_1R01C01
B33: Question # (Where to find in survey) | D33: 24 | E33: 29
B34: Question Format | D34: Boolean | E34: Boolean
B35: Values | D35: 0,1 | E35: 0,1
B36: Value Labels | D36: 0=No;1=Yes | E36: 0=No;1=Yes
B37: Survey Variable2 Name | C37: Privately operated service patrol vehicles operated under public contract | D37: PrivateServicePatrol | E37: PrivateServicePatrol
B38: Data File Variable2 Name | D38: 99_AM_Q24_2R01C01 | E38: 00_AM_Q29_1R02C01
B40: Question # (Where to find in survey) | D40: 24 | E40: 29
B41: Question Format | D41: Boolean | E41: Boolean
B42: Values | D42: 0,1 | E42: 0,1
B43: Value Labels | D43: 0=No;1=Yes | E43: 0=No;1=Yes
B44: Survey Variable3 Name | C44: No service patrol | D44: NoneServicePatrol | E44: NoneServicePatrol
B45: Data File Variable3 Name | D45: 99_AM_Q24_3R01C01 | E45: 00_AM_Q29_1R03C01
B47: Question Wording | F47: Total number of vehicles operated | G47: Total number of vehicles operated | H47: Total number of vehicles operated | I47: Total number of vehicles operated
B48: Question # (Where to find in survey) | F48: 19 | G48: 27 | H48: 16 | I48: 36
B49: Question Format | F49: Numeric | G49: Numeric | H49: Numeric | I49: Numeric
B50: Values
B51: Value Labels
B52: Survey Variable1 Name | C52: Vehicles operated | F52: spVehiclesOp2002 | G52: spVehiclesOp2004 | H52: SpVehicleSop2005 | I52: SpVehiclesOp2006
B53: Data File Variable1 Name | F53: 02_AM_Q19_1R01C01 | G53: 04_AM_Q27_1R01C01 | H53: 05_AM_Q16_1R01C01 | I53: 06_AM_Q36_1R01C01
B55: Question Wording | D55: Total number of arterial miles patrolled in 1999 | E55: Total number of arterial miles patrolled in 2000 | F55: Total number of arterial miles patrolled by service patrols | G55: Total number of arterial miles patrolled by service patrols | H55: Total number of arterial miles patrolled by service patrols | I55: Total number of arterial miles patrolled by service patrols | J55: Total number of arterial miles patrolled by service patrols | K55: Total number of arterial miles patrolled by service patrols | L55: Total number of arterial miles patrolled by service patrols | M55: Total number of arterial miles patrolled by service patrols
B56: Question # (Where to find in survey) | D56: 24 | E56: 29 | F56: 18 | G56: 26 | H56: 15 | I56: 35 | J56: 32 | K56: 35 | L56: 36 | M56: 30
B57: Question Format | D57: Numeric | E57: Numeric | F57: Numeric | G57: Numeric | H57: Numeric | I57: Numeric | J57: Numeric | K57: Numeric | L57: Numeric | M57: Numeric
B58: Values
B59: Value Labels
B60: Survey Variable1 Name | C60: Miles patrolled | D60: MilesServicePatrol1999 | E60: MilesServicePatrol2000 | F60: amServicePatrols2002 | G60: amServicePatrols2004 | H60: AMServicePatrols2005 | I60: AmservicePatrols2006 | J60: AMServicePatrols2007 | K60: MilesServicePatrols | L60: MilesServicePatrol | M60: MilesServicePatrol
B61: Data File Variable1 Name | D61: 99_AM_Q24_4R02C01 | E61: 00_AM_Q29_1R05C01 | F61: 02_AM_Q18_1R01C01 | G61: 04_AM_Q26_1R01C01 | H61: 05_AM_Q15_1R01C01 | I61: 06_AM_Q35_1R01C01 | J61: 07_AM_Q32_1R01C01 | K61: 10_AM_Q35_1R01C01 | L61: 13_AM_Q36_1R01C01 | M61: 16_AM_Q30_1R01C01
B63: Question Wording | F63: Hours of operation | G63: Hours of operation
B64: Question # (Where to find in survey) | F64: 20 | G64: 28
B65: Question Format | F65: Multiple Choice | G65: Multiple Choice
B66: Values | F66: 1,2,3,4 | G66: 1,2,3,4
B67: Value Labels | F67: 1=Peak hours only;2=24/7;3=Other;4=No Response | G67: 1=Peak hours only;2=24/7;3=Other;4=No Response
B68: Survey Variable1 Name | C68: Service hours | F68: SPservicehours | G68: SPservicehours
B69: Data File Variable1 Name | F69: 02_AM_Q20_1R01C01 | G69: 04_AM_Q28_1R01C01
B71: Question Wording | F71: Other | G71: Other
B72: Question # (Where to find in survey) | F72: 20 | G72: 28
B73: Question Format | F73: Text | G73: Text
B74: Values
B75: Value Labels
B76: Survey Variable1 Name | C76: Service hours other | F76: SPservicehours_other | G76: SPservicehours_other
B77: Data File Variable1 Name | F77: 02_AM_Q20_2R01C01TXT | G77: 04_AM_Q28_2R01C01TXT
B79: INCIDENT DETECTION AND VERIFICATION METHODS
B80: Question Wording | D80: Detection and verification methods used: Free Cellular Phone Call to Dedicated Number Other Than 911 | E80: Free Cellular Phone Call to Dedicated Number Other Than 911 | F80: Free Cellular Phone Call to Dedicated Number Other Than 911 | G80: Free Cellular Phone Call to Dedicated Number Other Than 911 | H80: Free Cellular Phone Call to Dedicated Number Other Than 911 | I80: Free Cellular Phone Call to Dedicated Number Other Than 911 | J80: Free Cellular Phone Call to Dedicated Number Other Than 911
B81: Question # (Where to find in survey) | D81: 25 | E81: 30 | F81: 21 | G81: 29 | H81: 17 | I81: 37 | J81: 33
B82: Question Format | D82: Numeric | E82: Numeric | F82: Numeric | G82: Numeric | H82: Numeric | I82: Numeric | J82: Numeric
B83: Values
B84: Value Labels
B85: Survey Variable1 Name | C85: Free Call to Other Than 911 | D85: Free_cell_othr_than911Miles_1999 | E85: IncDet_Free_cell_not_911Miles2000 | F85: IDVM_freecellular2002 | G85: IDVM_freecellular2004 | H85: IDVMFreeCellular2005 | I85: IDVMFreecellular2006 | J85: IDVMFreeCellular2007
B86: Data File Variable1 Name | D86: 99_AM_Q25_2R01C01 | E86: 00_AM_Q30_1R01C01 | F86: 02_AM_Q21_1R01C01 | G86: 04_AM_Q29_1R01C01 | H86: 05_AM_Q17_1R01C01 | I86: 06_AM_Q37_1R01C01 | J86: 07_AM_Q33_1R01C01
B88: Question Wording | D88: Detection and verification methods used: Free Cellular Phone Call to An Area Radio Station | E88: Free Cellular Phone Call to An Area Radio Station
B89: Question # (Where to find in survey) | D89: 25 | E89: 30
B90: Question Format | D90: Numeric | E90: Numeric
B91: Values
B92: Value Labels
B93: Survey Variable1 Name | C93: Free Call to Radio Station | D93: Free_cell_radio_staMiles_1999 | E93: Free_cell_RadioMiles2000
B94: Data File Variable1 Name | D94: 99_AM_Q25_2R02C01 | E94: 00_AM_Q30_1R02C01
B96: Question Wording | D96: Detection and verification methods used: Police Patrols | E96: Police Patrols
B97: Question # (Where to find in survey) | D97: 25 | E97: 30
B98: Question Format | D98: Numeric | E98: Numeric
B99: Values
B100: Value Labels
B101: Survey Variable1 Name | C101: Police Patrols | D101: Police_patrolsMiles_1999 | E101: IncDet_Police_patrolsMiles2000
B102: Data File Variable1 Name | D102: 99_AM_Q25_2R03C01 | E102: 00_AM_Q30_1R06C01
B104: Question Wording | D104: Detection and verification methods used: Computer Algorithms Linked to Traffic Surveillance Equipment | E104: Computer Algorithms | F104: Computer Algorithms | G104: Computer Algorithms | H104: Computer Algorithms | I104: Computer Algorithms | J104: Computer Algorithms | K104: Computer Algorithms to detect incidents | L104: Computer Algorithms to detect incidents | M104: Computer Algorithms to detect incidents
B105: Question # (Where to find in survey) | D105: 25 | E105: 30 | F105: 22 | G105: 30 | H105: 18 | I105: 38 | J105: 34 | K105: 36 | L105: 37 | M105: 31
B106: Question Format | D106: Numeric | E106: Numeric | F106: Numeric | G106: Numeric | H106: Numeric | I106: Numeric | J106: Numeric | K106: Numeric | L106: Numeric | M106: Numeric
B107: Values
B108: Value Labels
B109: Survey Variable1 Name | C109: Computer Algorithms | D109: Computer_algorithmsMiles_1999 | E109: Computer_algorithmsMiles2000 | F109: IDVM_computeralgorithms2002 | G109: IDVM_computeralgorithms2004 | H109: IDVMComputerAlgorithms2005 | I109: IDVMComputeralgorithms2006 | J109: IDVMComputerAlgorithms2007 | K109: MilesCompAlgor | L109: IncidentDetectionComputerMiles | M109: IncidentDetectionComputerMiles
B110: Data File Variable1 Name | D110: 99_AM_Q25_2R04C01 | E110: 00_AM_Q30_1R07C01 | F110: 02_AM_Q22_1R01C01 | G110: 04_AM_Q30_1R01C01 | H110: 05_AM_Q18_1R01C01 | I110: 06_AM_Q38_1R01C01 | J110: 07_AM_Q34_1R01C01 | K110: 10_AM_Q36_1R01C01 | L110: 13_AM_Q37_1R01C01 | M110: 16_AM_Q31_1R01C01
B112: Question Wording | D112: Detection and verification methods used: CCTV | E112: CCTV | F112: CCTV | G112: CCTV | H112: CCTV | I112: CCTV | J112: CCTV | K112: CCTV | L112: CCTV | M112: CCTV
B113: Question # (Where to find in survey) | D113: 25 | E113: 30 | F113: 23 | G113: 31 | H113: 19 | I113: 39 | J113: 35 | K113: 36 | L113: 37 | M113: 31
B114: Question Format | D114: Numeric | E114: Numeric | F114: Numeric | G114: Numeric | H114: Numeric | I114: Numeric | J114: Numeric | K114: Numeric | L114: Numeric | M114: Numeric
B115: Values
B116: Value Labels
B117: Survey Variable1 Name | C117: CCTV | D117: CCTVMiles_1999 | E117: IncDet_CCTVMiles2000 | F117: IDVM_CCTV2002 | G117: IDVM_CCTV2004 | H117: IDVMCCTV2005 | I117: IDVMCCTV2006 | J117: IDVMCCTV2007 | K117: MilesCCTV | L117: IncidentDetectionCCTVMiles | M117: IncidentDetectionCCTVMiles
B118: Data File Variable1 Name | D118: 99_AM_Q25_2R05C01 | E118: 00_AM_Q30_1R08C01 | F118: 02_AM_Q23_1R01C01 | G118: 04_AM_Q31_1R01C01 | H118: 05_AM_Q19_1R01C01 | I118: 06_AM_Q39_1R01C01 | J118: 07_AM_Q35_1R01C01 | K118: 10_AM_Q36_1R02C01 | L118: 13_AM_Q37_1R02C01 | M118: 16_AM_Q31_1R02C01
B120: Question Wording | E120: Cell call to 911
B121: Question # (Where to find in survey) | E121: 30
B122: Question Format | E122: Numeric
B123: Values
B124: Value Labels
B125: Survey Variable1 Name | C125: Cell Call to 911 | E125: IncDet_Cell_call_to_911Miles2000
B126: Data File Variable1 Name | E126: 00_AM_Q30_1R03C01
B128: Question Wording | E128: Cellular E-911
B129: Question # (Where to find in survey) | E129: 30
B130: Question Format | E130: Numeric
B131: Values
B132: Value Labels
B133: Survey Variable1 Name | C133: Cellular E-911 | E133: IncDet_Cell_E911Miles2000
B134: Data File Variable1 Name | E134: 00_AM_Q30_1R04C01
B136: Question Wording | E136: Service Patrol and/or maintenance vehicles
B137: Question # (Where to find in survey) | E137: 30
B138: Question Format | E138: Numeric
B139: Values
B140: Value Labels
B141: Survey Variable1 Name | C141: Patrol of Maintenance Detection | E141: IncDet_Service_patrol_Miles2000
B142: Data File Variable1 Name | E142: 00_AM_Q30_1R05C01
B144: Question Wording | E144: Call boxes
B145: Question # (Where to find in survey) | E145: 30
B146: Question Format | E146: Numeric
B147: Values
B148: Value Labels
B149: Survey Variable1 Name | C149: Call Boxes | E149: Call_boxesMiles2000
B150: Data File Variable1 Name | E150: 00_AM_Q30_1R10C01
B152: Question Wording | D152: Detection and verification methods used Other | E152: Other | F152: Other | G152: Other | L152: Other (please specify) | M152: Other (please specify)
B153: Question # (Where to find in survey) | D153: 25 | E153: 30 | F153: 24 | G153: 32 | L153: 37 | M153: 31
B154: Question Format | D154: Numeric | E154: Numeric | F154: Numeric | G154: Numeric | L154: Numeric | M154: Numeric
B155: Values
B156: Value Labels
B157: Survey Variable1 Name | C157: Other (please specify) | D157: Other_AMQ25Miles_1999 | E157: Other_AMQ30aMiles2000 | F157: IDVM_Other2002 | G157: IDVM_Other2004 | L157: IncidentDetectionOtherMiles | M157: IncidentDetectionOtherMiles
B158: Data File Variable1 Name | D158: 99_AM_Q25_2R07C01 | E158: 00_AM_Q30_1R12C01 | F158: 02_AM_Q24_1R01C01 | G158: 04_AM_Q32_1R01C01 | L158: 13_AM_Q37_1R03C01 | M158: 16_AM_Q31_1R03C01
B160: Question # (Where to find in survey) | L160: 37 | M160: 31
B161: Question Format | L161: Text | M161: Text
B162: Values
B163: Value Labels
B164: Survey Variable2 Name | C164: Other (please specify) | L164: IncidentDetectionOtherText | M164: IncidentDetectionOtherText
B165: Data File Variable2 Name | L165: 13_AM_Q37_1R04C01TXT | M165: 16_AM_Q31_1R04C01TXT
B167: Question # (Where to find in survey) | D167: 25 | E167: 30 | F167: 24 | G167: 32
B168: Question Format | D168: Text | E168: Text | F168: Text | G168: Text
B169: Values
B170: Value Labels
B171: Survey Variable3 Name | C171: Other (please specify) | D171: Other_AMQ25 | E171: Other_AMQ30a | F171: IDVM_Other | G171: IDVM_Other
B172: Data File Variable3 Name | D172: 99_AM_Q25_2R08C01TXT | E172: 00_AM_Q30_1R13C01TXT | F172: 02_AM_Q24_2R01C01TXT | G172: 04_AM_Q32_1R01C01TXT
B174: INCIDENT DETECTION AND VERIFICATION TECHNOLOGIES
B175: Question Wording | I175: Which of the following technologies/methods are used by your agency to detect arterial incidents? | J175: Which of the following technologies/methods are used by your agency to detect arterial incidents? | K175: Please indicate which of the following technologies your agency uses to detect arterial incidents:
B176: Question # (Where to find in survey) | I176: 41 | J176: 36 | K176: 37
B177: Question Format | I177: Boolean | J177: Boolean | K177: Boolean
B178: Values | I178: 0,1 | J178: 0,1 | K178: 0,1
B179: Value Labels | I179: 0=No;1=Yes | J179: 0=No;1=Yes | K179: 0=No;1=Yes
B180: Survey Variable1 Name | C180: Inductive loop or acoustic roadway detector technologies | I180: DetectIncidentInductive | J180: DetectIncidentInductive | K180: DetectIncidentsInductive
B181: Data File Variable1 Name | I181: 06_AM_Q41_1R01C01 | J181: 07_AM_Q36_1R01C01 | K181: 10_AM_Q37_1R01C01
B183: Question # (Where to find in survey) | I183: 41 | J183: 36 | K183: 37
B184: Question Format | I184: Boolean | J184: Boolean | K184: Boolean
B185: Values | I185: 0,1 | J185: 0,1 | K185: 0,1
B186: Value Labels | I186: 0=No;1=Yes | J186: 0=No;1=Yes | K186: 0=No;1=Yes
B187: Survey Variable2 Name | C187: Wireless enhanced 911 systems | I187: DetectIncidentEnhanced | J187: DetectIncidentEnhanced | K187: DetectIncidentsE911
B188: Data File Variable2 Name | I188: 06_AM_Q41_1R02C01 | J188: 07_AM_Q36_1R02C01 | K188: 10_AM_Q37_1R04C01
B190: Question # (Where to find in survey) | I190: 41 | J190: 36 | K190: 37
B191: Question Format | I191: Boolean | J191: Boolean | K191: Boolean
B192: Values | I192: 0,1 | J192: 0,1 | K192: 0,1
B193: Value Labels | I193: 0=No;1=Yes | J193: 0=No;1=Yes | K193: 0=No;1=Yes
B194: Survey Variable3 Name | C194: Mayday or Advanced Crash Notification (CAN) systems | I194: DetectIncidentMayday | J194: DetectIncidentMayday | K194: DetectIncidentsMayday
B195: Data File Variable3 Name | I195: 06_AM_Q41_1R03C01 | J195: 07_AM_Q36_1R03C01 | K195: 10_AM_Q37_1R03C01
B197: Question # (Where to find in survey) | I197: 41 | J197: 36 | K197: 37
B198: Question Format | I198: Boolean | J198: Boolean | K198: Boolean
B199: Values | I199: 0,1 | J199: 0,1 | K199: 0,1
B200: Value Labels | I200: 0=No;1=Yes | J200: 0=No;1=Yes | K200: 0=No;1=Yes
B201: Survey Variable4 Name | C201: Traveler reported information | I201: DetectIncidentTraveler | J201: DetectIncidentTraveler | K201: DetectIncidentsTraveler
B202: Data File Variable4 Name | I202: 06_AM_Q41_1R04C01 | J202: 07_AM_Q36_1R04C01 | K202: 10_AM_Q37_1R05C01
B204: Question # (Where to find in survey) | K204: 37
B205: Question Format | K205: Boolean
B206: Values | K206: 0,1
B207: Value Labels | K207: 0=No;1=Yes
B208: Survey Variable5 Name | C208: Public safety computer aided dispatch | K208: DetectIncidentsCad
B209: Data File Variable5 Name | K209: 10_AM_Q37_1R02C01
B211: Question # (Where to find in survey) | K211: 37
B212: Question Format | K212: Text
B213: Values
B214: Value Labels
B215: Survey Variable6 Name | C215: Other (please specify) | K215: DetectIncidentsOtherText
B216: Data File Variable6 Name | K216: 10_AM_Q37_1R06C01TXT
B218: ARTERIAL INCIDENT RESPONSE PROCEDURES
B219: Question Wording | D219: Does your agency have in place any of the following procedures for arterial incident response?
B220: Question # (Where to find in survey) | D220: 26
B221: Question Format | D221: Boolean
B222: Values | D222: 0,1
B223: Value Labels | D223: 0=No;1=Yes
B224: Survey Variable1 Name | C224: Arterial incident response procedures | D224: ArterialIncidentResponse
B225: Data File Variable1 Name | D225: 99_AM_Q26_1R01C01
D227: Yes, please indicate which ones
B228: Question # (Where to find in survey) | D228: 26
B229: Question Format | D229: Boolean
B230: Values | D230: 0,1
B231: Value Labels | D231: 0=No;1=Yes
B232: Survey Variable1 Name | C232: Working agreement(s)/arrangement(s) with other agencies | D232: WorkingAgreement
... 435 more rows

Sheet Integration
B2: Integration
C3: Choices (in batteries) | D3: 1999 | E3: 2000 | F3: 2002 | G3: 2004 | H3: 2005 | I3: 2006 | J3: 2007 | K3: 2010 | L3: 2013 | M3: 2016
B7: TRAFFIC LIGHTS TIMING PLAN SHARING
B8: Question Wording | D8: Please indicate the traffic signal agencies in your metropolitan area with which you share timing plan information, coordinate changes to timing plans, and/or turn over control of signals in 1999 and by 2005. (This is intended to be an exhaustive list of applicable agencies and your own agency will be included and can be ignored) | E8: The following information is used to determine the extent to which your agency is integrated with other arterial management agencies in your metropolitan area. Integration can occur through the sharing of information describing pre-agreed upon timing plans, coordination of changes to pre-agreed upon timing plans, and turning over control of signals during non-peak hours or special events.
B9: Question # (Where to find in survey) | D9: 20 | E9: 25
B10: Question Format | D10: Text | E10: Text
B11: Values
B12: Value Labels
B13: Survey Variable1 Name | C13: Agency Name (1) | D13: AgencyName_1_20 | E13: AgencyName_1_25
B14: Data File Variable1 Name | D14: 99_AM_Q20_1R01C01TXT | E14: 00_AM_Q25_1R01C01TXT
B16: Question # (Where to find in survey) | D16: 20 | E16: 25
B17: Question Format | D17: Boolean | E17: Boolean
B18: Values | D18: 0,1 | E18: 0,1
B19: Value Labels | D19: 0=No;1=Yes | E19: 0=No;1=Yes
B20: Survey Variable2 Name | C20: Share Timing (1) | D20: ShareTiming_1999_1 | E20: Share2000_1
B21: Data File Variable2 Name | D21: 99_AM_Q20_1R01C02 | E21: 00_AM_Q25_1R02C01
B23: Question # (Where to find in survey) | D23: 20 | E23: 25
B24: Question Format | D24: Boolean | E24: Boolean
B25: Values | D25: 0,1 | E25: 0,1
B26: Value Labels | D26: 0=No;1=Yes | E26: 0=No;1=Yes
B27: Survey Variable3 Name | C27: Coordinate Control (1) | D27: Coordinate_1999_1 | E27: Coordinate2000_1
B28: Data File Variable3 Name | D28: 99_AM_Q20_1R01C03 | E28: 00_AM_Q25_1R03C01
B30: Question # (Where to find in survey) | D30: 20 | E30: 25
B31: Question Format | D31: Boolean | E31: Boolean
B32: Values | D32: 0,1 | E32: 0,1
B33: Value Labels | D33: 0=No;1=Yes | E33: 0=No;1=Yes
B34: Survey Variable4 Name | C34: Turn Over Control (1) | D34: TurnOver_1999_1 | E34: Turnover2000_1
B35: Data File Variable4 Name | D35: 99_AM_Q20_1R01C04 | E35: 00_AM_Q25_1R04C01
B37: Question # (Where to find in survey) | D37: 20 | E37: 25
B38: Question Format | D38: Text | E38: Text
B39: Values
B40: Value Labels
B41: Survey Variable5 Name | C41: Agency Name (2) | D41: AgencyName_2_20 | E41: AgencyName_2_25
B42: Data File Variable5 Name | D42: 99_AM_Q20_1R02C01TXT | E42: 00_AM_Q25_1R05C01TXT
B44: Question # (Where to find in survey) | D44: 20 | E44: 25
B45: Question Format | D45: Boolean | E45: Boolean
B46: Values | D46: 0,1 | E46: 0,1
B47: Value Labels | D47: 0=No;1=Yes | E47: 0=No;1=Yes
B48: Survey Variable6 Name | C48: Share Timing (2) | D48: ShareTiming_1999_2 | E48: Share2000_2
B49: Data File Variable6 Name | D49: 99_AM_Q20_1R02C02 | E49: 00_AM_Q25_1R06C01
B51: Question # (Where to find in survey) | D51: 20 | E51: 25
B52: Question Format | D52: Boolean | E52: Boolean
B53: Values | D53: 0,1 | E53: 0,1
B54: Value Labels | D54: 0=No;1=Yes | E54: 0=No;1=Yes
B55: Survey Variable7 Name | C55: Coordinate Control (2) | D55: Coordinate_1999_2 | E55: Coordinate2000_2
B56: Data File Variable7 Name | D56: 99_AM_Q20_1R02C03 | E56: 00_AM_Q25_1R07C01
B58: Question # (Where to find in survey) | D58: 20 | E58: 25
B59: Question Format | D59: Boolean | E59: Boolean
B60: Values | D60: 0,1 | E60: 0,1
B61: Value Labels | D61: 0=No;1=Yes | E61: 0=No;1=Yes
B62: Survey Variable8 Name | C62: Turn Over Control (2) | D62: TurnOver_1999_2 | E62: Turnover2000_2
B63: Data File Variable8 Name | D63: 99_AM_Q20_1R02C04 | E63: 00_AM_Q25_1R08C01
A65: 1 | B65: Question # (Where to find in survey) | D65: 20 | E65: 25
B66: Question Format | D66: Text | E66: Text
B67: Values
B68: Value Labels
B69: Survey Variable9 Name | C69: Agency Name (3) | D69: AgencyName_3_20 | E69: AgencyName_3_25
B70: Data File Variable9 Name | D70: 99_AM_Q20_1R03C01TXT | E70: 00_AM_Q25_1R09C01TXT
B72: Question # (Where to find in survey) | D72: 20 | E72: 25
B73: Question Format | D73: Boolean | E73: Boolean
B74: Values | D74: 0,1 | E74: 0,1
B75: Value Labels | D75: 0=No;1=Yes | E75: 0=No;1=Yes
B76: Survey Variable10 Name | C76: Share Timing (3) | D76: ShareTiming_1999_3 | E76: Share2000_3
B77: Data File Variable10 Name | D77: 99_AM_Q20_1R03C02 | E77: 00_AM_Q25_1R10C01
B79: Question # (Where to find in survey) | D79: 20 | E79: 25
B80: Question Format | D80: Boolean | E80: Boolean
B81: Values | D81: 0,1 | E81: 0,1
B82: Value Labels | D82: 0=No;1=Yes | E82: 0=No;1=Yes
B83: Survey Variable11 Name | C83: Coordinate Control (3) | D83: Coordinate_1999_3 | E83: Coordinate2000_3
B84: Data File Variable11 Name | D84: 99_AM_Q20_1R03C03 | E84: 00_AM_Q25_1R11C01
B86: Question # (Where to find in survey) | D86: 20 | E86: 25
B87: Question Format | D87: Boolean | E87: Boolean
B88: Values | D88: 0,1 | E88: 0,1
B89: Value Labels | D89: 0=No;1=Yes | E89: 0=No;1=Yes
B90: Survey Variable12 Name | C90: Turn Over Control (3) | D90: TurnOver_1999_3 | E90: Turnover2000_3
B91: Data File Variable12 Name | D91: 99_AM_Q20_1R03C04 | E91: 00_AM_Q25_1R12C01
B93: Question # (Where to find in survey) | D93: 20 | E93: 25
B94: Question Format | D94: Text | E94: Text
B95: Values
B96: Value Labels
B97: Survey Variable13 Name | C97: Agency Name (4) | D97: AgencyName_4_20 | E97: AgencyName_4_25
B98: Data File Variable13 Name | D98: 99_AM_Q20_1R04C01TXT | E98: 00_AM_Q25_1R13C01TXT
B100: Question # (Where to find in survey) | D100: 20 | E100: 25
B101: Question Format | D101: Boolean | E101: Boolean
B102: Values | D102: 0,1 | E102: 0,1
B103: Value Labels | D103: 0=No;1=Yes | E103: 0=No;1=Yes
B104: Survey Variable14 Name | C104: Share Timing (4) | D104: ShareTiming_1999_4 | E104: Share2000_4
B105: Data File Variable14 Name | D105: 99_AM_Q20_1R04C02 | E105: 00_AM_Q25_1R14C01
B107: Question # (Where to find in survey) | D107: 20 | E107: 25
B108: Question Format | D108: Boolean | E108: Boolean
B109: Values | D109: 0,1 | E109: 0,1
B110: Value Labels | D110: 0=No;1=Yes | E110: 0=No;1=Yes
B111: Survey Variable15 Name | C111: Coordinate Control (4) | D111: Coordinate_1999_4 | E111: Coordinate2000_4
B112: Data File Variable15 Name | D112: 99_AM_Q20_1R04C03 | E112: 00_AM_Q25_1R15C01
B114: Question # (Where to find in survey) | D114: 20 | E114: 25
B115: Question Format | D115: Boolean | E115: Boolean
B116: Values | D116: 0,1 | E116: 0,1
B117: Value Labels | D117: 0=No;1=Yes | E117: 0=No;1=Yes
B118: Survey Variable16 Name | C118: Turn Over Control (4) | D118: TurnOver_1999_4 | E118: Turnover2000_4
B119: Data File Variable16 Name | D119: 99_AM_Q20_1R04C04 | E119: 00_AM_Q25_1R16C01
B121: Question # (Where to find in survey) | D121: 20 | E121: 25
B122: Question Format | D122: Text | E122: Text
B123: Values
B124: Value Labels
B125: Survey Variable17 Name | C125: Agency Name (5) | D125: AgencyName_5_20 | E125: AgencyName_5_25
B126: Data File Variable17 Name | D126: 99_AM_Q20_1R05C01TXT | E126: 00_AM_Q25_1R17C01TXT
B128: Question # (Where to find in survey) | D128: 20 | E128: 25
B129: Question Format | D129: Boolean | E129: Boolean
B130: Values | D130: 0,1 | E130: 0,1
B131: Value Labels | D131: 0=No;1=Yes | E131: 0=No;1=Yes
B132: Survey Variable18 Name | C132: Share Timing (5) | D132: ShareTiming_1999_5 | E132: Share2000_5
B133: Data File Variable18 Name | D133: 99_AM_Q20_1R05C02 | E133: 00_AM_Q25_1R18C01
B135: Question # (Where to find in survey) | D135: 20 | E135: 25
B136: Question Format | D136: Boolean | E136: Boolean
B137: Values | D137: 0,1 | E137: 0,1
B138: Value Labels | D138: 0=No;1=Yes | E138: 0=No;1=Yes
B139: Survey Variable19 Name | C139: Coordinate Control (5) | D139: Coordinate_1999_5 | E139: Coordinate2000_5
B140: Data File Variable19 Name | D140: 99_AM_Q20_1R05C03 | E140: 00_AM_Q25_1R19C01
B142: Question # (Where to find in survey) | D142: 20 | E142: 25
B143: Question Format | D143: Boolean | E143: Boolean
B144: Values | D144: 0,1 | E144: 0,1
B145: Value Labels | D145: 0=No;1=Yes | E145: 0=No;1=Yes
B146: Survey Variable20 Name | C146: Turn Over Control (5) | D146: TurnOver_1999_5 | E146: Turnover2000_5
B147: Data File Variable20 Name | D147: 99_AM_Q20_1R05C04 | E147: 00_AM_Q25_1R20C01
B149: Question # (Where to find in survey) | D149: 20 | E149: 25
B150: Question Format | D150: Text | E150: Text
B151: Values
B152: Value Labels
B153: Survey Variable21 Name | C153: Agency Name (6) | D153: AgencyName_6_20 | E153: AgencyName_6_25
B154: Data File Variable21 Name | D154: 99_AM_Q20_1R06C01TXT | E154: 00_AM_Q25_1R21C01TXT
B156: Question # (Where to find in survey) | D156: 20 | E156: 25
B157: Question Format | D157: Boolean | E157: Boolean
B158: Values | D158: 0,1 | E158: 0,1
B159: Value Labels | D159: 0=No;1=Yes | E159: 0=No;1=Yes
B160: Survey Variable22 Name | C160: Share Timing (6) | D160: ShareTiming_1999_6 | E160: Share2000_6
B161: Data File Variable22 Name | D161: 99_AM_Q20_1R06C02 | E161: 00_AM_Q25_1R22C01
B163: Question # (Where to find in survey) | D163: 20 | E163: 25
B164: Question Format | D164: Boolean | E164: Boolean
B165: Values | D165: 0,1 | E165: 0,1
B166: Value Labels | D166: 0=No;1=Yes | E166: 0=No;1=Yes
B167: Survey Variable23 Name | C167: Coordinate Control (6) | D167: Coordinate_1999_6 | E167: Coordinate2000_6
B168: Data File Variable23 Name | D168: 99_AM_Q20_1R06C03 | E168: 00_AM_Q25_1R23C01
B170: Question # (Where to find in survey) | D170: 20 | E170: 25
B171: Question Format | D171: Boolean | E171: Boolean
B172: Values | D172: 0,1 | E172: 0,1
B173: Value Labels | D173: 0=No;1=Yes | E173: 0=No;1=Yes
B174: Survey Variable24 Name | C174: Turn Over Control (6) | D174: TurnOver_1999_6 | E174: Turnover2000_6
B175: Data File Variable24 Name | D175: 99_AM_Q20_1R06C04 | E175: 00_AM_Q25_1R24C01
B177: Question # (Where to find in survey) | D177: 20
B178: Question Format | D178: Text
B179: Values
B180: Value Labels
B181: Survey Variable25 Name | C181: Agency Name (7) | D181: AgencyName_7_20
B182: Data File Variable25 Name | D182: 99_AM_Q20_1R07C01TXT
B184: Question # (Where to find in survey) | D184: 20
B185: Question Format | D185: Boolean
B186: Values | D186: 0,1
B187: Value Labels | D187: 0=No;1=Yes
B188: Survey Variable26 Name | C188: Share Timing (7) | D188: ShareTiming_1999_7
B189: Data File Variable26 Name | D189: 99_AM_Q20_1R07C02
B191: Question # (Where to find in survey) | D191: 20
B192: Question Format | D192: Boolean
B193: Values | D193: 0,1
B194: Value Labels | D194: 0=No;1=Yes
B195: Survey Variable27 Name | C195: Coordinate Control (7) | D195: Coordinate_1999_7
B196: Data File Variable27 Name | D196: 99_AM_Q20_1R07C03
B198: Question # (Where to find in survey) | D198: 20
B199: Question Format | D199: Boolean
B200: Values | D200: 0,1
B201: Value Labels | D201: 0=No;1=Yes
B202: Survey Variable28 Name | C202: Turn Over Control (7) | D202: TurnOver_1999_7
B203: Data File Variable28 Name | D203: 99_AM_Q20_1R07C04
B205: Question # (Where to find in survey) | D205: 20
B206: Question Format | D206: Text
B207: Values
B208: Value Labels
B209: Survey Variable29 Name | C209: Agency Name (8) | D209: AgencyName_8_20
B210: Data File Variable29 Name | D210: 99_AM_Q20_1R08C01TXT
B212: Question # (Where to find in survey) | D212: 20
B213: Question Format | D213: Boolean
B214: Values | D214: 0,1
B215: Value Labels | D215: 0=No;1=Yes
B216: Survey Variable30 Name | C216: Share Timing (8) | D216: ShareTiming_1999_8
B217: Data File Variable30 Name | D217: 99_AM_Q20_1R08C02
B219: Question # (Where to find in survey) | D219: 20
B220: Question Format | D220: Boolean
B221: Values | D221: 0,1
B222: Value Labels | D222: 0=No;1=Yes
B223: Survey Variable31 Name | C223: Coordinate Control (8) | D223: Coordinate_1999_8
B224: Data File Variable31 Name | D224: 99_AM_Q20_1R08C03
B226: Question # (Where to find in survey) | D226: 20
B227: Question Format | D227: Boolean
B228: Values | D228: 0,1
B229: Value Labels | D229: 0=No;1=Yes
B230: Survey Variable32 Name | C230: Turn Over Control (8) | D230: TurnOver_1999_8
B231: Data File Variable32 Name | D231: 99_AM_Q20_1R08C04
B233: PROVIDES INFORMATION, COORDINATES OPERATION, SHARES INFRASTRUCTURE
B234: Question Wording | D234: Please indicate to which agencies your agency provides arterial travel times, speeds, and conditions information, and/or shares infrastructure, and/or coordinates operation in 1999 or will by 2005. (This is intended to be an exhaustive list of applicable agencies and your own agency will be included and can be ignored) | E234: The following information is used to determine the extent to which your agency is integrated with other transportation agencies in your metropolitan area. Integration can occur through the sending of information to these agencies (i.e., your agency transmits arterial travel times, speeds, and conditions information to an agency in real-time via electronic means), through the sharing of infrastructure with any agency (e.g., building, computer system, communication lines), or through coordinated operations with another agency (e.g., jointly developing a common control strategy).
B235: Question # (Where to find in survey) | D235: 21 | E235: 27
B236: Question Format | D236: Text | E236: Text
... 1182 more rows

Sheet ITS Work Zones
B2: ITS Work Zones
C3: Choices (in batteries) | D3: 1999 | E3: 2000 | F3: 2002 | G3: 2004 | H3: 2005 | I3: 2006 | J3: 2007 | K3: 2010 | L3: 2013 | M3: 2016
B7: AGENCY USES ITS TECHNOLOGY IN WORK ZONES
B8: Question Wording | G8: Does your agency use ITS within, or in advance of, work zones to improve mobility, enhance safety, and/or to manage incidents? | K8: Have you used ITS in work zones? | L8: Does you’re agency deploy ITS technology at work zones? | M8: Does your agency deploy ITS technology at work zones?
B9: Question # (Where to find in survey) | G9: 36 | K9: 33 | L9: 38 | M9: 32
B10: Question Format | G10: Multiple Choice | K10: Multiple Choice | L10: Multiple Choice | M10: Multiple Choice
B11: Values | G11: 0,1,2,3 | K11: 0,1,2 | L11: 0,1,2 | M11: 0,1,2
B12: Value Labels | G12: 0=No;1=Yes;2=No Response;3=Don’t Know | K12: 0=No;1=Yes;2=No Response | L12: 0=No;1=Yes;2=No Response | M12: 0=No;1=Yes;2=No Response
B13: Survey Variable1 Name | C13: ITS in Work Zones | G13: WorkZoneUseITSAdvance | K13: ReportConstruction | L13: ITSWorkZones | M13: ITSWorkZones
B14: Data File Variable1 Name | G14: 04_AM_Q36_1R01C01 | K14: 10_AM_Q33_1R01C01 | L14: 13_AM_Q38_1R01C01 | M14: 16_AM_Q32_1R01C01
L16: Yes, what ITS technologies does your agency deploy at work zones? | M16: Yes, what ITS technologies does your agency deploy at work zones?
B17: Question # (Where to find in survey) | L17: 38 | M17: 32
B18: Question Format | L18: Boolean | M18: Boolean
B19: Values | L19: 0,1 | M19: 0,1
B20: Value Labels | L20: 0=No;1=Yes | M20: 0-No;1=Yes
B21: Survey Variable1 Name | C21: Intrusion alarm | L21: ITSWorkZonesIntrusion | M21: ITSWorkZonesIntrusion
B22: Data File Variable1 Name | L22: 13_AM_Q38_2R01C01 | M22: 16_AM_Q32_2R01C01
B24: Question # (Where to find in survey) | L24: 38 | M24: 32
B25: Question Format | L25: Boolean | M25: Boolean
B26: Values | L26: 0,1 | M26: 0,1
B27: Value Labels | L27: 0=No;1=Yes | M27: 0-No;1=Yes
B28: Survey Variable2 Name | C28: Dynamic lane merge system | L28: ITSWorkZonesDynamic | M28: ITSWorkZonesDynamic
B29: Data File Variable2 Name | L29: 13_AM_Q38_2R02C01 | M29: 16_AM_Q32_2R02C01
B31: Question # (Where to find in survey) | L31: 38 | M31: 32
B32: Question Format | L32: Boolean | M32: Boolean
B33: Values | L33: 0,1 | M33: 0,1
B34: Value Labels | L34: 0=No;1=Yes | M34: 0-No;1=Yes
B35: Survey Variable3 Name | C35: Queue detection and alert system | L35: ITSWorkZonesQueue | M35: ITSWorkZonesQueue
B36: Data File Variable3 Name | L36: 13_AM_Q38_2R03C01 | M36: 16_AM_Q32_2R03C01
B38: Question # (Where to find in survey) | L38: 38 | M38: 32
B39: Question Format | L39: Boolean | M39: Boolean
B40: Values | L40: 0,1 | M40: 0,1
B41: Value Labels | L41: 0=No;1=Yes | M41: 0-No;1=Yes
B42: Survey Variable4 Name | C42: Travel time system | L42: ITSWorkZonesTravelTime | M42: ITSWorkZonesTravelTime
B43: Data File Variable4 Name | L43: 13_AM_Q38_2R05C01 | M43: 16_AM_Q32_2R05C01
B45: Question # (Where to find in survey) | L45: 38 | M45: 32
B46: Question Format | L46: Boolean | M46: Boolean
B47: Values | L47: 0,1 | M47: 0,1
B48: Value Labels | L48: 0=No;1=Yes | M48: 0-No;1=Yes
B49: Survey Variable5 Name | C49: Variable speed limit | L49: ITSWorkZonesVariable | M49: ITSWorkZonesVariable
B50: Data File Variable5 Name | L50: 13_AM_Q38_2R04C01 | M50: 16_AM_Q32_2R04C01
B52: Question # (Where to find in survey) | L52: 38
B53: Question Format | L53: Boolean
B54: Values | L54: 0,1
B55: Value Labels | L55: 0=No;1=Yes
B56: Survey Variable6 Name | C56: Portable Dynamic Message Signs | L56: ITSWorkZonesPortable
B57: Data File Variable6 Name | L57: 13_AM_Q38_2R07C01
B59: Question # (Where to find in survey) | L59: 38 | M59: 32
B60: Question Format | L60: Boolean | M60: Boolean
B61: Values | L61: 0,1 | M61: 0,1
B62: Value Labels | L62: 0=No;1=Yes | M62: 0-No;1=Yes
B63: Survey Variable7 Name | C63: Route guidance around work zones | L63: ITSWorkZonesRouteGuidance | M63: ITSWorkZonesRouteGuide
B64: Data File Variable7 Name | L64: 13_AM_Q38_2R06C01 | M64: 16_AM_Q32_2R06C01
B66: Question # (Where to find in survey) | M66: 32
B67: Question Format | M67: Boolean
B68: Values | M68: 0,1
B69: Value Labels | M69: 0-No;1=Yes
B70: Survey Variable8 Name | C70: Portable CCTV | M70: ITSWorkZonesPortCCTV
B71: Data File Variable8 Name | M71: 16_AM_Q32_2R08C01
B73: Question # (Where to find in survey) | M73: 32
B74: Question Format | M74: Boolean
B75: Values | M75: 0,1
B76: Value Labels | M76: 0-No;1=Yes
B77: Survey Variable9 Name | C77: Temporary ramp metering | M77: ITSWorkZonesTempRamp
B78: Data File Variable9 Name | M78: 16_AM_Q32_2R09C01
B80: Question # (Where to find in survey) | M80: 32
B81: Question Format | M81: Boolean
B82: Values | M82: 0,1
B83: Value Labels | M83: 0-No;1=Yes
B84: Survey Variable10 Name | C84: Portable traffic monitoring devices | M84: ITSWorkZonesPortDevice
B85: Data File Variable10 Name | M85: 16_AM_Q32_2R07C01
B87: Question # (Where to find in survey) | L87: 38 | M87: 32
B88: Question Format | L88: Text | M88: Text
B89: Values
B90: Value Labels
B91: Survey Variable11 Name | C91: Other | L91: ITSWorkZonesOthertext | M91: ITSWorkZonesOtherText
B92: Data File Variable11 Name | L92: 13_AM_Q38_2R08C01TXT | M92: 16_AM_Q32_2R10C01TXT
B94: AGENCY USES TEMPORARY ITS TECHNOLOGY IN WORK ZONES
B95: Question Wording | G95: Has your agency deployed ITS technology at work zones to take over the function of permanent systems that are degraded or made inoperative by construction activities?
B96: Question # (Where to find in survey) | G96: 35
B97: Question Format | G97: Multiple Choice
B98: Values | G98: 0,1,2,3
B99: Value Labels | G99: 0=No;1=Yes;2=No Response;3=Don’t Know
B100: Survey Variable1 Name | C100: Temporary | G100: WorkZoneDeployeITS
B101: Data File Variable1 Name | G101: 04_AM_Q35_1R01C01

Sheet Maintenance
B2: Maintenance
C3: Choices (in batteries) | D3: 1999 | E3: 2000 | F3: 2002 | G3: 2004 | H3: 2005 | I3: 2006 | J3: 2007 | K3: 2010 | L3: 2013 | M3: 2016
B7: AGENCY USES ASSET MANAGEMENT SYSTEM
B8: Question Wording | L8: Does your agency utilize an asset management system to track infrastructure inventory and related maintenance and operations activity? | M8: Does your agency utilize an asset management system to track infrastructure inventory and related maintenance and operations activity?
B9: Question # (Where to find in survey) | L9: 50 | M9: 72
B10: Question Format | L10: Multiple Choice | M10: Multiple Choice
B11: Values | L11: 0,1,2 | M11: 0,1,2
B12: Value Labels | L12: 0=No;1=Yes;2=No Response | M12: 0=No;1=Yes;2=No Response
B13: Survey Variable1 Name | C13: Asset Management System | L13: AssetMgtSystem | M13: AssetMgtSystem
B14: Data File Variable1 Name | L14: 13_AM_Q50_1R01C01 | M14: 16_AM_Q72_1R01C01
B16: Question Wording | L16: Does your agency have a preventive maintenance program for ITS devices? | M16: Does your agency have a preventive maintenance program for ITS devices?
B17: Question # (Where to find in survey) | L17: 51 | M17: 73
B18: Question Format | L18: Multiple Choice | M18: Multiple Choice
B19: Values | L19: 0,1,2 | M19: 0,1,2
B20: Value Labels | L20: 0=No;1=Yes;2=No Response | M20: 0=No;1=Yes;2=No Response
B21: Survey Variable1 Name | C21: Preventive Maintenance | L21: PreventiveMaintIts | M21: PreventiveMaintITS
B22: Data File Variable1 Name | L22: 13_AM_Q51_1R01C01 | M22: 16_AM_Q73_1R01C01
B24: FREQUENCY OF INSPECTION AND RECALIBRATION
B25: Question Wording | L25: How often are your loop detectors inspected and recalibrated?
B26: Question # (Where to find in survey) | L26: 51
B27: Question Format | L27: Multiple Choice
B28: Values | L28: 1,2,3,4,5
B29: Value Labels | L29: 1=Less than once annually;2=once annually;3=more than once annually;4=not regularly inspected and recalibrated;5=Not applicable
B30: Survey Variable1 Name | C30: Loop Maintenance | L30: PreventiveMaintLoop
B31: Data File Variable1 Name | L31: 13_AM_Q51_2R01C01
B33: Question Wording | L33: CCTV Cameras
B34: Question # (Where to find in survey) | L34: 51
B35: Question Format | L35: Multiple Choice
B36: Values | L36: 1,2,3,4,5
B37: Value Labels | L37: 1=Less than once annually;2=once annually;3=more than once annually;4=not regularly inspected and recalibrated;5=Not applicable
B38: Survey Variable1 Name | C38: CCTV Maintenance | L38: PreventiveMaintCctv
B39: Data File Variable1 Name | L39: 13_AM_Q51_4R01C01
B41: Question Wording | L41: How often are your other types of ITS devices inspected and recalibrated? (radar, microwave, toll tag readers)
B42: Question # (Where to find in survey) | L42: 51
B43: Question Format | L43: Multiple Choice
B44: Values | L44: 1,2,3,4,5
B45: Value Labels | L45: 1=Less than once annually;2=once annually;3=more than once annually;4=not regularly inspected and recalibrated;5=Not applicable
B46: Survey Variable1 Name | C46: Radar Maintenance | L46: PreventiveMaintRadar
B47: Data File Variable1 Name | L47: 13_AM_Q51_3R01C01
B49: Question Wording | L49: How often are your other ITS devices inspected and recalibrated?
B50: Question # (Where to find in survey) | L50: 51
B51: Question Format | L51: Multiple Choice
B52: Values | L52: 1,2,3,4,5
B53: Value Labels | L53: 1=Less than once annually;2=once annually;3=more than once annually;
B54: Survey Variable1 Name | C54: Other Maintenance | L54: PreventiveMaintOther
B55: Data File Variable1 Name | L55: 13_AM_Q51_5R01C01
B57: Question # (Where to find in survey) | L57: 51
B58: Question Format | L58: Text
B59: Values
B60: Value Labels
B61: Survey Variable2 Name | C61: Other Maintenance (Describe) | L61: PreventiveMaintOthertext
B62: Data File Variable2 Name | L62: 13_AM_Q51_6R01C01TXT
B64: FREQUENCY OF DECISIONS TO MAINTAIN, REPAIR, AND REPLACE OF ITS DEVICES
B65: Question Wording | L65: How are decisions for maintenance, repairs, and replacement of ITS devices made?
B66: Question # (Where to find in survey) | L66: 52
B67: Question Format | L67: Boolean
B68: Values | L68: 0,1
B69: Value Labels | L69: 0=No;1=Yes
B70: Survey Variable1 Name | C70: Reaction to failure in component or device | L70: DecisionsItsReaction
B71: Data File Variable1 Name | L71: 13_AM_Q52_1R01C01
B73: Question # (Where to find in survey) | L73: 52
B74: Question Format | L74: Boolean
B75: Values | L75: 0,1
B76: Value Labels | L76: 0=No;1=Yes
B77: Survey Variable2 Name | C77: Planned program of routine and preventive maintenance | L77: DecisionsItsPlanned
B78: Data File Variable2 Name | L78: 13_AM_Q52_1R02C01
B80: Question # (Where to find in survey) | L80: 52
B81: Question Format | L81: Boolean
B82: Values | L82: 0,1
B83: Value Labels | L83: 0=No;1=Yes
B84: Survey Variable3 Name | C84: Results of inspection and monitoring of conditions | L84: DecisionsItsInspection
B85: Data File Variable3 Name | L85: 13_AM_Q52_1R03C01
B87: Question # (Where to find in survey) | L87: 52
B88: Question Format | L88: Boolean
B89: Values
B90: Value Labels
B91: Survey Variable4 Name | C91: Cost/ benefit analysis
B92: Data File Variable4 Name | L92: 13_AM_Q52_1R04C01
B94: Question # (Where to find in survey) | L94: 52
B95: Question Format | L95: Boolean
B96: Values
B97: Value Labels
B98: Survey Variable5 Name | C98: Estimated service life
B99: Data File Variable5 Name | L99: 13_AM_Q52_1R05C01
B101: Question # (Where to find in survey) | L101: 52
B102: Question Format | L102: Boolean
B103: Values
B104: Value Labels
B105: Survey Variable6 Name | C105: Obsolescence (e.g. device becomes obsolete/out-of-date)
B106: Data File Variable6 Name | L106: 13_AM_Q52_1R06C01
B108: Question # (Where to find in survey) | L108: 52
B109: Question Format | L109: Text
B110: Values
B111: Value Labels
B112: Survey Variable7 Name | C112: Other
B113: Data File Variable7 Name | L113: 13_AM_Q52_1R07C01TXT
B115: DATA COLLECTED ON OVERALL HEALTH AND MAINTENANCE OF DEVICES
B116: Question Wording | L116: Does your agency collect data on the overall health and maintenance of ITS devices and equipment? | M116: Does your agency collect data on the overall health and maintenance of ITS devices and equipment?
B117: Question # (Where to find in survey) | L117: 53 | M117: 74
B118: Question Format | L118: Multiple Choice
B119: Values | L119: 0,1,2 | M119: 0,1,2
B120: Value Labels | L120: 0=No;1=Yes;2=No Response | M120: 0=No;1=Yes;2=No Response
B121: Survey Variable1 Name | C121: Collect Health Data | L121: CollectDataHealthIts | M121: CollectDataHealthITS
B122: Data File Variable1 Name | L122: 13_AM_Q53_1R01C01 | M122: 16_AM_Q74_1R01C01
L124: What sources are used? | M124: What sources are used?
B125: Question # (Where to find in survey) | L125: 53 | M125: 74
B126: Question Format | L126: Boolean | M126: Boolean
B127: Values | L127: 0,1 | M127: 0,1
B128: Value Labels | L128: 0=No;1=Yes | M128: 0-No;1=Yes
B129: Survey Variable1 Name | C129: Inspections | L129: CollectedInspection | M129: CollectedInspection
B130: Data File Variable1 Name | L130: 13_AM_Q53_2R01C01 | M130: 16_AM_Q74_2R01C01
B132: Question # (Where to find in survey) | L132: 53 | M132: 74
B133: Question Format | L133: Boolean | M133: Boolean
B134: Values | L134: 0,1 | M134: 0,1
B135: Value Labels | L135: 0=No;1=Yes | M135: 0-No;1=Yes
B136: Survey Variable2 Name | C136: Complaint calls | L136: CollectedComplaints | M136: CollectedComplaints
B137: Data File Variable2 Name | L137: 13_AM_Q53_2R02C01 | M137: 16_AM_Q74_2R02C01
B139: Question # (Where to find in survey) | L139: 53 | M139: 74
B140: Question Format | L140: Boolean | M140: Boolean
B141: Values | L141: 0,1 | M141: 0,1
B142: Value Labels | L142: 0=No;1=Yes | M142: 0-No;1=Yes
B143: Survey Variable3 Name | C143: Real-time monitoring | L143: CollectedRealtime | M143: CollectedRealtime
B144: Data File Variable3 Name | L144: 13_AM_Q53_2R03C01 | M144: 16_AM_Q74_2R03C01
B146: Question # (Where to find in survey) | L146: 53 | M146: 74
B147: Question Format | L147: Text | M147: Text
B148: Values
B149: Value Labels
B150: Survey Variable4 Name | C150: Other | L150: CollectedOthertext | M150: CollectedOtherText
B151: Data File Variable4 Name | L151: 13_AM_Q53_2R04C01TXT | M151: 16_AM_Q74_2R04C01TXT
B153: USE OF DATA COLLECTED ON OVERALL HEALTH AND MAINTENANCE OF DEVICES
B154: Question Wording | L154: For which of the following purposes does your agency use the data on equipment health and maintenance?
B155: Question # (Where to find in survey) | L155: 53
B156: Question Format | L156: Boolean
B157: Values | L157: 0,1
B158: Value Labels | L158: 0=No;1=Yes
B159: Survey Variable1 Name | C159: To make investment decisions | L159: PurposeHealthInvest
B160: Data File Variable1 Name | L160: 13_AM_Q53_3R01C01
B162: Question # (Where to find in survey) | L162: 53
B163: Question Format | L163: Boolean
B164: Values | L164: 0,1
B165: Value Labels | L165: 0=No;1=Yes
B166: Survey Variable2 Name | C166: To monitor specified performance metrics | L166: PurposeHealthMonitorMetrics
B167: Data File Variable2 Name | L167: 13_AM_Q53_3R02C01
B169: Question # (Where to find in survey) | L169: 53
B170: Question Format | L170: Boolean
B171: Values | L171: 0,1
B172: Value Labels | L172: 0=No;1=Yes
B173: Survey Variable3 Name | C173: To monitor specified performance trends | L173: PurposeHealthMonitorTrends
B174: Data File Variable3 Name | L174: 13_AM_Q53_3R03C01
B176: Question # (Where to find in survey) | L176: 53
B177: Question Format | L177: Boolean
B178: Values | L178: 0,1
B179: Value Labels | L179: 0=No;1=Yes
B180: Survey Variable4 Name | C180: To conduct benefit-cost analysis | L180: PurposeHealthConduct
B181: Data File Variable4 Name | L181: 13_AM_Q53_3R04C01
B183: Question # (Where to find in survey) | L183: 53
B184: Question Format | L184: Boolean
B185: Values | L185: 0,1
B186: Value Labels | L186: 0=No;1=Yes
B187: Survey Variable5 Name | C187: To communicate to decision makers | L187: PurposeHealthCommunicateDecision
B188: Data File Variable5 Name | L188: 13_AM_Q53_3R05C01
B190: Question # (Where to find in survey) | L190: 53
B191: Question Format | L191: Boolean
B192: Values | L192: 0,1
B193: Value Labels | L193: 0=No;1=Yes
B194: Survey Variable6 Name | C194: To communicate to public | L194: PurposeHealthCommunicatePublic
B195: Data File Variable6 Name | L195: 13_AM_Q53_3R06C01
B197: Question # (Where to find in survey) | L197: 53
B198: Question Format | L198: Text
B199: Values
B200: Value Labels
B201: Survey Variable7 Name | C201: Other | L201: PurposeHealthOthertext
B202: Data File Variable7 Name | L202: 13_AM_Q53_3R07C01TXT

Sheet Managed Lanes
B2: Managed Lanes
C3: Choices (in batteries) | D3: 1999 | E3: 2000 | F3: 2002 | G3: 2004 | H3: 2005 | I3: 2006 | J3: 2007 | K3: 2010 | L3: 2013 | M3: 2016
B7: AGENCY OPERATES MANAGED LANES
B8: Question Wording | L8: Operate manage lanes? | M8: Operate manage lanes?
B9: Question # (Where to find in survey) | L9: 25 | M9: 20
B10: Question Format | L10: Multiple Choice | M10: Multiple Choice
B11: Values | L11: 0,1,2 | M11: 0,1,2
B12: Value Labels | L12: 0=No;1=Yes;2=No Response | M12: 0=No;1=Yes;2=No Response
B13: Survey Variable1 Name | C13: Lane Control | L13: OperateManageLanes | M13: OperateManageLanes
B14: Data File Variable1 Name | L14: 13_AM_Q25_1R01C01 | M14: 16_AM_Q20_1R01C01
L16: Total number of arterial centerline miles featuring managed lanes | M16: Total number of arterial centerline miles featuring managed lanes
B17: Question # (Where to find in survey) | L17: 25 | M17: 20
B18: Question Format | L18: Numeric | M18: Numeric
B19: Values
B20: Value Labels
B21: Survey Variable1 Name | C21: Miles under lane control | L21: ManagedLanesTotal | M21: ManagedLanesTotal
B22: Data File Variable1 Name | L22: 13_AM_Q25_2R01C01 | M22: 16_AM_Q20_2R01C01
B24: LANE CONTROL STRATEGIES
B25: Question Wording | K25: Does your agency operate any of the following lane control strategies?
B26: Question # (Where to find in survey) | K26: 19
B27: Question Format | K27: Boolean
B28: Values | K28: 0,1
B29: Value Labels | K29: 0=No;1=Yes
B30: Survey Variable1 Name | C30: Reversible Lane | K30: LaneControlReversible
B31: Data File Variable1 Name | K31: 10_AM_Q19_2R01C01
B33: Question # (Where to find in survey) | K33: 19
B34: Question Format | K34: Boolean
B35: Values | K35: 0,1
B36: Value Labels | K36: 0=No;1=Yes
B37: Survey Variable2 Name | C37: HOV | K37: LaneControlHOV
B38: Data File Variable2 Name | K38: 10_AM_Q19_2R02C01
B40: Question # (Where to find in survey) | K40: 19
B41: Question Format | K41: Text
B42: Values
B43: Value Labels
B44: Survey Variable3 Name | C44: Other | K44: LaneControlOtherText
B45: Data File Variable3 Name | K45: 10_AM_Q19_2R03C01TXT
B47: High Occupancy Control (HOV)
B48: Question Wording | I48: Total number of arterial High Occupancy Vehicle (HOV) centerline miles equipped with automated lane management technologies (e.g., sensors detecting traffic conditions the use of dynamic message signs and moveable barriers [e.g., gates] to control the operation of HOV facilities) operated by your agency: | J48: Total number of arterial High Occupancy Vehicle (HOV) centerline miles equipped with automated lane management technologies (e.g., sensors detecting traffic conditions the use of dynamic message signs and moveable barriers [e.g., gates] to control the operation of HOV facilities) operated by your agency: | L48: Please provide the estimated number of arterial centerline miles for each type of managed lane strategy: Occupancy Control (HOV) | M48: Please provide the estimated number of arterial centerline miles for each type of managed lane strategy: Occupancy Control (HOV)
B49: Question # (Where to find in survey) | I49: 10 | J49: 10 | L49: 25 | M49: 20
B50: Question Format | I50: Numeric | J50: Numeric | L50: Numeric | M50: Numeric
B51: Values
B52: Value Labels
B53: Survey Variable1 Name | C53: Lane Occupancy Control | I53: LaneMgtHOV | J53: LaneMgtHOV | L53: ManagedLanesHOV | M53: ManagedLanesHOV
B54: Data File Variable1 Name | I54: 06_AM_Q10_1R01C01 | J54: 07_AM_Q10_1R01C01 | L54: 13_AM_Q25_3R01C01 | M54: 16_AM_Q20_3R01C01
B56: Reversible Lanes
B57: Question Wording | I57: Total number of arterial reversible lane centerline miles equipped with automated lane management technologies (e.g., traffic sensors and lane control signs used to implement reversible flow lanes) operated by your agency | J57: Total number of arterial reversible lane centerline miles equipped with automated lane management technologies (e.g., traffic sensors and lane control signs used to implement reversible flow lanes) operated by your agency | L57: Please provide the estimated number of arterial centerline miles for each type of managed lane strategy: Reversible flow | M57: Please provide the estimated number of arterial centerline miles for each type of managed lane strategy: Reversible flow
B58: Question # (Where to find in survey) | I58: 11 | J58: 11 | L58: 25 | M58: 20
B59: Question Format | I59: Numeric | J59: Numeric | L59: Numeric | M59: Numeric
B60: Values
B61: Value Labels
B62: Survey Variable1 Name | C62: Reversible | I62: LaneMgtReverse | J62: LaneMgtReverse | L62: ManagedLanesReversible | M62: ManagedLanesReversible
B63: Data File Variable1 Name | I63: 06_AM_Q11_1R01C01 | J63: 07_AM_Q11_1R01C01 | L63: 13_AM_Q25_3R02C01 | M63: 16_AM_Q20_3R02C01
B65: Variable Speed Limits
B66: Question Wording | I66: Total number of arterial centerline miles equipped with variable speed limit technologies operated by your agency | J66: Total number of arterial centerline miles equipped with variable speed limit technologies operated by your agency | L66: Please provide the estimated number of arterial centerline miles for each type of managed lane strategy: Variable speed limit
B67: Question # (Where to find in survey) | I67: 14 | J67: 14 | L67: 25
B68: Question Format | I68: Numeric | J68: Numeric | L68: Numeric
B69: Values
B70: Value Labels
B71: Survey Variable1 Name | C71: Variable speed limits | I71: LaneMgtVarspeed | J71: LaneMgtVarSpeed | L71: ManagedLanesVariableSpeed
B72: Data File Variable1 Name | I72: 06_AM_Q14_1R01C01 | J72: 07_AM_Q14_1R01C01 | L72: 13_AM_Q25_3R05C01
B74: Lane Open/Closed
B75: Question Wording | I75: Total number of arterial centerline miles equipped with lane control signs, supported by surveillance and detection technologies, that allow the temporary closure of lanes by your agency: | J75: Total number of arterial centerline miles equipped with lane control signs, supported by surveillance and detection technologies, that allow the temporary closure of lanes by your agency: | L75: Please provide the estimated number of arterial centerline miles for each type of managed lane strategy: lane open/closed (traffic incidents, roadway maintenance…) | M75: Please provide the estimated number of arterial centerline miles for each type of managed lane strategy: lane open/closed (traffic incidents, roadway maintenance…)
B76: Question # (Where to find in survey) | I76: 13 | J76: 13 | L76: 25 | M76: 20
B77: Question Format | I77: Numeric | J77: Numeric | L77: Numeric | M77: Numeric
B78: Values
B79: Value Labels
B80: Survey Variable1 Name | C80: Lane open/closed | I80: LaneMgtTempclose | J80: LaneMgtTempClose | L80: ManagedLanesLaneClosed | M80: ManagedLanesLaneClosed
B81: Data File Variable1 Name | I81: 06_AM_Q13_1R01C01 | J81: 07_AM_Q13_1R01C01 | L81: 13_AM_Q25_3R03C01 | M81: 16_AM_Q20_3R03C01
B83: Pricing or Tolls
B84: Question Wording | I84: Total number of arterial centerline miles under congestion pricing and equipped with traffic sensors, electronic payment, or automated enforcement technologies to support the implementation of congestion pricing strategies operated by your agency | J84: Total number of arterial centerline miles under congestion pricing and equipped with traffic sensors, electronic payment, or automated enforcement technologies to support the implementation of congestion pricing strategies operated by your agency | L84: Please provide the estimated number of arterial centerline miles for each type of managed lane strategy: Other congestion pricing strategies | M84: Please provide the estimated number of arterial centerline miles for each type of managed lane strategy: Other congestion pricing strategies
B85: Question # (Where to find in survey) | I85: 12 | J85: 12 | L85: 25 | M85: 20
B86: Question Format | I86: Numeric | J86: Numeric | L86: Numeric | M86: Numeric
B87: Values
B88: Value Labels
B89: Survey Variable1 Name | C89: Other congestion | I89: LaneMgtConprice | J89: LaneMgtConPrice | L89: ManagedLanesOtherCongestion | M89: ManagedLanesOtherCongestion
B90: Data File Variable1 Name | I90: 06_AM_Q12_1R01C01 | J90: 07_AM_Q12_1R01C01 | L90: 13_AM_Q25_3R06C01 | M90: 16_AM_Q20_3R06C01
B92: Lane management measures that support emergency evacuations
B93: Question Wording | I93: Total number of arterial centerline miles equipped with lane management measures such as reversible flow lanes and lane control to support emergency evacuations operated by your agency | J93: Total number of arterial centerline miles equipped with lane management measures such as reversible flow lanes and lane control to support emergency evacuations operated by your agency
B94: Question # (Where to find in survey) | I94: 15 | J94: 15
B95: Question Format | I95: Numeric | J95: Numeric
B96: Values
B97: Value Labels
B98: Survey Variable1 Name | C98: Evacuation | I98: LaneMgtEvacuation | J98: LaneMgtEvacuation
B99: Data File Variable1 Name | I99: 06_AM_Q15_1R01C01 | J99: 07_AM_Q15_1R01C01
B101: Truck Only Lanes
B102: Question Wording | L102: Please provide the estimated number of arterial centerline miles for each type of managed lane strategy: truck only | M102: Please provide the estimated number of arterial centerline miles for each type of managed lane strategy: truck only
B103: Question # (Where to find in survey) | L103: 25 | M103: 20
B104: Question Format | L104: Numeric | M104: Numeric
B105: Values
B106: Value Labels
B107: Survey Variable1 Name | C107: Truck only | L107: ManagedLanesTruck | M107: ManagedLanesTruck
B108: Data File Variable1 Name | L108: 13_AM_Q25_3R04C01 | M108: 16_AM_Q20_3R04C01
B110: Other Managed Lane Strategies
B111: Question Wording | L111: Please provide the estimated number of arterial centerline miles for each type of managed lane strategy: Other managed lane strategy | M111: Please provide the estimated number of arterial centerline miles for each type of managed lane strategy: Other managed lane strategy
B112: Question # (Where to find in survey) | L112: 25 | M112: 20
B113: Question Format | L113: Numeric | M113: Numeric
B114: Values
B115: Value Labels
B116: Survey Variable1 Name | C116: Other managed lane strategy (number of miles) | L116: ManagedLanesOtherManaged | M116: ManagedLanesOtherManaged
B117: Data File Variable1 Name | L117: 13_AM_Q25_3R07C01 | M117: 16_AM_Q20_3R07C01
B119: Question # (Where to find in survey) | L119: 25 | M119: 20
B120: Question Format | L120: Text | M120: Text
B121: Values
B122: Value Labels
B123: Survey Variable2 Name | C123: Other managed lane strategy (description) | L123: ManagedLanesOtherText | M123: ManagedLanesOtherText
B124: Data File Variable2 Name | L124: 13_AM_Q25_3R08C01TXT | M124: 16_AM_Q20_2R08C01TXT
B126: High Occupancy Toll (HOT)
B127: Question Wording | M127: Please provide the estimated number of arterial centerline miles for each type of managed lane strategy: High Occupancy Toll (HOT)
B128: Question # (Where to find in survey) | M128: 20
B129: Question Format | M129: Numeric
B130: Values
B131: Value Labels
B132: Survey Variable1 Name | C132: HOT | M132: ManagedLanesHOT
B133: Data File Variable1 Name | M133: 16_AM_Q20_3R05C01

Sheet Misc
B2: Miscellanea
C3: Choices (in batteries) | D3: 1999 | E3: 2000 | F3: 2002 | G3: 2004 | H3: 2005 | I3: 2006 | J3: 2007 | K3: 2010 | L3: 2013 | M3: 2016
B7: ANALYSIS, MODELING AND SIMULATION (AMS) TOOLS
B8: Question Wording | K8: Does your agency use any analysis, modeling and simulation (AMS) tools to model the arterial system? | L8: Does your agency use any analysis, modeling and simulation (AMS) tools to model the arterial system? | M8: Does your agency use any analysis, modeling and simulation (AMS) tools to model the arterial system?
B9: Question # (Where to find in survey) | K9: 20 | L9: 26 | M9: 21
B10: Question Format | K10: Multiple Choice | L10: Multiple Choice | M10: Multiple Choice
B11: Values | K11: 0,1,2 | L11: 0,1,2 | M11: 0,1,2
B12: Value Labels | K12: 0=No;1=Yes;2=No Response | L12: 0=No;1=Yes;2=No Response | M12: 0=No;1=Yes;2=No Response
B13: Survey Variable1 Name | C13: Modeling Tool | K13: ModelingSimulation | L13: AnalysisModelingSimulation | M13: AnalysisModelingSimulation
B14: Data File Variable1 Name | K14: 10_AM_Q20_1R01C01 | L14: 13_AM_Q26_1R09C01 | M14: 16_AM_Q21_1R01C01
B16: Question # (Where to find in survey) | K16: 20 | L16: 26 | M16: 21
B17: Question Format | K17: Text | L17: Text | M17: Text
B18: Values
B19: Value Labels
B20: Survey Variable2 Name | C20: Modeling Tool description | K20: ModelingSimulationText | L20: AnalysisModelingSimulationText | M20: AnalysisModelingSimulationText
B21: Data File Variable2 Name | K21: 10_AM_Q20_2R01C01TXT | L21: 13_AM_Q26_2R01C01TXT | M21: 16_AM_Q21_2R01C01TXT
B23: DECISION SUPPORT SYSTEM
B24: Question Wording | L24: Has your agency deployed a decision support system to assist in operations of the following? | M24: Has your agency deployed a decision support system to assist in operations of the following?
B25: Question # (Where to find in survey) | L25: 27 | M25: 22
B26: Question Format | L26: Boolean | M26: Boolean
B27: Values | L27: 0,1 | M27: 0,1
B28: Value Labels | L28: 0=No;1=Yes | M28: 0-No;1=Yes
B29: Survey Variable1 Name | C29: Road weather management | L29: DecisionSupportWeather | M29: DecisionSupportWeather
B30: Data File Variable1 Name | L30: 13_AM_Q27_1R01C01 | M30: 16_AM_Q22_1R01C01
B32: Question # (Where to find in survey) | L32: 27 | M32: 22
B33: Question Format | L33: Boolean | M33: Boolean
B34: Values | L34: 0,1 | M34: 0,1
B35: Value Labels | L35: 0=No;1=Yes | M35: 0-No;1=Yes
B36: Survey Variable2 Name | C36: Incident management | L36: DecisionSupportIncident | M36: DecisionSupportIncident
B37: Data File Variable2 Name | L37: 13_AM_Q27_1R02C01 | M37: 16_AM_Q22_1R02C01
B39: Question # (Where to find in survey) | L39: 27 | M39: 22
B40: Question Format | L40: Boolean | M40: Boolean
B41: Values | L41: 0,1 | M41: 0,1
B42: Value Labels | L42: 0=No;1=Yes | M42: 0-No;1=Yes
B43: Survey Variable3 Name | C43: Emergency management | L43: DecisionSupportEmergency | M43: DecisionSupportEmergency
B44: Data File Variable3 Name | L44: 13_AM_Q27_1R03C01 | M44: 16_AM_Q22_1R04C01
B46: Question # (Where to find in survey) | L46: 27 | M46: 22
B47: Question Format | L47: Boolean | M47: Boolean
B48: Values | L48: 0,1 | M48: 0,1
B49: Value Labels | L49: 0=No;1=Yes | M49: 0-No;1=Yes
B50: Survey Variable4 Name | C50: Evacuation | L50: DecisionSupportEvacuation | M50: DecisionSupportEvacuation
B51: Data File Variable4 Name | L51: 13_AM_Q27_1R04C01 | M51: 16_AM_Q22_1R05C01
B53: Question # (Where to find in survey) | L53: 27
B54: Question Format | L54: Boolean
B55: Values | L55: 0,1
B56: Value Labels | L56: 0=No;1=Yes
B57: Survey Variable5 Name | C57: Maintenance | L57: DecisionSupportMaintenance
B58: Data File Variable5 Name | L58: 13_AM_Q27_1R05C01
B60: Question # (Where to find in survey) | M60: 22
B61: Question Format | M61: Boolean
B62: Values | M62: 0,1
B63: Value Labels | M63: 0-No;1=Yes
B64: Survey Variable6 Name | C64: Roadside device maintenance | M64: DecisionSupportRoadside
B65: Data File Variable6 Name | M65: 16_AM_Q22_1R03C01
B67: Question # (Where to find in survey) | L67: 27 | M67: 22
B68: Question Format | L68: Boolean | M68: Boolean
B69: Values | L69: 0,1 | M69: 0,1
B70: Value Labels | L70: 0=No;1=Yes | M70: 0-No;1=Yes
B71: Survey Variable7 Name | C71: No decision support system deployed | L71: DecisionSupportNo | M71: DecisionSupportNo
B72: Data File Variable7 Name | L72: 13_AM_Q27_1R06C01 | M72: 16_AM_Q22_1R06C01
B74: Question # (Where to find in survey) | L74: 27 | M74: 22
B75: Question Format | L75: Text | M75: Text
B76: Values
B77: Value Labels
B78: Survey Variable8 Name | C78: Other | L78: DecisionSupportOtherText | M78: DecisionSupportOtherText
B79: Data File Variable8 Name | L79: 13_AM_Q27_1R07C01TXT | M79: 16_AM_Q22_1R07C01TXT
B81: BUDGET AND PLANNING
B82: Question Wording | K82: Do you have a separate budget for ITS? | L82: Do you have a separate budget for ITS?
B83: Question # (Where to find in survey) | K83: 53 | L83: 72
B84: Question Format | K84: Multiple Choice | L84: Multiple Choice
B85: Values | K85: 0,1,2 | L85: 0,1,2
B86: Value Labels | K86: 0=No;1=Yes;2=No Response | L86: 0=No;1=Yes;2=No Response
B87: Survey Variable1 Name | C87: ITS Budget | K87: SeparateITSBudget | L87: ItsBudget
B88: Data File Variable1 Name | K88: 10_AM_Q53_1R01C01 | L88: 13_AM_Q72_1R01C01
B90: Question Wording | K90: Please indicate whether you track the budget separately for each of the following categories: | L90: Please indicate whether you track the budget separately for each of the following categories:
B91: Question # (Where to find in survey) | K91: 53
B92: Question Format | K92: Boolean
B93: Values | K93: 0,1
B94: Value Labels | K94: 0=No;1=Yes
B95: Survey Variable1 Name | C95: ITS Deployments | K95: SeparateITSBudgetDeployments
B96: Data File Variable1 Name | K96: 10_AM_Q53_2R01C01
B98: Question # (Where to find in survey) | K98: 53
B99: Question Format | K99: Boolean
B100: Values | K100: 0,1
B101: Value Labels | K101: 0=No;1=Yes
B102: Survey Variable2 Name | C102: ITS Operations and Maintenance | K102: SeparateITSBudgetOperations
B103: Data File Variable2 Name | K103: 10_AM_Q53_2R02C01
B105: Question # (Where to find in survey) | K105: 53
B106: Question Format | K106: Boolean
B107: Values | K107: 0,1
B108: Value Labels | K108: 0=No;1=Yes
B109: Survey Variable3 Name | C109: Traffic Management or Operations Center | K109: SeparateITSBudgetTMC
B110: Data File Variable3 Name | K110: 10_AM_Q53_2R03C01
B112: Question # (Where to find in survey) | K112: 53 | L112: 72
B113: Question Format | K113: Boolean | L113: Boolean
B114: Values | K114: 0,1 | L114: 0,1
B115: Value Labels | K115: 0=No;1=Yes | L115: 0=No;1=Yes
B116: Survey Variable4 Name | C116: Do not track categories separately | K116: SeparateITSBudgetDoNot | L116: ItsBudgetDoNotTrack
B117: Data File Variable4 Name | K117: 10_AM_Q53_2R05C01 | L117: 13_AM_Q72_2R06C01
B119: Question # (Where to find in survey) | L119: 72
B120: Question Format | L120: Boolean
B121: Values | L121: 0,1
B122: Value Labels | L122: 0=No;1=Yes
B123: Survey Variable5 Name | C123: ITS Planning and Systems Engineering | L123: ItsBudgetPlanning
B124: Data File Variable5 Name | L124: 13_AM_Q72_2R01C01
B126: Question # (Where to find in survey) | L126: 72
B127: Question Format | L127: Boolean
B128: Values | L128: 0,1
B129: Value Labels | L129: 0=No;1=Yes
B130: Survey Variable6 Name | C130: Device Installation | L130: ItsBudgetDevice
B131: Data File Variable6 Name | L131: 13_AM_Q72_2R02C01
B133: Question # (Where to find in survey) | L133: 72
B134: Question Format | L134: Boolean
B135: Values | L135: 0,1
B136: Value Labels | L136: 0=No;1=Yes
B137: Survey Variable7 Name | C137: ITS Operations | L137: ItsBudgetOperations
B138: Data File Variable7 Name | L138: 13_AM_Q72_2R03C01
B140: Question # (Where to find in survey) | L140: 72
B141: Question Format | L141: Boolean
B142: Values | L142: 0,1
B143: Value Labels | L143: 0=No;1=Yes
B144: Survey Variable8 Name | C144: ITS Maintenance and Inspection | L144: ItsBudgetMaintenance
B145: Data File Variable8 Name | L145: 13_AM_Q72_2R04C01
B147: Question # (Where to find in survey) | L147: 72
B148: Question Format | L148: Boolean
B149: Values | L149: 0,1
B150: Value Labels | L150: 0=No;1=Yes
B151: Survey Variable9 Name | C151: Repair of ITS Technologies | L151: ItsBudgetRepair
B152: Data File Variable9 Name | L152: 13_AM_Q72_2R05C01
B154: Question # (Where to find in survey) | K154: 53 | L154: 72
B155: Question Format | K155: Text | L155: Text
B156: Values
B157: Value Labels
B158: Survey Variable10 Name | C158: Other | K158: SeparateITSBudgetOtherText | L158: ItsBudgetOthertext
B159: Data File Variable10 Name | K159: 10_AM_Q53_2R04C01TXT | L159: 13_AM_Q72_2R07C01TXT
B161: Question Wording | L161: Please indicate the percentage of budget allocated to each category that is separately tracked
B162: Question # (Where to find in survey) | L162: 72
B163: Question Format | L163: Numeric
B164: Values
B165: Value Labels
B166: Survey Variable1 Name | C166: ITS Planning and Systems Engineering | L166: ItsBudgetPlanningPercent
B167: Data File Variable1 Name | L167: 13_AM_Q72_3R01C01
B169: Question # (Where to find in survey) | L169: 72
B170: Question Format | L170: Numeric
B171: Values
B172: Value Labels
B173: Survey Variable2 Name | C173: Device Installation | L173: ItsBudgetDevicePercent
B174: Data File Variable2 Name | L174: 13_AM_Q72_3R02C01
B176: Question # (Where to find in survey) | L176: 72
B177: Question Format | L177: Numeric
B178: Values
B179: Value Labels
B180: Survey Variable3 Name | C180: ITS Operations | L180: ItsBudgetOperationsPercent
B181: Data File Variable3 Name | L181: 13_AM_Q72_3R03C01
B183: Question # (Where to find in survey) | L183: 72
B184: Question Format | L184: Numeric
B185: Values
B186: Value Labels
B187: Survey Variable4 Name | C187: ITS Maintenance and Inspection | L187: ItsBudgetMaintenancePercent
B188: Data File Variable4 Name | L188: 13_AM_Q72_3R04C01
B190: Question # (Where to find in survey) | L190: 72
B191: Question Format | L191: Numeric
B192: Values
B193: Value Labels
B194: Survey Variable5 Name | C194: Repair of ITS Technologies | L194: ItsBudgetRepairPercent
B195: Data File Variable5 Name | L195: 13_AM_Q72_3R05C01
B197: Question # (Where to find in survey) | L197: 72
B198: Question Format | L198: Numeric
B199: Values
B200: Value Labels
B201: Survey Variable6 Name | C201: Other | L201: ItsBudgetOtherPercent
B202: Data File Variable6 Name | L202: 13_AM_Q72_3R06C01
B204: IMPORTANCE OF FACTORS AFFECTING DECISION TO PURCHASE ITS
B205: Question Wording | K205: Please rate the importance of each of the following factors to your agency's decision to purchase ITS technologies: | L205: Please rate the importance of each of the following factors to your agency's decision to purchase ITS technologies:
B206: Question # (Where to find in survey) | K206: 54 | L206: 73
B207: Question Format | K207: Boolean | L207: Boolean
B208: Values | K208: 0,1 | L208: 0,1
B209: Value Labels | K209: 0=No;1=Yes | L209: 0=No;1=Yes
B210: Survey Variable1 Name | C210: Not at all important-Price | K210: PriceNotAtAll | L210: CostInitialNotatall
B211: Data File Variable1 Name | K211: 10_AM_Q54_1R01C01 | L211: 13_AM_Q73_1R01C01
B213: Question # (Where to find in survey) | K213: 54 | L213: 73
B214: Question Format | K214: Boolean | L214: Boolean
B215: Values | K215: 0,1 | L215: 0,1
B216: Value Labels | K216: 0=No;1=Yes | L216: 0=No;1=Yes
B217: Survey Variable2 Name | C217: Not very important-Price | K217: PriceNotVery | L217: CostInitialNotvery
B218: Data File Variable2 Name | K218: 10_AM_Q54_1R01C02 | L218: 13_AM_Q73_1R01C02
B220: Question # (Where to find in survey) | K220: 54 | L220: 73
B221: Question Format | K221: Boolean | L221: Boolean
B222: Values | K222: 0,1 | L222: 0,1
B223: Value Labels | K223: 0=No;1=Yes | L223: 0=No;1=Yes
B224: Survey Variable3 Name | C224: Neutral-Price | K224: PriceNeutral | L224: CostInitialNeutral
B225: Data File Variable3 Name | K225: 10_AM_Q54_1R01C03 | L225: 13_AM_Q73_1R01C03
B227: Question # (Where to find in survey) | K227: 54 | L227: 73
B228: Question Format | K228: Boolean | L228: Boolean
B229: Values | K229: 0,1 | L229: 0,1
B230: Value Labels | K230: 0=No;1=Yes | L230: 0=No;1=Yes
B231: Survey Variable4 Name | C231: Somewhat important-Price | K231: PriceSomewhat | L231: CostInitialSomewhat
B232: Data File Variable4 Name | K232: 10_AM_Q54_1R01C04 | L232: 13_AM_Q73_1R01C04
B234: Question # (Where to find in survey) | K234: 54 | L234: 73
B235: Question Format | K235: Boolean | L235: Boolean
... 582 more rows

Sheet National ITS Arch
B2: National ITS Architecture
C3: Choices (in batteries) | D3: 1999 | E3: 2000 | F3: 2002 | G3: 2004 | H3: 2005 | I3: 2006 | J3: 2007 | K3: 2010 | L3: 2013 | M3: 2016
B7: ATTENDED ARCHITECTURE TRAINING
B8: Question Wording | E8: Have any members of your staff attended USDOT-sponsored National ITS Architecture training courses?
B9: Question # (Where to find in survey) | E9: 18
B10: Question Format | E10: Multiple Choice
B11: Values | E11: 0,1,2,3
B12: Value Labels | E12: 0=No;1=Yes;2=No Response;3=Don’t Know
B13: Survey Variable1 Name | C13: Architecture training | E13: itstraining
B14: Data File Variable1 Name | E14: 00_AM_Q18_1R01C01
E16: If not, why not?
B17: Question # (Where to find in survey) | E17: 18
B18: Question Format | E18: Boolean
B19: Values | E19: 0,1
B20: Value Labels | E20: 0=No;1=Yes
B21: Survey Variable1 Name | C21: We are unaware of the availability USDOT-sponsored architecture training courses. | E21: notrainingunaware
B22: Data File Variable1 Name | E22: 00_AM_Q18_2R01C01
B24: Question # (Where to find in survey) | E24: 18
B25: Question Format | E25: Boolean
B26: Values | E26: 0,1
B27: Value Labels | E27: 0=No;1=Yes
B28: Survey Variable2 Name | C28: We are aware of such training, but have no funding to support staff participation. | E28: notrainingfunding
B29: Data File Variable2 Name | E29: 00_AM_Q18_2R02C01
B31: Question # (Where to find in survey) | E31: 18
B32: Question Format | E32: Boolean
B33: Values | E33: 0,1
B34: Value Labels | E34: 0=No;1=Yes
B35: Survey Variable3 Name | C35: We plan to send a member of our staff to the training courses within the year. | E35: notrainingfuture
B36: Data File Variable3 Name | E36: 00_AM_Q18_2R03C01
B38: Question # (Where to find in survey) | E38: 18
B39: Question Format | E39: Boolean
B40: Values | E40: 0,1
B41: Value Labels | E41: 0=No;1=Yes
B42: Survey Variable4 Name | C42: We are aware of such training, but it is not a priority to send staff to participate. | E42: notrainingpriority
B43: Data File Variable4 Name | E43: 00_AM_Q18_2R04C01
B45: Question # (Where to find in survey) | E45: 18
B46: Question Format | E46: Boolean
B47: Values | E47: 0,1
B48: Value Labels | E48: 0=No;1=Yes
B49: Survey Variable5 Name | C49: Other | E49: notrainingother
B50: Data File Variable5 Name | E50: 00_AM_Q18_2R05C01
B52: Question # (Where to find in survey) | E52: 18
B53: Question Format | E53: Text
B54: Values
B55: Value Labels
B56: Survey Variable6 Name | C56: Other (description) | E56: notrainingotherdescription
B57: Data File Variable6 Name | E57: 00_AM_Q18_2R06C01TXT
B59: REGIONAL ITS ARCHITECTURE
B60: Question Wording | E60: Is your agency involved in an organized effort to develop a regional ITS architecture?
B61: Question # (Where to find in survey) | E61: 19
B62: Question Format | E62: Multiple Choice
B63: Values | E63: 0,1,2,3
B64: Value Labels | E64: 0=No;1=Yes;2=No Response;3=Don’t Know
B65: Survey Variable1 Name | C65: Architecture development | E65: organizedarchitecture
B66: Data File Variable1 Name | E66: 00_AM_Q19_1R01C01
E68: If yes, what is the status of the regional architecture?
B69: Question # (Where to find in survey) | E69: 19
B70: Question Format | E70: Multiple Choice
B71: Values | E71: 0,1,2
B72: Value Labels | E72: 1=full developed; 2=initial development;0=neither
B73: Survey Variable1 Name | C73: Architecture development status | E73: organizedarchyesstatus
B74: Data File Variable1 Name | E74: 00_AM_Q19_2R01C01
E76: If not, why not?
B77: Question # (Where to find in survey) | E77: 19
B78: Question Format | E78: Multiple Choice
B79: Values | E79: 0,1,3
B80: Value Labels | E80: 1=no effort in region; 2=effort, but not involved;0=neither
B81: Survey Variable1 Name | C81: Architecture why not | E81: organizedarchnostatus
B82: Data File Variable1 Name | E82: 00_AM_Q19_3R01C01
E84: If you answered yes to [the previous] question 19, what other agencies are involved, and which one is the lead for this effort?
B85: Question # (Where to find in survey) | E85: 20
B86: Question Format | E86: Boolean
B87: Values | E87: 0,1
B88: Value Labels | E88: 0=No;1=Yes
B89: Survey Variable1 Name | C89: State department of transportation County highway authority(s) | E89: State_DOTLeadAgency
B90: Data File Variable1 Name | E90: 00_AM_Q20_1R02C01
B92: Question # (Where to find in survey) | E92: 20
B93: Question Format | E93: Boolean
B94: Values | E94: 0,1
B95: Value Labels | E95: 0=No;1=Yes
B96: Survey Variable2 Name | C96: County highway authority(s) | E96: County_highway_authorityLeadAgency
B97: Data File Variable2 Name | E97: 00_AM_Q20_1R04C01
B99: Question # (Where to find in survey) | E99: 20
B100: Question Format | E100: Boolean
B101: Values | E101: 0,1
B102: Value Labels | E102: 0=No;1=Yes
B103: Survey Variable3 Name | C103: City transportation department(s) | E103: City_trans_departmentLeadAgency
B104: Data File Variable3 Name | E104: 00_AM_Q20_1R06C01
B106: Question # (Where to find in survey) | E106: 20
B107: Question Format | E107: Boolean
B108: Values | E108: 0,1
B109: Value Labels | E109: 0=No;1=Yes
B110: Survey Variable4 Name | C110: Transit property(s) | E110: Transit_propertyLeadAgency
B111: Data File Variable4 Name | E111: 00_AM_Q20_1R08C01
B113: Question # (Where to find in survey) | E113: 20
B114: Question Format | E114: Boolean
B115: Values | E115: 0,1
B116: Value Labels | E116: 0=No;1=Yes
B117: Survey Variable5 Name | C117: Rail agency | E117: Rail_agencyLeadAgency
B118: Data File Variable5 Name | E118: 00_AM_Q20_1R10C01
B120: Question # (Where to find in survey) | E120: 20
B121: Question Format | E121: Boolean
B122: Values | E122: 0,1
B123: Value Labels | E123: 0=No;1=Yes
B124: Survey Variable6 Name | C124: MPO | E124: MPOLeadAgency
B125: Data File Variable6 Name | E125: 00_AM_Q20_1R12C01
B127: Question # (Where to find in survey) | E127: 20
B128: Question Format | E128: Boolean
B129: Values | E129: 0,1
B130: Value Labels | E130: 0=No;1=Yes
B131: Survey Variable7 Name | C131: Fire department(s) | E131: Fire_departmentLeadAgency
B132: Data File Variable7 Name | E132: 00_AM_Q20_1R14C01
B134: Question # (Where to find in survey) | E134: 20
B135: Question Format | E135: Boolean
B136: Values | E136: 0,1
B137: Value Labels | E137: 0=No;1=Yes
B138: Survey Variable8 Name | C138: Local police department(s) | E138: Local_police_departmentLeadAgency
B139: Data File Variable8 Name | E139: 00_AM_Q20_1R16C01
B141: Question # (Where to find in survey) | E141: 20
B142: Question Format | E142: Boolean
B143: Values | E143: 0,1
B144: Value Labels | E144: 0=No;1=Yes
B145: Survey Variable9 Name | C145: State police/Highway patrol | E145: State_policeLeadAgency
B146: Data File Variable9 Name | E146: 00_AM_Q20_1R18C01
B148: Question # (Where to find in survey) | E148: 20
B149: Question Format | E149: Boolean
B150: Values | E150: 0,1
B151: Value Labels | E151: 0=No;1=Yes
B152: Survey Variable10 Name | C152: Other emergency services provider(s) ) | E152: Other_ER_services_provLeadAgency
B153: Data File Variable10 Name | E153: 00_AM_Q20_1R27C01
B155: Question # (Where to find in survey) | E155: 20
B156: Question Format | E156: Boolean
B157: Values | E157: 0,1
B158: Value Labels | E158: 0=No;1=Yes
B159: Survey Variable11 Name | C159: Toll authority(s) | E159: Toll_authorityLeadAgency
B160: Data File Variable11 Name | E160: 00_AM_Q20_1R20C01
B162: Question # (Where to find in survey) | E162: 20
B163: Question Format | E163: Boolean
B164: Values | E164: 0,1
B165: Value Labels | E165: 0=No;1=Yes
B166: Survey Variable12 Name | C166: Airport authority | E166: Airport_authorityLeadAgency
B167: Data File Variable12 Name | E167: 00_AM_Q20_1R22C01
B169: Question # (Where to find in survey) | E169: 20
B170: Question Format | E170: Boolean
B171: Values | E171: 0,1
B172: Value Labels | E172: 0=No;1=Yes
B173: Survey Variable13 Name | C173: Other port authority (please specify) | E173: Other_port_authorityLeadAgency
B174: Data File Variable13 Name | E174: 00_AM_Q20_1R29C01
B176: Question # (Where to find in survey) | E176: 20
B177: Question Format | E177: Boolean
B178: Values | E178: 0,1
B179: Value Labels | E179: 0=No;1=Yes
B180: Survey Variable14 Name | C180: Freight shippers (private sector) | E180: Freight_shippers_LeadAgency
B181: Data File Variable14 Name | E181: 00_AM_Q20_1R24C01
B183: Question # (Where to find in survey) | E183: 20
B184: Question Format | E184: Boolean
B185: Values | E185: 0,1
B186: Value Labels | E186: 0=No;1=Yes
B187: Survey Variable15 Name | C187: Traveler information service providers (private sector) | E187: Traveler_info_service_provLeadAgency
B188: Data File Variable15 Name | E188: 00_AM_Q20_1R26C01
B190: Question # (Where to find in survey) | E190: 20
B191: Question Format | E191: Boolean
B192: Values | E192: 0,1
B193: Value Labels | E193: 0=No;1=Yes
B194: Survey Variable16 Name | C194: Other | E194: OTHER_AMQ20LeadAgency
B195: Data File Variable16 Name | E195: 00_AM_Q20_1R31C01
B197: Question Wording | E197: What is the nature of the regional architecture?
B198: Question # (Where to find in survey) | E198: 21
B199: Question Format | E199: Multiple Choice
B200: Values | E200: 1,2,3,4,5,6
B201: Value Labels | E201: 1=Single county;2=more than one county;3=entire state;4=corridor;5=Don't know;6=No Response
B202: Survey Variable1 Name | C202: Nature of regional architecture | E202: natureregionalarch
B203: Data File Variable1 Name | E203: 00_AM_Q21_1R01C01
B205: Question Wording | E205: Have you attempted to develop a project architecture within your regional architecture?
B206: Question # (Where to find in survey) | E206: 22
B207: Question Format | E207: Multiple Choice
B208: Values | E208: 0,1,2,3
B209: Value Labels | E209: 0=No;1=Yes;2=No Response;3=Don’t Know
B210: Survey Variable1 Name | C210: Project architecture | E210: projectarchitectures
B211: Data File Variable1 Name | E211: 00_AM_Q22_1R01C01
B213: Question Wording | E213: Number of project architectures
B214: Question # (Where to find in survey) | E214: 22
B215: Question Format | E215: Numeric
B216: Values
B217: Value Labels
B218: Survey Variable1 Name | C218: Number of project architectures | E218: projectarchitecturesnumber
B219: Data File Variable1 Name | E219: 00_AM_Q22_2R01C01
B221: Question Wording | E221: How long has your agency been involved with the region's architecture development?
B222: Question # (Where to find in survey) | E222: 23
B223: Question Format | E223: Multiple Choice
B224: Values | E224: 1,2,3,4,5
B225: Value Labels | E225: 1=Less than one year;2=one to two years;3=longer than two years; 4=Don't know; 5=No Response
B226: Survey Variable1 Name | C226: Project architecture development time | E226: archeffortlength
B227: Data File Variable1 Name | E227: 00_AM_Q23_1R01C01
B229: TRAVELER INFORMATION MARKET PACKAGES USED
B230: Question Wording | I230: Please check the equipment packages (from the list below) defined in the ATIS1-Broadcast Traveler Information Market Package that are featured in your Regional ITS Architecture (if any).
B231: Question # (Where to find in survey) | I231: 49
B232: Question Format | I232: Boolean
B233: Values | I233: 0,1
B234: Value Labels | I234: 0=No;1=Yes
... 156 more rows

Sheet Parking
A1: Parking
B2: Parking
C3: Choices (in batteries) | D3: 1999 | E3: 2000 | F3: 2002 | G3: 2004 | H3: 2005 | I3: 2006 | J3: 2007 | K3: 2010 | L3: 2013 | M3: 2016
B7: DEPLOYED PARKING MANAGEMENT SYSTEMS
B8: Question Wording | I8: Does your agency deploy parking management systems that disseminate parking availability information to drivers? | J8: Does your agency deploy parking management systems that disseminate parking availability information to drivers? | K8: Does your agency deploy parking management systems that disseminate parking availability information to drivers? | L8: Does your agency deploy parking management systems that disseminate parking availability information to drivers? | M8: Does your agency disseminate parking availability information?
B9: Question # (Where to find in survey) | I9: 28 | J9: 27 | K9: 44 | L9: 22 | M9: 17
B10: Question Format | I10: Multiple Choice | J10: Multiple Choice | K10: Multiple Choice | L10: Multiple Choice | M10: Multiple Choice
B11: Values | I11: 0,1,2 | J11: 0,1,2 | K11: 0,1,2 | L11: 0,1,2 | M11: 0,1,2
B12: Value Labels | I12: 0=No;1=Yes;2=No Response | J12: 0=No;1=Yes;2=No Response | K12: 0=No;1=Yes;2=No Response | L12: 0=No;1=Yes;2=No Response | M12: 0=No;1=Yes;2=No Response
B13: Survey Variable1 Name | C13: Parking management system | I13: ParkingMgtDriverinfo | J13: ParkingMgtDriverInfo | K13: ParkingAvailability | L13: ParkingInfoDisseminate | M13: ParkingInfoDisseminate
B14: Data File Variable1 Name | I14: 06_AM_Q28_1R01C01 | J14: 07_AM_Q27_1R01C01 | K14: 10_AM_Q44_1R01C01 | L14: 13_AM_Q22_1R01C01 | M14: 16_AM_Q17_1R01C01
B16: Question Wording | I16: Does your agency deploy parking management data collection systems that monitor the availability of parking? | J16: Does your agency deploy parking management data collection systems that monitor the availability of parking? | K16: Does your agency deploy parking management data collection systems that monitor the availability of parking? | L16: Does your agency deploy parking management data collection systems that monitor the availability of parking? | M16: Does your agency and/or a private entity monitor the availability of parking? (Select only one response)
B17: Question # (Where to find in survey) | I17: 27 | J17: 26 | K17: 43 | L17: 21 | M17: 16
B18: Question Format | I18: Multiple Choice | J18: Multiple Choice | K18: Multiple Choice | L18: Multiple Choice | M18: Multiple Choice
B19: Values | I19: 0,1,2 | J19: 0,1,2 | K19: 0,1,2 | L19: 0,1,2 | M19: 1,2,3,4,5
B20: Value Labels | I20: 0=No;1=Yes;2=No Response | J20: 0=No;1=Yes;2=No Response | K20: 0=No;1=Yes;2=No Response | L20: 0=No;1=Yes;2=No Response | M20: 1=Yes, agency monitors; 2=Yes, private entity monitors; 3=Yes, both agency and private entity monitors; 4=No; 5=No Response.
B21: Survey Variable1 Name | C21: Monitor parking information | I21: ParkingMgtAvailability | J21: ParkingMgtAvailability | K21: ParkingManagement | L21: ParkingMgtSystem | M21: ParkingMgtSystem
B22: Data File Variable1 Name | I22: 06_AM_Q27_1R01C01 | J22: 07_AM_Q26_1R01C01 | K22: 10_AM_Q43_1R01C01 | L22: 13_AM_Q21_1R01C01 | M22: 16_AM_Q16_1R01C01
B24: Question Wording | L24: Indicate which parking modes are monitored:
B25: Question # (Where to find in survey) | L25: 21
B26: Question Format | L26: Boolean
B27: Values | L27: 0,1
B28: Value Labels | L28: 0=No;1=Yes
B29: Survey Variable1 Name | C29: On-street parking | L29: ParkingMgtSystemStreet
B30: Data File Variable1 Name | L30: 13_AM_Q21_2R01C01
B32: Question # (Where to find in survey) | L32: 21
B33: Question Format | L33: Boolean
B34: Values | L34: 0,1
B35: Value Labels | L35: 0=No;1=Yes
B36: Survey Variable2 Name | C36: Parking lots and/or garage | L36: ParkingMgtSystemLots
B37: Data File Variable2 Name | L37: 13_AM_Q21_2R02C01
B39: Question # (Where to find in survey) | L39: 21
B40: Question Format | L40: Text
B41: Values
B42: Value Labels
B43: Survey Variable3 Name | C43: Other (please describe) | L43: ParkingMgtSystemOthertext
B44: Data File Variable3 Name | L44: 13_AM_Q21_3R01C01TXT
B46: DEPLOYED PARKING FEE PAYMENT SYSTEMS
B47: Question Wording | I47: Does your agency deploy parking fee payment systems to simplify payment for customers and reduce congestion at exits to parking facilities? | J47: Does your agency deploy parking fee payment systems to simplify payment for customers and reduce congestion at exits to parking facilities? | K47: Does your agency use a parking pricing strategy (e.g., peak period surcharges) | L47: Does your agency use a parking pricing strategy (e.g., peak period surcharges) to manage congestion | M47: Does your agency use a parking pricing strategy (e.g., peak period surcharges) to manage congestion
B48: Question # (Where to find in survey) | I48: 29 | J48: 28 | K48: 45 | L48: 23 | M48: 18
B49: Question Format | I49: Multiple Choice | J49: Multiple Choice | K49: Multiple Choice | L49: Multiple Choice | M49: Multiple Choice
B50: Values | I50: 0,1,2 | J50: 0,1,2 | K50: 0,1,2 | L50: 0,1,2 | M50: 0,1,2
B51: Value Labels | I51: 0=No;1=Yes;2=No Response | J51: 0=No;1=Yes;2=No Response | K51: 0=No;1=Yes;2=No Response | L51: 0=No;1=Yes;2=No Response | M51: 0=No;1=Yes;2=No Response
B52: Survey Variable1 Name | C52: Parking fee management | I52: ParkingMgtFeepayment | J52: ParkingMgtFeePayment | K52: ParkingPricing | L52: ParkingPricingStrategy | M52: ParkingPricingStrategy
B53: Data File Variable1 Name | I53: 06_AM_Q29_1R00C01 | J53: 07_AM_Q28_1R01C01 | K53: 10_AM_Q45_1R01C01 | L53: 13_AM_Q23_1R01C01 | M53: 16_AM_Q18_1R01C01
B55: PARKING RESERVATION SYSTEM DEPLOYED
B56: Question Wording | M56: Does your agency allow travelers to reserve a parking space at a destination facility on demand to ensure availability?
B57: Question # (Where to find in survey) | M57: 19
B58: Question Format | M58: Multiple Choice
B59: Values | M59: 0,1,2
B60: Value Labels | M60: 0=No;1=Yes;2=No Response
B61: Survey Variable1 Name | C61: Parking traveler reserve | M61: ParkingTravelerReserve
B62: Data File Variable1 Name | M62: 16_AM_Q19_1R01C01

Sheet Plan for Ops
B2: Plan for Operations
C3: Choices (in batteries) | D3: 1999 | E3: 2000 | F3: 2002 | G3: 2004 | H3: 2005 | I3: 2006 | J3: 2007 | K3: 2010 | L3: 2013 | M3: 2016
B7: LONG RANGE ITS PLAN
B8: Question Wording | L8: Is there a long range ITS plan to guide project/program selections
B9: Question # (Where to find in survey) | L9: 76
B10: Question Format | L10: Multiple Choice
B11: Values | L11: 0,1,2
B12: Value Labels | L12: 0=No;1=Yes;2=Don’t Know
B13: Survey Variable1 Name | C13: Long Range ITS | L13: LongRangeItsPlan
B14: Data File Variable1 Name | L14: 13_AM_Q76_1R01C01
B16: SYSTEMS ENGINEERING
B17: Question Wording | L17: Does your agency routinely utilize systems engineering to identify agency needs and requirements when implementing/procuring ITS?
B18: Question # (Where to find in survey) | L18: 77
B19: Question Format | L19: Multiple Choice
B20: Values | L20: 0,1,2
B21: Value Labels | L21: 0=No;1=Yes;2=Don’t Know
B22: Survey Variable1 Name | C22: Routinely Use | L22: RoutinelyUtilizeSystemEng
B23: Data File Variable1 Name | L23: 13_AM_Q77_1R01C01
B25: MODEL DOCUMENTS
B26: Question Wording | L26: Does your agency rely on sample or model procurement documents provided by FHWA (e.g., for ASCT)?
B27: Question # (Where to find in survey) | L27: 78
B28: Question Format | L28: Multiple Choice
B29: Values | L29: 0,1,2
B30: Value Labels | L30: 0=No;1=Yes;2=Don’t Know
B31: Survey Variable1 Name | C31: Rely on Sample Documents | L31: RelySampleModelProcurement
B32: Data File Variable1 Name | L32: 13_AM_Q78_1R01C01
B34: REGIONAL ITS ARCHITECTURE
B35: Question Wording | L35: Is your agency part of the Regional ITS Architecture used to support regional transportation planning? | M35: Is your agency part of the Regional ITS Architecture used to support regional transportation planning?
B36: Question # (Where to find in survey) | L36: 79 | M36: 57
B37: Question Format | L37: Multiple Choice | M37: Multiple Choice
B38: Values | L38: 0,1,2 | M38: 0,1,2
B39: Value Labels | L39: 0=No;1=Yes;2=Don’t Know | M39: 0=No;1=Yes;2=No Response
B40: Survey Variable1 Name | C40: Regional ITS Architecture | L40: RegionalItsArchitecture | M40: RegionalITSArchitecture
B41: Data File Variable1 Name | L41: 13_AM_Q79_1R01C01 | M41: 16_AM_Q57_1R01C01
B43: REGIONAL CONOPS
B44: Question Wording | L44: Is your agency included in a Regional Concept for Transportation Operations? | M44: Is your agency included in a Regional Concept for Transportation Operations?
B45: Question # (Where to find in survey) | L45: 80 | M45: 58
B46: Question Format | L46: Multiple Choice | M46: Multiple Choice
B47: Values | L47: 0,1,2 | M47: 0,1,2
B48: Value Labels | L48: 0=No;1=Yes;2=Don’t Know | M48: 0=No;1=Yes;2=No Response
B49: Survey Variable1 Name | C49: Regional Concept | L49: RegionalConcept | M49: RegionalConcept
B50: Data File Variable1 Name | L50: 13_AM_Q80_1R01C01 | M50: 16_AM_Q58_1R01C01
B52: REGIONAL COORDINATION ACTIVITIES
B53: Question Wording | M53: Select all that apply concerning your agency's participation in regional coordination activities with agencies outside your jurisdiction:
B54: Question # (Where to find in survey) | M54: 56
B55: Question Format | M55: Boolean
B56: Values | M56: 0,1
B57: Value Labels | M57: 0-No;1=Yes
B58: Survey Variable1 Name | C58: No regular interagency meetings | M58: ParticipateRegionalNo
B59: Data File Variable1 Name | M59: 16_AM_Q56_1R01C01
B61: Question # (Where to find in survey) | M61: 56
B62: Question Format | M62: Boolean
B63: Values | M63: 0,1
B64: Value Labels | M64: 0-No;1=Yes
B65: Survey Variable2 Name | C65: Regular meetings with other agencies to coordinate planning | M65: ParticipateRegionalMeetPlan
B66: Data File Variable2 Name | M66: 16_AM_Q56_1R02C01
B68: Question # (Where to find in survey) | M68: 56
B69: Question Format | M69: Boolean
B70: Values | M70: 0,1
B71: Value Labels | M71: 0-No;1=Yes
B72: Survey Variable3 Name | C72: Regular meetings to coordinate operations | M72: ParticipateRegionalMeetOperate
B73: Data File Variable3 Name | M73: 16_AM_Q56_1R03C01
B75: Question # (Where to find in survey) | M75: 56
B76: Question Format | M76: Boolean
B77: Values | M77: 0,1
B78: Value Labels | M78: 0-No;1=Yes
B79: Survey Variable4 Name | C79: Formal agreement on coordination and data sharing with other agencies | M79: ParticipateRegionalAgreeData
B80: Data File Variable4 Name | M80: 16_AM_Q56_1R04C01
B82: Question # (Where to find in survey) | M82: 56
B83: Question Format | M83: Boolean
B84: Values | M84: 0,1
B85: Value Labels | M85: 0-No;1=Yes
B86: Survey Variable5 Name | C86: Formal agreement to integrate operations with other agencies | M86: ParticipateRegionalAgreeOperate
B87: Data File Variable5 Name | M87: 16_AM_Q56_1R05C01

Sheet Road Weather
B2: Road Weather
C3: Choices (in batteries) | D3: 1999 | E3: 2000 | F3: 2002 | G3: 2004 | H3: 2005 | I3: 2006 | J3: 2007 | K3: 2010 | L3: 2013 | M3: 2016
B7: SOURCES OF WEATHER AND ROAD WEATHER INFORMATION
B8: Question Wording | L8: What are your agency's sources of weather and road weather information? | M8: What are your agency's sources of weather and road weather information?
B9: Question # (Where to find in survey) | L9: 30 | M9: 25
B10: Question Format | L10: Boolean | M10: Boolean
B11: Values | L11: 0,1 | M11: 0,1
B12: Value Labels | L12: 0=No;1=Yes | M12: 0=No;1=Yes
B13: Survey Variable1 Name | C13: National Weather Service products | L13: WeatherSourceNationalWeather | M13: WeatherSourceNationalWeather
B14: Data File Variable1 Name | L14: 13_AM_Q30_1R01C01 | M14: 16_AM_Q25_1R01C01
B16: Question # (Where to find in survey) | L16: 30 | M16: 25
B17: Question Format | L17: Boolean | M17: Boolean
B18: Values | L18: 0,1 | M18: 0,1
B19: Value Labels | L19: 0=No;1=Yes | M19: 0=No;1=Yes
B20: Survey Variable2 Name | C20: FAA (ASOS, AWOS, etc.) | L20: WeatherSourceFAA | M20: WeatherSourceFAA
B21: Data File Variable2 Name | L21: 13_AM_Q30_1R02C01 | M21: 16_AM_Q25_1R02C01
B23: Question # (Where to find in survey) | L23: 30 | M23: 25
B24: Question Format | L24: Boolean | M24: Boolean
B25: Values | L25: 0,1 | M25: 0,1
B26: Value Labels | L26: 0=No;1=Yes | M26: 0=No;1=Yes
B27: Survey Variable3 Name | C27: USGS earthquake alerts | L27: WeatherSourceUSGS | M27: WeatherSourceUSGS
B28: Data File Variable3 Name | L28: 13_AM_Q30_1R03C01 | M28: 16_AM_Q25_1R03C01
B30: Question # (Where to find in survey) | L30: 30 | M30: 25
B31: Question Format | L31: Boolean | M31: Boolean
B32: Values | L32: 0,1 | M32: 0,1
B33: Value Labels | L33: 0=No;1=Yes | M33: 0=No;1=Yes
B34: Survey Variable4 Name | C34: Agency field personnel | L34: WeatherSourceFieldPersonnel | M34: WeatherSourceFieldPersonnel
B35: Data File Variable4 Name | L35: 13_AM_Q30_1R04C01 | M35: 16_AM_Q25_1R04C01
B37: Question # (Where to find in survey) | L37: 30 | M37: 25
B38: Question Format | L38: Boolean | M38: Boolean
B39: Values | L39: 0,1 | M39: 0,1
B40: Value Labels | L40: 0=No;1=Yes | M40: 0=No;1=Yes
B41: Survey Variable5 Name | C41: Agency field sensors (RWIS/ESS, probes, etc.) | L41: WeatherSourceFIeldSensors | M41: WeatherSourceFIeldSensors
B42: Data File Variable5 Name | L42: 13_AM_Q30_1R05C01 | M42: 16_AM_Q25_1R05C01
B44: Question # (Where to find in survey) | L44: 30 | M44: 25
B45: Question Format | L45: Boolean | M45: Boolean
B46: Values | L46: 0,1 | M46: 0,1
B47: Value Labels | L47: 0=No;1=Yes | M47: 0=No;1=Yes
B48: Survey Variable6 Name | C48: National sensor data sources (Clarus/MADIS) | L48: WeatherSourceClarus | M48: WeatherSourceClarus
B49: Data File Variable6 Name | L49: 13_AM_Q30_1R06C01 | M49: 16_AM_Q25_1R06C01
B51: Question # (Where to find in survey) | L51: 30 | M51: 25
B52: Question Format | L52: Boolean | M52: Boolean
B53: Values | L53: 0,1 | M53: 0,1
B54: Value Labels | L54: 0=No;1=Yes | M54: 0=No;1=Yes
B55: Survey Variable7 Name | C55: Private providers | L55: WeatherSourcePrivate | M55: WeatherSourcePrivate
B56: Data File Variable7 Name | L56: 13_AM_Q30_1R07C01 | M56: 16_AM_Q25_1R07C01
B58: Question # (Where to find in survey) | L58: 30 | M58: 25
B59: Question Format | L59: Text | M59: Text
B60: Values
B61: Value Labels
B62: Survey Variable8 Name | C62: Other (please specify): | L62: WeatherSourceOtherText | M62: WeatherSourceOtherText
B63: Data File Variable8 Name | L63: 13_AM_Q30_1R08C01TXT | M63: 16_AM_Q25_1R08C01TXT
B65: WEATHER ENVIRONMENTAL SENSOR STATIONS (ESS)
B66: Question Wording | F66: Has your agency deployed any Road Weather Information Systems (RWIS)? | G66: Has your agency deployed any Road Weather Information Systems (RWIS)? | K66: Has your agency deployed any Environmental Sensor Stations? | L66: Has your agency deployed any Environmental Sensor Stations (ESS)? | M66: Has your agency deployed any Environmental Sensor Stations (ESS)?
B67: Question # (Where to find in survey) | F67: 33 | G67: 50 | K67: 41 | L67: 32 | M67: 27
B68: Question Format | F68: Multiple Choice | G68: Multiple Choice | K68: Multiple Choice | L68: Multiple Choice | M68: Multiple Choice
B69: Values | F69: 0,1,2 | G69: 0,1,2 | K69: 0,1,2 | L69: 0,1,2 | M69: 0,1,2
B70: Value Labels | F70: 0=No;1=Yes;2=No Response | G70: 0=No;1=Yes;2=No Response | K70: 0=No;1=Yes;2=No Response | L70: 0=No;1=Yes;2=No Response | M70: 0=No;1=Yes;2=No Response
B71: Survey Variable1 Name | C71: Operate Weather | F71: RWISdeployed | G71: RWISdeployed | K71: DeployESS | L71: DeployESS | M71: DeployESS
B72: Data File Variable1 Name | F72: 02_AM_Q33_1R01C01 | G72: 04_AM_Q50_1R01C01 | K72: 10_AM_Q41_1R01C01 | L72: 13_AM_Q32_1R01C01 | M72: 16_AM_Q27_1R01C01
F74: Yes, how many have you deployed? | G74: Yes, how many have you deployed? | K74: Yes, how many? | L74: Yes, how many? | M74: Yes, how many?
B75: Question # (Where to find in survey) | F75: 33 | G75: 50 | K75: 41 | L75: 32 | M75: 27
B76: Question Format | F76: Numeric | G76: Numeric | K76: Numeric | L76: Numeric | M76: Numeric
B77: Values
B78: Value Labels
B79: Survey Variable1 Name | C79: RWIS Deployed | F79: RWISdeployed_howmany | G79: RWISdeployed_howmany | K79: DeployESSHowMany | L79: DeployESSHowMany | M79: DeployESSHowMany
B80: Data File Variable1 Name | F80: 02_AM_Q33_2R01C01 | G80: 04_AM_Q50_2R01C01 | K80: 10_AM_Q41_2R01C01 | L80: 13_AM_Q32_2R01C01 | M80: 16_AM_Q27_2R01C01
F82: What information is collected? (Check all that apply) | G82: What information is collected? (Check all that apply) | K82: What data are collected? | L82: What data are collected by ESS and in-pavement sensors? | M82: What data are collected by ESS and in-pavement sensors?
B83: Question # (Where to find in survey) | F83: 33 | G83: 50 | K83: 41 | L83: 32 | M83: 27
B84: Question Format | F84: Multiple Choice | G84: Multiple Choice | K84: Boolean | L84: Boolean | M84: Boolean
B85: Values | F85: 0,1,2 | G85: 0,1,2 | K85: 0,1 | L85: 0,1 | M85: 0,1
B86: Value Labels | F86: 0=No;1=Yes;2=No Response | G86: 0=No;1=Yes;2=No Response | K86: 0=No;1=Yes | L86: 0=No;1=Yes | M86: 0=No;1=Yes
B87: Survey Variable1 Name | C87: Temperature | F87: RWISdeployed_temp | G87: RWISdeployed_temp | K87: ESSTemp | L87: ESSCollectTemp | M87: ESSCollectTemp
B88: Data File Variable1 Name | F88: 02_AM_Q33_3R02C01 | G88: 04_AM_Q50_3R01C01 | K88: 10_AM_Q41_2R02C01 | L88: 13_AM_Q32_3R04C01 | M88: 16_AM_Q27_3R04C01
B90: Question # (Where to find in survey) | F90: 33 | G90: 50 | K90: 41 | L90: 32 | M90: 27
B91: Question Format | F91: Multiple Choice | G91: Multiple Choice | K91: Boolean | L91: Boolean | M91: Boolean
B92: Values | F92: 0,1,2 | G92: 0,1,2 | K92: 0,1 | L92: 0,1 | M92: 0,1
B93: Value Labels | F93: 0=No;1=Yes;2=No Response | G93: 0=No;1=Yes;2=No Response | K93: 0=No;1=Yes | L93: 0=No;1=Yes | M93: 0=No;1=Yes
B94: Survey Variable2 Name | C94: Humidity | F94: RWISdeployed_humidity | G94: RWISdeployed_humidity | K94: ESSHumidity | L94: ESSCollectHumidity | M94: ESSCollectHumidity
B95: Data File Variable2 Name | F95: 02_AM_Q33_3R03C01 | G95: 04_AM_Q50_3R02C01 | K95: 10_AM_Q41_2R03C01 | L95: 13_AM_Q32_3R05C01 | M95: 16_AM_Q27_3R05C01
B97: Question # (Where to find in survey) | F97: 33 | G97: 50 | K97: 41 | L97: 32 | M97: 27
B98: Question Format | F98: Multiple Choice | G98: Multiple Choice | K98: Boolean | L98: Boolean | M98: Boolean
B99: Values | F99: 0,1,2 | G99: 0,1,2 | K99: 0,1 | L99: 0,1 | M99: 0,1
B100: Value Labels | F100: 0=No;1=Yes;2=No Response | G100: 0=No;1=Yes;2=No Response | K100: 0=No;1=Yes | L100: 0=No;1=Yes | M100: 0=No;1=Yes
B101: Survey Variable3 Name | C101: Wind speed | F101: RWISdeployed_Wspeed | G101: RWISdeployed_Wspeed | K101: ESSWindSpeed | L101: ESSCollectWindSpeed | M101: ESSCollectWindSpeed
B102: Data File Variable3 Name | F102: 02_AM_Q33_3R04C01 | G102: 04_AM_Q50_3R03C01 | K102: 10_AM_Q41_2R04C01 | L102: 13_AM_Q32_3R06C01 | M102: 16_AM_Q27_3R06C01
B104: Question # (Where to find in survey) | F104: 33 | G104: 50
B105: Question Format | F105: Multiple Choice | G105: Multiple Choice
B106: Values | F106: 0,1,2 | G106: 0,1,2
B107: Value Labels | F107: 0=No;1=Yes;2=No Response | G107: 0=No;1=Yes;2=No Response
B108: Survey Variable4 Name | C108: Wind direction | F108: RWISdeployed_Wdirection | G108: RWISdeployed_Wdirection
B109: Data File Variable4 Name | F109: 02_AM_Q33_3R05C01 | G109: 04_AM_Q50_3R04C01
B111: Question # (Where to find in survey) | F111: 33 | G111: 50 | K111: 41 | L111: 32 | M111: 27
B112: Question Format | F112: Multiple Choice | G112: Multiple Choice | K112: Boolean | L112: Boolean | M112: Boolean
B113: Values | F113: 0,1,2 | G113: 0,1,2 | K113: 0,1 | L113: 0,1 | M113: 0,1
B114: Value Labels | F114: 0=No;1=Yes;2=No Response | G114: 0=No;1=Yes;2=No Response | K114: 0=No;1=Yes | L114: 0=No;1=Yes | M114: 0=No;1=Yes
B115: Survey Variable5 Name | C115: Precipitation (rain) | F115: RWISdeployed_rain | G115: RWISdeployed_rain | K115: ESSRain | L115: ESSCollectRain | M115: ESSCollectRain
B116: Data File Variable5 Name | F116: 02_AM_Q33_3R06C01 | G116: 04_AM_Q50_3R05C01 | K116: 10_AM_Q41_2R05C01 | L116: 13_AM_Q32_3R07C01 | M116: 16_AM_Q27_3R07C01
B118: Question # (Where to find in survey) | F118: 33 | G118: 50 | K118: 41 | L118: 32 | M118: 27
B119: Question Format | F119: Multiple Choice | G119: Multiple Choice | K119: Boolean | L119: Boolean | M119: Boolean
B120: Values | F120: 0,1,2 | G120: 0,1,2 | K120: 0,1 | L120: 0,1 | M120: 0,1
B121: Value Labels | F121: 0=No;1=Yes;2=No Response | G121: 0=No;1=Yes;2=No Response | K121: 0=No;1=Yes | L121: 0=No;1=Yes | M121: 0=No;1=Yes
B122: Survey Variable6 Name | C122: Precipitation (snow) | F122: RWISdeployed_snow | G122: RWISdeployed_snow | K122: ESSSnow | L122: ESSCollectSnow | M122: ESSCollectSnow
B123: Data File Variable6 Name | F123: 02_AM_Q33_3R07C01 | G123: 04_AM_Q50_3R06C01 | K123: 10_AM_Q41_2R06C01 | L123: 13_AM_Q32_3R08C01 | M123: 16_AM_Q27_3R08C01
B125: Question # (Where to find in survey) | M125: 27
B126: Question Format | M126: Boolean
B127: Values | M127: 0,1
B128: Value Labels | M128: 0=No;1=Yes
B129: Survey Variable7 Name | C129: Visibility | M129: ESSCollectVisibility
B130: Data File Variable7 Name | M130: 16_AM_Q27_3R09C01
B132: Question # (Where to find in survey) | F132: 33 | G132: 50 | K132: 41 | L132: 32 | M132: 27
B133: Question Format | F133: Text | G133: Text | K133: Text | L133: Text | M133: Text
B134: Values
B135: Value Labels
B136: Survey Variable8 Name | C136: Other (please specify) | F136: RWISdeployed_other | G136: RWISdeployed_other | K136: ESSOtherText | L136: ESSCollectOtherText | M136: ESSCollectOtherText
B137: Data File Variable8 Name | F137: 02_AM_Q33_3R08C01TXT | G137: 04_AM_Q50_3R07C01TXT | K137: 10_AM_Q41_2R07C01TXT | L137: 13_AM_Q32_3R09C01TXT | M137: 16_AM_Q27_3R10C01TXT
B139: Question # (Where to find in survey) | L139: 32 | M139: 27
B140: Question Format | L140: Boolean | M140: Boolean
B141: Values | L141: 0,1 | M141: 0,1
B142: Value Labels | L142: 0=No;1=Yes | M142: 0=No;1=Yes
B143: Survey Variable9 Name | C143: Pavement temperature | L143: ESSCollectPavementTemp | M143: ESSCollectPavementTemp
B144: Data File Variable9 Name | L144: 13_AM_Q32_3R01C01 | M144: 16_AM_Q27_3R01C01
B146: Question # (Where to find in survey) | L146: 32 | M146: 27
B147: Question Format | L147: Boolean | M147: Boolean
B148: Values | L148: 0,1 | M148: 0,1
B149: Value Labels | L149: 0=No;1=Yes | M149: 0=No;1=Yes
B150: Survey Variable10 Name | C150: Pavement surface condition | L150: ESSCollectPavementSurface | M150: ESSCollectPavementSurface
B151: Data File Variable10 Name | L151: 13_AM_Q32_3R02C01 | M151: 16_AM_Q27_3R02C01
B153: Question # (Where to find in survey) | L153: 32 | M153: 27
B154: Question Format | L154: Boolean | M154: Boolean
B155: Values | L155: 0,1 | M155: 0,1
B156: Value Labels | L156: 0=No;1=Yes | M156: 0=No;1=Yes
B157: Survey Variable11 Name | C157: Pavement precipitation | L157: ESSCollectPavementPrecip | M157: ESSCollectPavementPrecip
B158: Data File Variable11 Name | L158: 13_AM_Q32_3R03C01 | M158: 16_AM_Q27_3R03C01
B160: Question Wording | F160: Does your agency have any in-pavement sensors to detect the condition of the roadway? | G160: Does your agency have any in-pavement sensors to detect the condition of the roadway? | K160: Does your agency have in-pavement sensors to detect the condition of the pavement?
B161: Question # (Where to find in survey) | F161: 34 | G161: 49 | K161: 40
B162: Question Format | F162: Multiple Choice | G162: Multiple Choice | K162: Multiple Choice
B163: Values | F163: 0,1,2 | G163: 0,1,2 | K163: 0,1,2
B164: Value Labels | F164: 0=No;1=Yes;2=No Response | G164: 0=No;1=Yes;2=No Response | K164: 0=No;1=Yes;2=No Response
B165: Survey Variable1 Name | C165: In-pavement sensors | F165: ipsensors | G165: InPavementSensors | K165: InpavementSensors
B166: Data File Variable1 Name | F166: 02_AM_Q34_1R01C01 | G166: 04_AM_Q49_1R01C01 | K166: 10_AM_Q40_1R01C01
F168: Yes, what conditions are measured? (Check all that apply) | G168: Yes, what conditions are measured? (Check all that apply)
B169: Question # (Where to find in survey) | F169: 34 | G169: 49
B170: Question Format | F170: Multiple Choice | G170: Multiple Choice
B171: Values | F171: 0,1,2 | G171: 0,1,2
B172: Value Labels | F172: 0=No;1=Yes;2=No Response | G172: 0=No;1=Yes;2=No Response
B173: Survey Variable1 Name | C173: Temperature | F173: ipsensors_temp | G173: InPavementSensorsTemp
B174: Data File Variable1 Name | F174: 02_AM_Q34_2R01C01 | G174: 04_AM_Q49_2R01C01
B176: Question # (Where to find in survey) | F176: 34 | G176: 49
B177: Question Format | F177: Multiple Choice | G177: Multiple Choice
B178: Values | F178: 0,1,2 | G178: 0,1,2
B179: Value Labels | F179: 0=No;1=Yes;2=No Response | G179: 0=No;1=Yes;2=No Response
B180: Survey Variable2 Name | C180: Presence of water | F180: ipsensors_water | G180: InPavementSensorsWater
B181: Data File Variable2 Name | F181: 02_AM_Q34_2R02C01 | G181: 04_AM_Q49_2R02C01
B183: Question # (Where to find in survey) | F183: 34 | G183: 49
B184: Question Format | F184: Multiple Choice | G184: Multiple Choice
B185: Values | F185: 0,1,2 | G185: 0,1,2
B186: Value Labels | F186: 0=No;1=Yes;2=No Response | G186: 0=No;1=Yes;2=No Response
B187: Survey Variable3 Name | C187: Presence of ice | F187: ipsensors_ice | G187: InPavementSensorsIce
B188: Data File Variable3 Name | F188: 02_AM_Q34_2R03C01 | G188: 04_AM_Q49_2R03C01
B190: Question # (Where to find in survey) | F190: 34 | G190: 49
B191: Question Format | F191: Multiple Choice | G191: Multiple Choice
B192: Values | F192: 0,1,2 | G192: 0,1,2
B193: Value Labels | F193: 0=No;1=Yes;2=No Response | G193: 0=No;1=Yes;2=No Response
B194: Survey Variable4 Name | C194: Anti-icing chemical concentration | F194: ipsensors_chemical | G194: InPavementSensorsChemical
B195: Data File Variable4 Name | F195: 02_AM_Q34_2R04C01 | G195: 04_AM_Q49_2R04C01
B197: Question # (Where to find in survey) | F197: 34 | G197: 49
B198: Question Format | F198: Text | G198: Text
B199: Values
B200: Value Labels
B201: Survey Variable5 Name | C201: Other | F201: ipsensors_other | G201: InPavementSensorsOther
B202: Data File Variable5 Name | F202: 02_AM_Q34_2R05C01TXT | G202: 04_AM_Q49_2R05C01TXT
B204: Question Wording | F204: Does your agency receive weather products tailored to your particular requirements? | G204: Does your agency receive weather products tailored to your particular requirements?
B205: Question # (Where to find in survey) | F205: 35 | G205: 51
B206: Question Format | F206: Multiple Choice | G206: Multiple Choice
B207: Values | F207: 0,1,2 | G207: 0,1,2,3
B208: Value Labels | F208: 0=No;1=Yes;2=No Response | G208: 0=No;1=Yes;2=No Response;3=Don’t Know
B209: Survey Variable1 Name | C209: Receive Products | F209: receive_weather_products | G209: receive_weather_products
B210: Data File Variable1 Name | F210: 02_AM_Q35_1R01C01 | G210: 04_AM_Q51_1R01C01
B212: RESPONSE TO WEATHER EVENTS
B213: Question Wording | L213: Does your agency employ safety warning systems related to road weather events? | M213: Does your agency employ safety warning systems related to road weather events?
B214: Question # (Where to find in survey) | L214: 31 | M214: 26
B215: Question Format | L215: Boolean | M215: Boolean
B216: Values | L216: 0,1 | M216: 0,1
B217: Value Labels | L217: 0=No;1=Yes | M217: 0=No;1=Yes
B218: Survey Variable1 Name | C218: High Wind | L218: SafetyWarningWeatherHighWind | M218: SafetyWarningWeatherHighWind
B219: Data File Variable1 Name | L219: 13_AM_Q31_2R01C01 | M219: 16_AM_Q26_2R01C01
B221: Question # (Where to find in survey) | L221: 31 | M221: 26
B222: Question Format | L222: Boolean | M222: Boolean
B223: Values | L223: 0,1 | M223: 0,1
B224: Value Labels | L224: 0=No;1=Yes | M224: 0=No;1=Yes
B225: Survey Variable2 Name | C225: Icy Roads | L225: SafetyWarningWeatherIcyRoads | M225: SafetyWarningWeatherIcyRoads
B226: Data File Variable2 Name | L226: 13_AM_Q31_2R02C01 | M226: 16_AM_Q26_2R02C01
B228: Question # (Where to find in survey) | L228: 31 | M228: 26
B229: Question Format | L229: Boolean | M229: Boolean
B230: Values | L230: 0,1 | M230: 0,1
B231: Value Labels | L231: 0=No;1=Yes | M231: 0=No;1=Yes
B232: Survey Variable3 Name | C232: Fog | L232: SafetyWarningWeatherFog | M232: SafetyWarningWeatherFog
B233: Data File Variable3 Name | L233: 13_AM_Q31_2R03C01 | M233: 16_AM_Q26_2R03C01
B235: Question # (Where to find in survey) | L235: 31 | M235: 26
... 120 more rows

Sheet Safety
B2: Safety
C3: Choices (in batteries) | D3: 1999 | E3: 2000 | F3: 2002 | G3: 2004 | H3: 2005 | I3: 2006 | J3: 2007 | K3: 2010 | L3: 2013 | M3: 2016
B7: SAFETY SYSTEMS DEPLOYMENTS
B8: Question Wording | L8: Has your agency deployed any of the following safety systems? | M8: Has your agency deployed any of the following safety systems?
B9: Question # (Where to find in survey) | L9: 29 | M9: 24
B10: Question Format | L10: Boolean | M10: Boolean
B11: Values | L11: 0,1 | M11: 0,1
B12: Value Labels | L12: 0=No;1=Yes | M12: 0=No;1=Yes
B13: Survey Variable1 Name | C13: Pedestrian warning system | L13: SafetySystemPedestrian | M13: SafetySystemPedestrian
B14: Data File Variable1 Name | L14: 13_AM_Q29_1R01C01 | M14: 16_AM_Q24_1R01C01
B16: Question # (Where to find in survey) | L16: 29 | M16: 24
B17: Question Format | L17: Boolean | M17: Boolean
B18: Values | L18: 0,1 | M18: 0,1
B19: Value Labels | L19: 0=No;1=Yes | M19: 0=No;1=Yes
B20: Survey Variable2 Name | C20: Bicyclist warning system | L20: SafetySystemBicyclist | M20: SafetySystemBicyclist
B21: Data File Variable2 Name | L21: 13_AM_Q29_1R02C01 | M21: 16_AM_Q24_1R02C01
B23: Question # (Where to find in survey) | L23: 29 | M23: 24
B24: Question Format | L24: Boolean | M24: Boolean
B25: Values | L25: 0,1 | M25: 0,1
B26: Value Labels | L26: 0=No;1=Yes | M26: 0=No;1=Yes
B27: Survey Variable3 Name | C27: Over-height warning system | L27: SafetySystemOverHeight | M27: SafetySystemOverHeight
B28: Data File Variable3 Name | L28: 13_AM_Q29_1R03C01 | M28: 16_AM_Q24_1R03C01
B30: Question # (Where to find in survey) | M30: 24
B31: Question Format | M31: Boolean
B32: Values | M32: 0,1
B33: Value Labels | M33: 0=No;1=Yes
B34: Survey Variable4 Name | C34: Speed harmonization | M34: SafetySystemHarmonize
B35: Data File Variable4 Name | M35: 16_AM_Q24_1R04C01
B37: Question # (Where to find in survey) | M37: 24
B38: Question Format | M38: Boolean
B39: Values | M39: 0,1
B40: Value Labels | M40: 0=No;1=Yes
B41: Survey Variable5 Name | C41: Queue warning | M41: SafetySystemQueue
B42: Data File Variable5 Name | M42: 16_AM_Q24_1R05C01
B44: Question # (Where to find in survey) | M44: 24
B45: Question Format | M45: Boolean
B46: Values | M46: 0,1
B47: Value Labels | M47: 0=No;1=Yes
B48: Survey Variable6 Name | C48: Variable Speed limits | M48: SafetySystemVariable
B49: Data File Variable6 Name | M49: 16_AM_Q24_1R07C01
B51: Question # (Where to find in survey) | L51: 29
B52: Question Format | L52: Boolean
B53: Values | L53: 0,1
B54: Value Labels | L54: 0=No;1=Yes
B55: Survey Variable7 Name | C55: Reference Location Signs | L55: SafetySystemSigns
B56: Data File Variable7 Name | L56: 13_AM_Q29_1R04C01
B58: Question # (Where to find in survey) | L58: 29 | M58: 24
B59: Question Format | L59: Boolean | M59: Boolean
B60: Values | L60: 0,1 | M60: 0,1
B61: Value Labels | L61: 0=No;1=Yes | M61: 0=No;1=Yes
B62: Survey Variable8 Name | C62: Dynamic Curve Warning System | L62: SafetySystemDynamicCurve | M62: SafetySystemDynamicCurve
B63: Data File Variable8 Name | L63: 13_AM_Q29_1R05C01 | M63: 16_AM_Q24_1R06C01
B65: Question # (Where to find in survey) | L65: 29 | M65: 24
B66: Question Format | L66: Boolean | M66: Boolean
B67: Values | L67: 0,1 | M67: 0,1
B68: Value Labels | L68: 0=No;1=Yes | M68: 0=No;1=Yes
B69: Survey Variable9 Name | C69: None of the above | L69: SafetySystemNone | M69: SafetySystemNone
B70: Data File Variable9 Name | L70: 13_AM_Q29_1R06C01 | M70: 16_AM_Q24_1R08C01
B72: Question # (Where to find in survey) | M72: 24
B73: Question Format | M73: Text
B74: Values
B75: Value Labels
B76: Survey Variable10 Name | C76: Other (description) | M76: SafetySystemOtherText
B77: Data File Vaariable10 Name | M77: 16_AM_Q24_1R09C01TXT
B79: PEDESTRIAN SAFETY SYSTEMS
B80: Question Wording | F80: Do you have a Pedestrian Safety Program to reduce fatalities, injuries, or conflicts to pedestrians? | G80: Do you have a Pedestrian Safety Program to reduce fatalities, injuries, or conflicts to pedestrians?
B81: Question # (Where to find in survey) | F81: 26 | G81: 37
B82: Question Format | F82: Multiple Choice | G82: Multiple Choice
B83: Values | F83: 1,2,3,4,5 | G83: 1,2,3,4,5
B84: Value Labels | F84: 1=Yes,formal;2=Yes,informal;3=No;4=Don't Know;5=No Response | G84: 1=Yes,formal;2=Yes,informal;3=No;4=Don't Know;5=No Response
B85: Survey Variable1 Name | C85: Pedestrian safety program | F85: PSProgram | G85: PSProgram
B86: Data File Variable1 Name | F86: 02_AM_Q26_1R01C01 | G86: 04_AM_Q37_1R01C01
B88: Question Wording | F88: Do you use electronic devices to collect Pedestrian data (e.g. pedestrian crossing or walking on the sidewalk)? | G88: Do you use electronic devices to collect Pedestrian data (e.g. pedestrian crossing or walking on the sidewalk)?
B89: Question # (Where to find in survey) | F89: 27 | G89: 38
B90: Question Format | F90: Multiple Choice | G90: Multiple Choice
B91: Values | F91: 0,1,2 | G91: 0,1,2
B92: Value Labels | F92: 0=No;1=Yes;2=No Response | G92: 0=No;1=Yes;2=No Response
B93: Survey Variable1 Name | C93: Pedestrian electronic devices | F93: PedElectronicDevices | G93: PedElectronicDevices
B94: Data File Variable1 Name | F94: 02_AM_Q27_1R01C01 | G94: 04_AM_Q38_1R01C01
F96: Yes. What types of devices are used? (Check all that apply) | G96: Yes. What types of devices are used? (Check all that apply)
B97: Question # (Where to find in survey) | F97: 27 | G97: 38
B98: Question Format | F98: Multiple Choice | G98: Multiple Choice
B99: Values | F99: 0,1,2 | G99: 0,1,2
B100: Value Labels | F100: 0=No;1=Yes;2=No Response | G100: 0=No;1=Yes;2=No Response
B101: Survey Variable1 Name | C101: Infrared detection | F101: PedElectronicDevices_infrared | G101: PedElectronicDevices_infrared
B102: Data File Variable1 Name | F102: 02_AM_Q27_2R01C01 | G102: 04_AM_Q38_2R01C01
B104: Question # (Where to find in survey) | F104: 27 | G104: 38
B105: Question Format | F105: Multiple Choice | G105: Multiple Choice
B106: Values | F106: 0,1,2 | G106: 0,1,2
B107: Value Labels | F107: 0=No;1=Yes;2=No Response | G107: 0=No;1=Yes;2=No Response
B108: Survey Variable2 Name | C108: Video imaging | F108: PedElectronicDevices_video | G108: PedElectronicDevices_video
B109: Data File Variable2 Name | F109: 02_AM_Q27_2R02C01 | G109: 04_AM_Q38_2R06C01
B111: Question # (Where to find in survey) | F111: 27 | G111: 38
B112: Question Format | F112: Multiple Choice | G112: Multiple Choice
B113: Values | F113: 0,1,2 | G113: 0,1,2
B114: Value Labels | F114: 0=No;1=Yes;2=No Response | G114: 0=No;1=Yes;2=No Response
B115: Survey Variable3 Name | C115: Push button related | F115: PedElectronicDevices_pushbutton | G115: PedElectronicDevices_pushbutton
B116: Data File Variable3 Name | F116: 02_AM_Q27_2R03C01 | G116: 04_AM_Q38_2R07C01
B118: Question # (Where to find in survey) | F118: 27
B119: Question Format | F119: Multiple Choice
B120: Values | F120: 0,1,2
B121: Value Labels | F121: 0=No;1=Yes;2=No Response
B122: Survey Variable4 Name | C122: Automatic detection | F122: PedElectronicDevices_automatic
B123: Data File Variable4 Name | F123: 02_AM_Q27_2R04C01
B125: Question # (Where to find in survey) | G125: 38
B126: Question Format | G126: Multiple Choice
B127: Values | G127: 0,1,2
B128: Value Labels | G128: 0=No;1=Yes;2=No Response
B129: Survey Variable5 Name | C129: Ultrasonic detector | G129: PedElectronicDevices_ultrasonic
B130: Data File Variable5 Name | G130: 04_AM_Q38_2R02C01
B132: Question # (Where to find in survey) | G132: 38
B133: Question Format | G133: Multiple Choice
B134: Values | G134: 0,1,2
B135: Value Labels | G135: 0=No;1=Yes;2=No Response
B136: Survey Variable6 Name | C136: Doppler radar detection | G136: PedElectronicDevices_doppler
B137: Data File Variable6 Name | G137: 04_AM_Q38_2R03C01
B139: Question # (Where to find in survey) | G139: 38
B140: Question Format | G140: Multiple Choice
B141: Values | G141: 0,1,2
B142: Value Labels | G142: 0=No;1=Yes;2=No Response
B143: Survey Variable7 Name | C143: Microwave detection | G143: PedElectronicDevices_microwave
B144: Data File Variable7 Name | G144: 04_AM_Q38_2R04C01
B146: Question # (Where to find in survey) | G146: 38
B147: Question Format | G147: Multiple Choice
B148: Values | G148: 0,1,2
B149: Value Labels | G149: 0=No;1=Yes;2=No Response
B150: Survey Variable8 Name | C150: Piezometric detection | G150: PedElectronicDevices_piezometric
B151: Data File Variable8 Name | G151: 04_AM_Q38_2R05C01
B153: Question # (Where to find in survey) | F153: 27 | G153: 38
B154: Question Format | F154: Text | G154: Text
B155: Values
B156: Value Labels
B157: Survey Variable9 Name | C157: Other (description) | F157: PedElectronicDevices_other | G157: PedElectronicDevices_other
B158: Data File Variable9 Name | F158: 02_AM_Q27_2R05C01TXT | G158: 04_AM_Q38_2R08C01TXT
B160: Question Wording | G160: Does your agency use electronic devices to detect the presence of pedestrians (e.g., pedestrian crossing or walking on the sidewalk)?
B161: Question # (Where to find in survey) | G161: 40
B162: Question Format | G162: Multiple Choice
B163: Values | G163: 0,1,2
B164: Value Labels | G164: 0=No;1=Yes;2=No Response
B165: Survey Variable1 Name | C165: Pedestrian detection | G165: DetectPedestrians
B166: Data File Variable1 Name | G166: 04_AM_Q40_1R01C01
G168: Yes. What types of devices are used? (Check all that apply)
B169: Question # (Where to find in survey) | G169: 40
B170: Question Format | G170: Multiple Choice
B171: Values | G171: 0,1,2
B172: Value Labels | G172: 0=No;1=Yes;2=No Response
B173: Survey Variable1 Name | C173: Infrared detection | G173: DetectPedestriansinfrared
B174: Data File Variable1 Name | G174: 04_AM_Q40_2R01C01
B176: Question # (Where to find in survey) | G176: 40
B177: Question Format | G177: Multiple Choice
B178: Values | G178: 0,1,2
B179: Value Labels | G179: 0=No;1=Yes;2=No Response
B180: Survey Variable2 Name | C180: Ultrasonic detector | G180: DetectPedestriansultrasonic
B181: Data File Variable2 Name | G181: 04_AM_Q40_2R02C01
B183: Question # (Where to find in survey) | G183: 40
B184: Question Format | G184: Multiple Choice
B185: Values | G185: 0,1,2
B186: Value Labels | G186: 0=No;1=Yes;2=No Response
B187: Survey Variable3 Name | C187: Doppler radar detection | G187: DetectPedestriansdoppler
B188: Data File Variable3 Name | G188: 04_AM_Q40_2R03C01
B190: Question # (Where to find in survey) | G190: 40
B191: Question Format | G191: Multiple Choice
B192: Values | G192: 0,1,2
B193: Value Labels | G193: 0=No;1=Yes;2=No Response
B194: Survey Variable4 Name | C194: Microwave detection | G194: DetectPedestriansmicrowave
B195: Data File Variable4 Name | G195: 04_AM_Q40_2R04C01
B197: Question # (Where to find in survey) | G197: 40
B198: Question Format | G198: Multiple Choice
B199: Values | G199: 0,1,2
B200: Value Labels | G200: 0=No;1=Yes;2=No Response
B201: Survey Variable5 Name | C201: Piezometric detection | G201: DetectPedestrianspiezometric
B202: Data File Variable5 Name | G202: 04_AM_Q40_2R05C01
B204: Question # (Where to find in survey) | G204: 40
B205: Question Format | G205: Multiple Choice
B206: Values | G206: 0,1,2
B207: Value Labels | G207: 0=No;1=Yes;2=No Response
B208: Survey Variable6 Name | C208: Video imaging | G208: DetectPedestriansvideo
B209: Data File Variable6 Name | G209: 04_AM_Q40_2R06C01
B211: Question # (Where to find in survey) | G211: 40
B212: Question Format | G212: Text
B213: Values
B214: Value Labels
B215: Survey Variable7 Name | C215: Other (please describe) | G215: DetectPedestriansother
B216: Data File Variable7 Name | G216: 04_AM_Q40_2R07C01TXT
B218: Question Wording | F218: Do you use electronic technologies to improve the safety and mobility of pedestrians? | G218: Do you use electronic technologies to improve the safety and mobility of pedestrians? | I218: Does your agency deploy bicycle or pedestrian systems (e.g., pedestrian detectors, pedestrian activated lighted crosswalks, specialized pedestrian signals such as 'countdown' WALK/DON'T WALK signals and bicycle-actuated signals)? | J218: Does your agency use electronic technologies to improve the safety and mobility of pedestrians or bicyclists? | K218: Does your agency us electronic technologies to improve the safety and mobility of pedestrians or bicyclists?
B219: Question # (Where to find in survey) | F219: 28 | G219: 39 | I219: 44 | J219: 39 | K219: 39
B220: Question Format | F220: Multiple Choice | G220: Multiple Choice | I220: Multiple Choice | J220: Multiple Choice | K220: Multiple Choice
B221: Values | F221: 0,1,2 | G221: 0,1,2 | I221: 0,1,2 | J221: 0,1,2 | K221: 0,1,2
B222: Value Labels | F222: 0=No;1=Yes;2=No Response | G222: 0=No;1=Yes;2=No Response | I222: 0=No;1=Yes;2=No Response | J222: 0=No;1=Yes;2=No Response | K222: 0=No;1=Yes;2=No Response
B223: Survey Variable1 Name | C223: Pedestrian technologies | F223: PedElectronicTech | G223: ElectronicTechnologies | I223: BicyclePedSystem | J223: BicyclePedSystem | K223: ImproveSafetyPedestrians
B224: Data File Variable1 Name | F224: 02_AM_Q28_1R01C01 | G224: 04_AM_Q39_1R01C01 | I224: 06_AM_Q44_1R01C01 | J224: 07_AM_Q39_1R01C01 | K224: 10_AM_Q39_1R01C01
F226: Yes. What types of technologies are used? (Check all that apply) | G226: What types of technologies are used? | J226: Yes, what types of technologies are used? | K226: What types of technologies are used?
B227: Question # (Where to find in survey) | F227: 28
B228: Question Format | F228: Multiple Choice
B229: Values | F229: 0,1,2
B230: Value Labels | F230: 0=No;1=Yes;2=No Response
B231: Survey Variable1 Name | C231: Infrared | F231: PedElectronicTech_infrared
B232: Data File Variable1 Name | F232: 02_AM_Q28_2R01C01
B234: Question # (Where to find in survey) | F234: 28
B235: Question Format | F235: Multiple Choice
... 184 more rows

Sheet Standards
B2: Standards
C3: Choices (in batteries) | D3: 1999 | E3: 2000 | F3: 2002 | G3: 2004 | H3: 2005 | I3: 2006 | J3: 2007 | K3: 2010 | L3: 2013 | M3: 2016
B7: TRAFFIC SIGNAL CONTROL STANDARDS
B8: Question Wording | D8: Are you using any ITS Standards related to traffic signal control?
B9: Question # (Where to find in survey) | D9: 15
B10: Question Format | D10: Boolean
B11: Values | D11: 0,1
B12: Value Labels | D12: 0=No;1=Yes
B13: Survey Variable1 Name | C13: Using ITS standards | D13: UsingITSStandards
B14: Data File Variable1 Name | D14: 99_AM_Q15_1R01C01
B16: STANDARDS USED
B17: Question Wording | D17: Please indicate the standards used | E17: Please indicate the standards used | F17: Please check the ITS standards, or groups of standards, that are used in your operational arterial management systems. | G17: Please check the ITS standards, or groups of standards, that are used in your operational arterial management systems. | I17: Please check the ITS Standards that you are using (deployed or in current RFP) or considering (assessing for use) in your agency’s systems from the list below.
B18: Question # (Where to find in survey) | D18: 15 | E18: 13 | G18: 52
B19: Question Format | D19: Boolean | E19: Boolean | G19: Multiple Choice
B20: Values | D20: 0,1 | E20: 0,1 | G20: 0,1,2
B21: Value Labels | D21: 0=No;1=Yes | E21: 0=No;1=Yes | G21: 0=No;1=Yes;2=No Response
B22: Survey Variable1 Name | C22: Using Advanced Transportation Controller (ATC) Software Application Interface (ITE 9603-1) | D22: ITE_9603_1 | E22: ITE_9603_1 | G22: ITE_9603_1Using
B23: Data File Variable1 Name | D23: 99_AM_Q15_2R01C01 | E23: 00_AM_Q13_1R01C01 | G23: 04_AM_Q52_1R13C01
B25: Question # (Where to find in survey) | G25: 52
B26: Question Format | G26: Multiple Choice
B27: Values | G27: 0,1,2
B28: Value Labels | G28: 0=No;1=Yes;2=No Response
B29: Survey Variable2 Name | C29: Considering Advanced Transportation Controller (ATC) Software Application Interface (ITE 9603-1) | G29: ITE_9603_1Considering
B30: Data File Variable2 Name | G30: 04_AM_Q52_1R13C02
B32: Question # (Where to find in survey) | D32: 15 | E32: 13 | G32: 52
B33: Question Format | D33: Boolean | E33: Boolean | G33: Multiple Choice
B34: Values | D34: 0,1 | E34: 0,1 | G34: 0,1,2
B35: Value Labels | D35: 0=No;1=Yes | E35: 0=No;1=Yes | G35: 0=No;1=Yes;2=No Response
B36: Survey Variable3 Name | C36: Using ATC Physical Cabinet Functional Design (ITE-9603-2) | D36: ITE_9603_2 | E36: ITE_9603_2 | G36: ITE_9603_2Using
B37: Data File Variable3 Name | D37: 99_AM_Q15_2R02C01 | E37: 00_AM_Q13_1R02C01 | G37: 04_AM_Q52_1R14C01
B39: Question # (Where to find in survey) | G39: 52
B40: Question Format | G40: Multiple Choice
B41: Values | G41: 0,1,2
B42: Value Labels | G42: 0=No;1=Yes;2=No Response
B43: Survey Variable4 Name | C43: Considering ATC Physical Cabinet Functional Design (ITE-9603-2) | G43: ITE_9603_2Considering
B44: Data File Variable4 Name | G44: 04_AM_Q52_1R14C02
B46: Question # (Where to find in survey) | D46: 15 | E46: 13 | G46: 52
B47: Question Format | D47: Boolean | E47: Boolean | G47: Multiple Choice
B48: Values | D48: 0,1 | E48: 0,1 | G48: 0,1,2
B49: Value Labels | D49: 0=No;1=Yes | E49: 0=No;1=Yes | G49: 0=No;1=Yes;2=No Response
B50: Survey Variable5 Name | C50: Using ATC Functionality and Interface Definitions (ITE-9603-3) | D50: ITE_9603_3 | E50: ITE_9603_3 | G50: ITE_9603_3Using
B51: Data File Variable5 Name | D51: 99_AM_Q15_2R03C01 | E51: 00_AM_Q13_1R03C01 | G51: 04_AM_Q52_1R15C01
B53: Question # (Where to find in survey) | G53: 52
B54: Question Format | G54: Multiple Choice
B55: Values | G55: 0,1,2
B56: Value Labels | G56: 0=No;1=Yes;2=No Response
B57: Survey Variable6 Name | C57: Considering ATC Functionality and Interface Definitions (ITE-9603-3) | G57: ITE_9603_3Considering
B58: Data File Variable6 Name | G58: 04_AM_Q52_1R15C02
B60: Question # (Where to find in survey) | D60: 15 | E60: 13
B61: Question Format | D61: Boolean | E61: Boolean
B62: Values | D62: 0,1 | E62: 0,1
B63: Value Labels | D63: 0=No;1=Yes | E63: 0=No;1=Yes
B64: Survey Variable7 Name | C64: Using National Transportation Communications for ITS Protocol (NTCIP) Class B Profile (AASHTO TS 3.3) | D64: AASHTO_TS_3_3 | E64: AASHTO_TS_3_3
B65: Data File Variable7 Name | D65: 99_AM_Q15_2R04C01 | E65: 00_AM_Q13_1R04C01
B67: Question # (Where to find in survey) | D67: 15 | E67: 13
B68: Question Format | D68: Boolean | E68: Boolean
B69: Values | D69: 0,1 | E69: 0,1
B70: Value Labels | D70: 0=No;1=Yes | E70: 0=No;1=Yes
B71: Survey Variable8 Name | C71: Considering NTCIP Data Collection and Monitoring Devices (AASHTO TS 3.DCM) | D71: AASHTO_TS_3DCM | E71: AASHTO_TS_3_DCM
B72: Data File Variable8 Name | D72: 99_AM_Q15_2R05C01 | E72: 00_AM_Q13_1R05C01
B74: Question # (Where to find in survey) | D74: 15 | E74: 13
B75: Question Format | D75: Boolean | E75: Boolean
B76: Values | D76: 0,1 | E76: 0,1
B77: Value Labels | D77: 0=No;1=Yes | E77: 0=No;1=Yes
B78: Survey Variable9 Name | C78: Using NTCIP Object Definitions for Video Camera Control (AASHTO TS 3.VCC) | D78: AASHTO_TS_3VCC | E78: AASHTO_TS_3_VCC
B79: Data File Variable9 Name | D79: 99_AM_Q15_2R06C01 | E79: 00_AM_Q13_1R06C01
B81: Question # (Where to find in survey) | D81: 15 | E81: 13
B82: Question Format | D82: Boolean | E82: Boolean
B83: Values | D83: 0,1 | E83: 0,1
B84: Value Labels | D84: 0=No;1=Yes | E84: 0=No;1=Yes
B85: Survey Variable10 Name | C85: Considering NTCIP Object Definitions for Actuated Traffic Signal Controller Units (AASHTO TS 3.5) | D85: AASHTO_TS_3_5 | E85: AASHTO_TS_3_5
B86: Data File Variable10 Name | D86: 99_AM_Q15_2R07C01 | E86: 00_AM_Q13_1R07C01
B88: Question # (Where to find in survey) | E88: 13
B89: Question Format | E89: Boolean
B90: Values | E90: 0,1
B91: Value Labels | E91: 0=No;1=Yes
B92: Survey Variable11 Name | C92: Do not use standards | E92: Do_not_use_standards
B93: Data File Variable11 Name | E93: 00_AM_Q13_1R08C01
B95: Question # (Where to find in survey) | D95: 15 | E95: 13
B96: Question Format | D96: Text | E96: Text
B97: Values
B98: Value Labels
B99: Survey Variable12 Name | C99: Using Other (description) | D99: Other_AMQ15 | E99: OTHER_AMQ13
B100: Data File Variable12 Name | D100: 99_AM_Q15_2R08C01TXT | E100: 00_AM_Q13_1R09C01TXT
B102: Question # (Where to find in survey) | F102: 36
B103: Question Format | F103: Multiple Choice
B104: Values | F104: 0,1,2
B105: Value Labels | F105: 0=No;1=Yes;2=No Response
B106: Survey Variable13 Name | C106: Using Commercial Vehicle Operations | F106: CVO
B107: Data File Variable13 Name | F107: 02_AM_Q36_1R01C01
B109: Question # (Where to find in survey) | F109: 36
B110: Question Format | F110: Multiple Choice
B111: Values | F111: 0,1,2
B112: Value Labels | F112: 0=No;1=Yes;2=No Response
B113: Survey Variable14 Name | C113: Using Dedicated Short-Range Communications | F113: DSRC
B114: Data File Variable14 Name | F114: 02_AM_Q36_1R02C01
B116: Question # (Where to find in survey) | F116: 36
B117: Question Format | F117: Multiple Choice
B118: Values | F118: 0,1,2
B119: Value Labels | F119: 0=No;1=Yes;2=No Response
B120: Survey Variable15 Name | C120: Using Incident Management | F120: INCIDENT_MANAGEMENT
B121: Data File Variable15 Name | F121: 02_AM_Q36_1R03C01
B123: Question # (Where to find in survey) | F123: 36
B124: Question Format | F124: Multiple Choice
B125: Values | F125: 0,1,2
B126: Value Labels | F126: 0=No;1=Yes;2=No Response
B127: Survey Variable16 Name | C127: Using Center to Center Communications | F127: CENTER_TO_CENTER
B128: Data File Variable16 Name | F128: 02_AM_Q36_1R04C01
B130: Question # (Where to find in survey) | F130: 36
B131: Question Format | F131: Multiple Choice
B132: Values | F132: 0,1,2
B133: Value Labels | F133: 0=No;1=Yes;2=No Response
B134: Survey Variable17 Name | C134: Using Advanced Traveler Information System | F134: ATIS
B135: Data File Variable17 Name | F135: 02_AM_Q36_1R05C01
B137: Question # (Where to find in survey) | F137: 36
B138: Question Format | F138: Multiple Choice
B139: Values | F139: 0,1,2
B140: Value Labels | F140: 0=No;1=Yes;2=No Response
B141: Survey Variable18 Name | C141: Using Advanced Transportation Controller | F141: ATC
B142: Data File Variable18 Name | F142: 02_AM_Q36_1R06C01
B144: Question # (Where to find in survey) | F144: 36
B145: Question Format | F145: Multiple Choice
B146: Values | F146: 0,1,2
B147: Value Labels | F147: 0=No;1=Yes;2=No Response
B148: Survey Variable19 Name | C148: Using ASTMAG | F148: ASTM_AG
B149: Data File Variable19 Name | F149: 02_AM_Q36_1R07C01
B151: Question # (Where to find in survey) | F151: 36
B152: Question Format | F152: Multiple Choice
B153: Values | F153: 0,1,2
B154: Value Labels | F154: 0=No;1=Yes;2=No Response
B155: Survey Variable20 Name | C155: Using ASTMDD | F155: ASTM_DD
B156: Data File Variable20 Name | F156: 02_AM_Q36_1R08C01
B158: Question # (Where to find in survey) | F158: 36
B159: Question Format | F159: Multiple Choice
B160: Values | F160: 0,1,2
B161: Value Labels | F161: 0=No;1=Yes;2=No Response
B162: Survey Variable21 Name | C162: Using ITETM103 | F162: ITE_TM_1_03
B163: Data File Variable21 Name | F163: 02_AM_Q36_1R09C01
B165: Question # (Where to find in survey) | F165: 36
B166: Question Format | F166: Multiple Choice
B167: Values | F167: 0,1,2
B168: Value Labels | F168: 0=No;1=Yes;2=No Response
B169: Survey Variable22 Name | C169: Using NTCIP1101 | F169: NTCIP_1101
B170: Data File Variable22 Name | F170: 02_AM_Q36_1R10C01
B172: Question # (Where to find in survey) | F172: 36 | G172: 52
B173: Question Format | F173: Multiple Choice | G173: Multiple Choice
B174: Values | F174: 0,1,2 | G174: 0,1,2
B175: Value Labels | F175: 0=No;1=Yes;2=No Response | G175: 0=No;1=Yes;2=No Response
B176: Survey Variable23 Name | C176: Using NTCIP1102 | F176: NTCIP_1102 | G176: NTCIP_1102Using
B177: Data File Variable23 Name | F177: 02_AM_Q36_1R11C01 | G177: 04_AM_Q52_1R17C01
B179: Question # (Where to find in survey) | G179: 52
B180: Question Format | G180: Multiple Choice
B181: Values | G181: 0,1,2
B182: Value Labels | G182: 0=No;1=Yes;2=No Response
B183: Survey Variable24 Name | C183: Considering NTCIP1102 | G183: NTCIP_1102Considering
B184: Data File Variable24 Name | G184: 04_AM_Q52_1R17C02
B186: Question # (Where to find in survey) | F186: 36 | G186: 52
B187: Question Format | F187: Multiple Choice | G187: Multiple Choice
B188: Values | F188: 0,1,2 | G188: 0,1,2
B189: Value Labels | F189: 0=No;1=Yes;2=No Response | G189: 0=No;1=Yes;2=No Response
B190: Survey Variable25 Name | C190: Using NTCIP1103 | F190: NTCIP_1103 | G190: NTCIP_1103Using
B191: Data File Variable25 Name | F191: 02_AM_Q36_1R12C01 | G191: 04_AM_Q52_1R18C01
B193: Question # (Where to find in survey) | G193: 52
B194: Question Format | G194: Multiple Choice
B195: Values | G195: 0,1,2
B196: Value Labels | G196: 0=No;1=Yes;2=No Response
B197: Survey Variable26 Name | C197: Considering NTCIP1103 | G197: NTCIP_1103Considering
B198: Data File Variable26 Name | G198: 04_AM_Q52_1R18C02
B200: Question # (Where to find in survey) | G200: 52
B201: Question Format | G201: Multiple Choice
B202: Values | G202: 0,1,2
B203: Value Labels | G203: 0=No;1=Yes;2=No Response
B204: Survey Variable27 Name | C204: Using NTCIP1104 | G204: NTCIP_1104Using
B205: Data File Variable27 Name | G205: 04_AM_Q52_1R19C01
B207: Question # (Where to find in survey) | G207: 52
B208: Question Format | G208: Multiple Choice
B209: Values | G209: 0,1,2
B210: Value Labels | G210: 0=No;1=Yes;2=No Response
B211: Survey Variable28 Name | C211: Considering NTCIP1104 | G211: NTCIP_1104Considering
B212: Data File Variable28 Name | G212: 04_AM_Q52_1R19C02
B214: Question # (Where to find in survey) | G214: 52
B215: Question Format | G215: Multiple Choice
B216: Values | G216: 0,1,2
B217: Value Labels | G217: 0=No;1=Yes;2=No Response
B218: Survey Variable29 Name | C218: Using NTCIP1105 | G218: NTCIP_1105Using
B219: Data File Variable29 Name | G219: 04_AM_Q52_1R20C01
B221: Question # (Where to find in survey) | G221: 52
B222: Question Format | G222: Multiple Choice
B223: Values | G223: 0,1,2
B224: Value Labels | G224: 0=No;1=Yes;2=No Response
B225: Survey Variable30 Name | C225: Considering NTCIP1105 | G225: NTCIP_1105Considering
B226: Data File Variable30 Name | G226: 04_AM_Q52_1R20C02
B228: Question # (Where to find in survey) | G228: 52
B229: Question Format | G229: Multiple Choice
B230: Values | G230: 0,1,2
B231: Value Labels | G231: 0=No;1=Yes;2=No Response
B232: Survey Variable31 Name | C232: Using NTCIP1106 | G232: NTCIP_1106Using
B233: Data File Variable31 Name | G233: 04_AM_Q52_1R21C01
B235: Question # (Where to find in survey) | G235: 52
B236: Question Format | G236: Multiple Choice
... 1162 more rows

Sheet Surveillance
B2: Surveillance
C3: Choices (in batteries) | D3: 1999 | E3: 2000 | F3: 2002 | G3: 2004 | H3: 2005 | I3: 2006 | J3: 2007 | K3: 2010 | L3: 2013 | M3: 2016
B7: ARTERIALS
B8: Question Wording | D8: Number of arterial centerline miles contained within the metropolitan transportation planning boundary that your agency owns or maintains | E8: Number of arterial centerline miles contained within the metropolitan transportation planning boundary that your agency owns or maintains | K8: Total centerline arterial miles operated by your agency | L8: Total centerline arterial miles operated by your agency | M8: Centerline arterial miles operated by your agency
B9: Question # (Where to find in survey) | D9: 01 | E9: 01 | K9: 01 | L9: 01 | M9: 01
B10: Question Format | D10: Numeric | E10: Numeric | K10: Numeric | L10: Numeric | M10: Numeric
B11: Values
B12: Value Labels
B13: Survey Variable1 Name | C13: Arterial centerline miles | D13: ArterialCenterlineMiles | E13: ArterialCenterlineMiles | K13: TotalMiles | L13: TotalMiles | M13: TotalMiles
B14: Data File Variable1 Name | D14: 99_AM_Q01_1R01C01 | E14: 00_AM_Q01_1R01C01 | K14: 10_AM_Q01_1R01C01 | L14: 13_AM_Q01_1R01C01 | M14: 16_AM_Q01_1R01C01
B16: Question Wording | D16: Number of arterial centerline miles contained within the metropolitan transportation planning boundary that your agency considers when planning for deployment ITS for arterial management | E16: Number of arterial centerline miles contained within the metropolitan transportation planning boundary that your agency considers when planning for deployment ITS for arterial management
B17: Question # (Where to find in survey) | D17: 01 | E17: 01
B18: Question Format | D18: Numeric | E18: Numeric
B19: Values
B20: Value Labels
B21: Survey Variable1 Name | C21: Arterial centerline miles planning | D21: ArterialCenterlineMilesITS | E21: ArterialCenterlineMilesITS
B22: Data File Variable1 Name | D22: 99_AM_Q01_2R01C01 | E22: 00_AM_Q01_1R02C01
B24: REAL-TIME SURVEILLANCE ON ARTERIALS
B25: Question Wording | I25: Total number of arterial centerline miles with real time data collection technologies (includes CCTV) used to monitor key transportation facilities for security purposes operated by your agency in this metropolitan area | J25: Total number of arterial centerline miles with real time data collection technologies (includes CCTV) used to monitor key transportation facilities for security purposes operated by your agency in this metropolitan area
B26: Question # (Where to find in survey) | I26: 01 | J26: 01
B27: Question Format | I27: Numeric | J27: Numeric
B28: Values
B29: Value Labels
B30: Survey Variable1 Name | C30: Arterial centerline miles security | I30: MilesDataSecurity | J30: MilesDataSecurity
B31: Data File Variable1 Name | I31: 06_AM_Q01_1R01C01 | J31: 07_AM_Q01_1R01C01
B33: REAL-TIME ELECTRONIC TRAFFIC DATA COLLECTION TECHNOLOGIES
B34: Question Wording | D34: Does your agency use (or will your agency use by 2005) any of the following real-time electronic traffic data collection technologies to collect vehicle volume, speed, and density data on arterials for the purpose of monitoring traffic flow (excluding actuators on intersection approaches)?
B35: Question # (Where to find in survey) | D35: 10
B36: Question Format | D36: Boolean
B37: Values | D37: 0,1
B38: Value Labels | D38: 0=No;1=Yes
B39: Survey Variable1 Name | C39: Real-time data collected | D39: RealTimeDataCollection
B40: Data File Variable1 Name | D40: 99_AM_Q10_1R01C01
B42: Question Wording | K42: Total miles of arterial streets where information on travel time conditions is collected in real time using roadside infrastructure devices such as loops, radar detectors, and video image detector systems | L42: Total number of arterial centerline miles with real-time data collection technologies (does not include CCTV) | M42: Total number of arterial centerline miles with real-time data collection technologies (does not include CCTV)
B43: Question # (Where to find in survey) | K43: 06 | L43: 06 | M43: 03
B44: Question Format | K44: Numeric | L44: Numeric | M44: Numeric
B45: Values
B46: Value Labels
B47: Survey Variable1 Name | C47: Real-time data collected | K47: MilesInfoCollected | L47: MilesInfoCollectedNotcctv | M47: MilesInfoCollectedNotCCTV
B48: Data File Variable1 Name | K48: 10_AM_Q06_1R01C01 | L48: 13_AM_Q06_1R01C01 | M48: 16_AM_Q03_1R01C01
B50: Question Wording | L50: Number of these miles were real-time traffic data are collected using roadside infrastructure such as loops, radar detectors, or video imaging detector systems | M50: Number of these miles were real-time traffic data are collected using roadside infrastructure such as loops, radar detectors, or video imaging detector systems
B51: Question # (Where to find in survey) | L51: 06 | M51: 03
B52: Question Format | L52: Numeric | M52: Numeric
B53: Values
B54: Value Labels
B55: Survey Variable1 Name | C55: Real-time data collected with roadside infrastructure | L55: MilesInfoCollectedRoadside | M55: MilesInfoCollectedRoadside
B56: Data File Variable1 Name | L56: 13_AM_Q06_2R01C01 | M56: 16_AM_Q03_2R01C01
B58: PROBE VEHICLES
B59: Question Wording | K59: Total miles of arterial streets where information on travel time conditions is collected in real time by vehicle probes, using technology such as toll tag readers, cell phones etc.: | L59: Number of these miles were real-time data are collected by vehicle probes, using technology such as toll tag readers, cell phones, etc.. | M59: Number of these miles were real-time data are collected by vehicle probes, using technology such as toll tag readers, cell phones, etc..
B60: Question # (Where to find in survey) | K60: 07 | L60: 06 | M60: 03
B61: Question Format | K61: Numeric | L61: Numeric | M61: Numeric
B62: Values
B63: Value Labels
B64: Survey Variable1 Name | C64: Real-time data collected with probe vehicles | K64: ProbeDataMiles | L64: MilesInfoCollectedProbe | M64: MilesInfoCollectedProbe
B65: Data File Variable1 Name | K65: 10_AM_Q07_1R01C01 | L65: 13_AM_Q06_3R01C01 | M65: 16_AM_Q03_3R01C01
K67: Who collects the probe data?
B68: Question # (Where to find in survey) | K68: 07
B69: Question Format | K69: Boolean
B70: Values | K70: 0,1
B71: Value Labels | K71: 0=No;1=Yes
B72: Survey Variable1 Name | C72: My agency | K72: ProbeDataAgency
B73: Data File Variable1 Name | K73: 10_AM_Q07_2R01C01
B75: Question # (Where to find in survey) | K75: 07
B76: Question Format | K76: Boolean
B77: Values | K77: 0,1
B78: Value Labels | K78: 0=No;1=Yes
B79: Survey Variable2 Name | C79: Other public agency | K79: ProbeDataOtherAgency
B80: Data File Variable2 Name | K80: 10_AM_Q07_2R02C01
B82: Question # (Where to find in survey) | K82: 07
B83: Question Format | K83: Boolean
B84: Values | K84: 0,1
B85: Value Labels | K85: 0=No;1=Yes
B86: Survey Variable3 Name | C86: Private vendor | K86: ProbeDataVendor
B87: Data File Variable3 Name | K87: 10_AM_Q07_2R03C01
K89: What type of vehicle probe readers are used to obtain traffic information?
B90: Question # (Where to find in survey) | K90: 07
B91: Question Format | K91: Boolean
B92: Values | K92: 0,1
B93: Value Labels | K93: 0=No;1=Yes
B94: Survey Variable1 Name | C94: Toll tag readers | K94: VehicleProbeToll
B95: Data File Variable1 Name | K95: 10_AM_Q07_3R01C01
B97: Question # (Where to find in survey) | K97: 07
B98: Question Format | K98: Boolean
B99: Values | K99: 0,1
B100: Value Labels | K100: 0=No;1=Yes
B101: Survey Variable2 Name | C101: Blue tooth readers | K101: VehicleProbeBlue
B102: Data File Variable2 Name | K102: 10_AM_Q07_3R02C01
B104: Question # (Where to find in survey) | K104: 07
B105: Question Format | K105: Boolean
B106: Values | K106: 0,1
B107: Value Labels | K107: 0=No;1=Yes
B108: Survey Variable3 Name | C108: Cellular phone readers | K108: VehicleProbeCell
B109: Data File Variable3 Name | K109: 10_AM_Q07_3R03C01
B111: Question # (Where to find in survey) | K111: 07
B112: Question Format | K112: Boolean
B113: Values | K113: 0,1
B114: Value Labels | K114: 0=No;1=Yes
B115: Survey Variable4 Name | C115: GPS readers | K115: VehicleProbeGPS
B116: Data File Variable4 Name | K116: 10_AM_Q07_3R04C01
B118: Question # (Where to find in survey) | K118: 07
B119: Question Format | K119: Boolean
B120: Values | K120: 0,1
B121: Value Labels | K121: 0=No;1=Yes
B122: Survey Variable5 Name | C122: License plate recognition | K122: VehicleProbeLicense
B123: Data File Variable5 Name | K123: 10_AM_Q07_3R05C01
B125: Question # (Where to find in survey) | K125: 07
B126: Question Format | K126: Text
B127: Values
B128: Value Labels
B129: Survey Variable6 Name | C129: Other readers (please specify) | K129: VehicleProbeOtherText
B130: Data File Variable6 Name | K130: 10_AM_Q07_3R06C01TXT
B132: REAL-TIME SURVEILLANCE AT INTERSECTIONS
B133: Question Wording | D133: Total number of signalized intersections covered by electronic surveillance for monitoring traffic flow | E133: Total number of signalized intersections with electronic data collection capabilities | F133: Total number of signalized intersections with electronic data collection capabilities | G133: Total number of signalized intersections with electronic data collection capabilities | H133: Total number of signalized intersections with electronic data collection capabilities | I133: Total number of signalized intersections with electronic data collection capabilities | J133: Total number of signalized intersections with electronic data collection capabilities | K133: Total number of signalized intersections with electronic data collection capabilities
B134: Question # (Where to find in survey) | D134: 10 | E134: 07 | F134: 07 | G134: 11 | H134: 04 | I134: 09 | J134: 09 | K134: 09
B135: Question Format | D135: Numeric | E135: Numeric | F135: Numeric | G135: Numeric | H135: Numeric | I135: Numeric | J135: Numeric | K135: Numeric
B136: Values
B137: Value Labels
B138: Survey Variable1 Name | C138: Real time surveillance intersections | D138: Signals_Covered_Surv1999 | E138: SignalsCoveredSurv2000 | F138: SignalsCoveredSurv2002 | G138: SignalsCoveredSurv2004 | H138: SignalsCoveredSurv2005 | I138: SignalsDataCollection2006 | J138: SignalsDataCollection2007 | K138: NumberIntersectionsDataColl
B139: Data File Variable1 Name | D139: 99_AM_Q10_3R01C01 | E139: 00_AM_Q07_1R01C01 | F139: 02_AM_Q07_1R01C01 | G139: 04_AM_Q11_1R01C01 | H139: 05_AM_Q04_1R01C01 | I139: 06_AM_Q09_1R01C01 | J139: 07_AM_Q09_1R01C01 | K139: 10_AM_Q09_1R01C01
B141: CCTV
B142: Question Wording | K142: Number of signalized intersections equipped with CCTV for the purpose of monitoring traffic flow | L142: Number of signalized intersections equipped with Closed Circuit Television (CCTV) Cameras for the purpose of monitoring traffic flow: | M142: Number of signalized intersections equipped with CCTV for the purpose of monitoring traffic flow
B143: Question # (Where to find in survey) | K143: 11 | L143: 14 | M143: 07
B144: Question Format | K144: Numeric | L144: Numeric | M144: Numeric
B145: Values
B146: Value Labels
B147: Survey Variable1 Name | C147: Intersections with CCTV | K147: NumberIntersectionsCCTV | L147: IntersectionsCctvNumber | M147: IntersectionsCCTVNumber
B148: Data File Variable1 Name | K148: 10_AM_Q11_1R01C01 | L148: 13_AM_Q14_1R01C01 | M148: 16_AM_Q07_1R01C01
B150: LOOP DETECTORS
B151: Question Wording | D151: Please indicate the number of signalized intersections that have the following data collection technologies: loop detectors | E151: Please indicate the number of signalized intersections that have the following data collection technologies: loop detectors | F151: Please indicate the number of signalized intersections that have the following data collection technologies: loop detectors | G151: Please indicate the number of signalized intersections that have the following data collection technologies: loop detectors | K151: Please indicate the number of signalized intersections that utilize the following data collection technologies: loop detectors | L151: Indicate: 1) the number signalized intersections where the following detection technologies are deployed and 2) the estimated % time detection technologies are operational (reliably operating as intended): | M151: Indicate the number of signalized intersections where the following detection technologies are deployed: loop detectors
B152: Question # (Where to find in survey) | D152: 10 | E152: 07 | F152: 07 | G152: 11 | K152: 10 | L152: 10 | M152: 06
B153: Question Format | D153: Numeric | E153: Numeric | F153: Numeric | G153: Numeric | K153: Numeric | L153: Numeric | M153: Numeric
B154: Values
B155: Value Labels
B156: Survey Variable1 Name | C156: Number signalized intersections | D156: Loop_detectorsSignals1999 | E156: Loop_detectorsSignals2000 | F156: SignalsSurv2002_Loop | G156: SignalsSurv2004_Loop | K156: NumberInterLoop | L156: IntersectionsLoopNumber | M156: IntersectionsLoopNumber
B157: Data File Variable1 Name | D157: 99_AM_Q10_2R01C01 | E157: 00_AM_Q07_2R01C01 | F157: 02_AM_Q07_2R01C01 | G157: 04_AM_Q11_2R01C01 | K157: 10_AM_Q10_1R01C01 | L157: 13_AM_Q10_1R01C01 | M157: 16_AM_Q06_1R01C01
B159: Question # (Where to find in survey) | L159: 10
B160: Question Format | L160: Numeric
B161: Values
B162: Value Labels
B163: Survey Variable2 Name | C163: %Time operational | L163: IntersectionsLoopOperational
B164: Data File Variable2 Name | L164: 13_AM_Q10_1R01C02
B166: VIDEO DETECTION
B167: Question Wording | D167: Please indicate the number of signalized intersections that have the following data collection technologies: Video detection cameras | E167: Please indicate the number of signalized intersections that have the following data collection technologies: Video detection cameras | F167: Please indicate the number of signalized intersections that have the following data collection technologies: Video detection cameras | G167: Please indicate the number of signalized intersections that have the following data collection technologies: Video detection cameras | K167: Please indicate the number of signalized intersections that utilize the following data collection technologies: video image detection | L167: Indicate: 1) the number signalized intersections where the following detection technologies are deployed and 2) the estimated % time detection technologies are operational (reliably operating as intended): | M167: Indicate the number of signalized intersections where the following detection technologies are deployed: video imaging systems
B168: Question # (Where to find in survey) | D168: 10 | E168: 07 | F168: 07 | G168: 11 | K168: 10 | L168: 10 | M168: 06
B169: Question Format | D169: Numeric | E169: Numeric | F169: Numeric | G169: Numeric | K169: Numeric | L169: Numeric | M169: Numeric
B170: Values
B171: Value Labels
B172: Survey Variable1 Name | C172: Number signalized intersections | D172: Video_camerasSignals1999 | E172: Video_detection_camSignals2000 | F172: SignalsSurv2002_Video | G172: SignalsSurv2004_Video | K172: NumberInterVideo | L172: IntersectionsVideoNumber | M172: IntersectionsVideoNumber
B173: Data File Variable1 Name | D173: 99_AM_Q10_2R02C01 | E173: 00_AM_Q07_2R02C01 | F173: 02_AM_Q07_2R02C01 | G173: 04_AM_Q11_2R02C01 | K173: 10_AM_Q10_1R02C01 | L173: 13_AM_Q10_1R02C01 | M173: 16_AM_Q06_1R02C01
B175: Question # (Where to find in survey) | L175: 10
B176: Question Format | L176: Numeric
B177: Values
B178: Value Labels
B179: Survey Variable2 Name | C179: %Time operational | L179: IntersectionsVideoOperational
B180: Data File Variable2 Name | L180: 13_AM_Q10_1R02C02
B182: RADAR
B183: Question Wording | G183: Please indicate the number of signalized intersections that have the following data collection technologies: Radar | K183: Please indicate the number of signalized intersections that utilize the following data collection technologies: radar | L183: Indicate: 1) the number signalized intersections where the following detection technologies are deployed and 2) the estimated % time detection technologies are operational (reliably operating as intended): | M183: Indicate the number of signalized intersections where the following detection technologies are deployed: radar
B184: Question # (Where to find in survey) | G184: 11 | K184: 10 | L184: 10 | M184: 06
B185: Question Format | G185: Numeric | K185: Numeric | L185: Numeric | M185: Numeric
B186: Values
B187: Value Labels
B188: Survey Variable1 Name | C188: Number signalized intersections | G188: SignalsSurv2004_Radar | K188: NumberInterRadar | L188: IntersectionsRadarNumber | M188: IntersectionsRadarNumber
B189: Data File Variable1 Name | G189: 04_AM_Q11_2R03C01 | K189: 10_AM_Q10_1R03C01 | L189: 13_AM_Q10_1R03C01 | M189: 16_AM_Q06_1R03C01
B191: Question # (Where to find in survey) | L191: 10
B192: Question Format | L192: Numeric
B193: Values
B194: Value Labels
B195: Survey Variable2 Name | C195: %Time operational | L195: IntersectionsRadarOperational
B196: Data File Variable2 Name | L196: 13_AM_Q10_1R03C02
B198: TOLL TAGS READERS
B199: Question Wording | D199: Please indicate the number of signalized intersections that have the following data collection technologies: probe readers reading toll tags | E199: Please indicate the number of signalized intersections that have the following data collection technologies: probe readers reading toll tags
B200: Question # (Where to find in survey) | D200: 10 | E200: 07
B201: Question Format | D201: Numeric | E201: Numeric
B202: Values
B203: Value Labels
B204: Survey Variable1 Name | C204: Intersections with probe readers | D204: Probe_toll_tagsSignals1999 | E204: Probe_toll_tagsSignals2000
B205: Data File Variable1 Name | D205: 99_AM_Q10_2R03C01 | E205: 00_AM_Q07_2R03C01
B207: LICENSE PLATE READERS
B208: Question Wording | D208: Please indicate the number of signalized intersections that have the following data collection technologies: probe readers reading license plates | E208: Please indicate the number of signalized intersections that have the following data collection technologies: probe readers reading license plates | L208: What type of vehicle probe readers are used to obtain traffic information? | M208: What type of vehicle probe readers are used to obtain traffic information?
B209: Question # (Where to find in survey) | L209: 07 | M209: 04
B210: Question Format | L210: Boolean | M210: Boolean
B211: Values | L211: 0,1 | M211: 0,1
B212: Value Labels | L212: 0=No;1=Yes | M212: 0-No;1=Yes
B213: Survey Variable1 Name | C213: Toll tag readers | L213: VehicleProbeToll | M213: VehicleProbeToll
B214: Data File Variable1 Name | L214: 13_AM_Q07_1R01C01 | M214: 16_AM_Q04_1R01C01
B216: Question # (Where to find in survey) | L216: 07 | M216: 04
B217: Question Format | L217: Boolean | M217: Boolean
B218: Values | L218: 0,1 | M218: 0,1
B219: Value Labels | L219: 0=No;1=Yes | M219: 0-No;1=Yes
B220: Survey Variable2 Name | C220: Blue tooth readers | L220: VehicleProbeBlue | M220: VehicleProbeBlue
B221: Data File Variable2 Name | L221: 13_AM_Q07_1R02C01 | M221: 16_AM_Q04_1R02C01
B223: Question # (Where to find in survey) | L223: 07 | M223: 04
B224: Question Format | L224: Boolean | M224: Boolean
B225: Values | L225: 0,1 | M225: 0,1
B226: Value Labels | L226: 0=No;1=Yes | M226: 0-No;1=Yes
B227: Survey Variable3 Name | C227: Cellular phone readers | L227: VehicleProbeCell | M227: VehicleProbeCell
B228: Data File Variable3 Name | L228: 13_AM_Q07_1R03C01 | M228: 16_AM_Q04_1R03C01
B230: Question # (Where to find in survey) | L230: 07 | M230: 04
B231: Question Format | L231: Boolean | M231: Boolean
B232: Values | L232: 0,1 | M232: 0,1
... 41 more rows

Sheet System Performance
B2: System Performance
C3: Choices (in batteries) | D3: 1999 | E3: 2000 | F3: 2002 | G3: 2004 | H3: 2005 | I3: 2006 | J3: 2007 | K3: 2010 | L3: 2013 | M3: 2016
B7: AGENCY COLLECTS OPERATIONS DATA
B8: Question Wording | L8: Does your agency collect operations data to track arterial network performance?
B9: Question # (Where to find in survey) | L9: 46
B10: Question Format | L10: Multiple Choice
B11: Values | L11: 0,1,2
B12: Value Labels | L12: 0=No;1=Yes;2=No Response
B13: Survey Variable1 Name | C13: Collect performance data | L13: CollectDataTrackPerformance
B14: Data File Variable1 Name | L14: 13_AM_Q46_1R01C01
B16: AGENCY HAS CLEARLY STATED OPERATIONAL OBJECTIVES
B17: Question Wording | L17: Does your agency have clearly stated and documented operational objectives and performance measures for the arterial system? | M17: Does your agency have documented operational objectives and performance measures for the arterial network?
B18: Question # (Where to find in survey) | L18: 47 | M18: 39
B19: Question Format | L19: Multiple Choice | M19: Multiple Choice
B20: Values | L20: 0,1,2 | M20: 0,1,2
B21: Value Labels | L21: 0=No;1=Yes;2=No Response | M21: 0=No;1=Yes;2=No Response
B22: Survey Variable1 Name | C22: Clearly stated objectives | L22: ClearlyStatedObjectives | M22: ClearlyStatedObjectives
B23: Data File Variable1 Name | L23: 13_AM_Q47_1R01C01 | M23: 16_AM_Q39_1R01C01
B25: Question Wording | L25: Has your agency established targets for the performance measures? | M25: Has your agency established targets for the performance measures?
B26: Question # (Where to find in survey) | L26: 47 | M26: 39
B27: Question Format | L27: Multiple Choice | M27: Multiple Choice
B28: Values | L28: 0,1,2 | M28: 0,1,2
B29: Value Labels | L29: 0=No;1=Yes;2=No Response | M29: 0=No;1=Yes;2=No Response
B30: Survey Variable1 Name | C30: Established targets | L30: EstablishTargetsMeasures | M30: EstablishTargetsMeasures
B31: Data File Variable1 Name | L31: 13_AM_Q47_2R01C01 | M31: 16_AM_Q39_2R01C01
B33: AGENCY USES ARCHIVED DATA TO TRACK PERFORMANCE
B34: Question Wording | L34: Does your agency use archived operations data to track arterial system performance? | M34: Does your agency use archived operations data to track arterial system performance?
B35: Question # (Where to find in survey) | L35: 48 | M35: 40
B36: Question Format | L36: Multiple Choice | M36: Multiple Choice
B37: Values | L37: 0,1,2 | M37: 0,1,2
B38: Value Labels | L38: 0=No;1=Yes;2=No Response | M38: 0=No;1=Yes;2=No Response
B39: Survey Variable1 Name | C39: Use archived performance measures | L39: UseArchivePerf | M39: UseArchivePerf
B40: Data File Variable1 Name | L40: 13_AM_Q48_1R01C01 | M40: 16_AM_Q40_1R01C01
L42: What are the archived operations data used for? | M42: What are the archived operations data used for?
B43: Question # (Where to find in survey) | L43: 48 | M43: 40
B44: Question Format | L44: Boolean | M44: Boolean
B45: Values | L45: 0,1 | M45: 0,1
B46: Value Labels | L46: 0=No;1=Yes | M46: 0-No;1=Yes
B47: Survey Variable1 Name | C47: Real-time Operations (e.g., used in real-time to adjust system operations) | L47: UseArchivePerfRealtime | M47: UseArchivePerfRealtime
B48: Data File Variable1 Name | L48: 13_AM_Q48_2R01C01 | M48: 16_AM_Q40_2R01C01
B50: Question # (Where to find in survey) | L50: 48 | M50: 40
B51: Question Format | L51: Boolean | M51: Boolean
B52: Values | L52: 0,1 | M52: 0,1
B53: Value Labels | L53: 0=No;1=Yes | M53: 0-No;1=Yes
B54: Survey Variable2 Name | C54: Capital planning/analysis | L54: UseArchivePerfCapital | M54: UseArchivePerfCapital
B55: Data File Variable2 Name | L55: 13_AM_Q48_2R02C01 | M55: 16_AM_Q40_2R02C01
B57: Question # (Where to find in survey) | L57: 48 | M57: 40
B58: Question Format | L58: Boolean | M58: Boolean
B59: Values | L59: 0,1 | M59: 0,1
B60: Value Labels | L60: 0=No;1=Yes | M60: 0-No;1=Yes
B61: Survey Variable3 Name | C61: Operations planning/analysis | L61: UseArchivePerfOperations | M61: UseArchivePerfOperations
B62: Data File Variable3 Name | L62: 13_AM_Q48_2R03C01 | M62: 16_AM_Q40_2R03C01
B64: Question # (Where to find in survey) | L64: 48 | M64: 40
B65: Question Format | L65: Boolean | M65: Boolean
B66: Values | L66: 0,1 | M66: 0,1
B67: Value Labels | L67: 0=No;1=Yes | M67: 0-No;1=Yes
B68: Survey Variable4 Name | C68: Dissemination to the public | L68: UseArchivePerfDissemination | M68: UseArchivePerfDissemination
B69: Data File Variable4 Name | L69: 13_AM_Q48_2R04C01 | M69: 16_AM_Q40_2R04C01
B71: Question # (Where to find in survey) | L71: 48 | M71: 40
B72: Question Format | L72: Boolean | M72: Boolean
B73: Values | L73: 0,1 | M73: 0,1
B74: Value Labels | L74: 0=No;1=Yes | M74: 0-No;1=Yes
B75: Survey Variable5 Name | C75: Planning/analysis of work zone design | L75: UseArchivePerfPlanning | M75: UseArchivePerfPlanning
B76: Data File Variable5 Name | L76: 13_AM_Q48_2R05C01 | M76: 16_AM_Q40_2R05C01
B78: Question # (Where to find in survey) | L78: 48 | M78: 40
B79: Question Format | L79: Text | M79: Text
B80: Values
B81: Value Labels
B82: Survey Variable6 Name | C82: Other (description) | L82: UseArchivePerfOtherText | M82: UseArchivePerfOtherText
B83: Data File Variable6 Name | L83: 13_AM_Q48_2R06C01TXT | M83: 16_AM_Q40_2R06C01TXT
B85: PERFORMANCE MEASURES USED
B86: Question Wording | L86: Which of the following measures are used to report on the performance of the arterial system? | M86: Which of the following measures are used to report on the performance of the freeway system?
B87: Question # (Where to find in survey) | L87: 49 | M87: 41
B88: Question Format | L88: Boolean | M88: Boolean
B89: Values | L89: 0,1 | M89: 0,1
B90: Value Labels | L90: 0=No;1=Yes | M90: 0-No;1=Yes
B91: Survey Variable1 Name | C91: Travel time Spot location | L91: PerformanceTravelTime | M91: PerformanceTravelTime
B92: Data File Variable1 Name | L92: 13_AM_Q49_1R01C01 | M92: 16_AM_Q41_1R05C01
B94: Question # (Where to find in survey) | L94: 49 | M94: 41
B95: Question Format | L95: Boolean | M95: Boolean
B96: Values | L96: 0,1 | M96: 0,1
B97: Value Labels | L97: 0=No;1=Yes | M97: 0-No;1=Yes
B98: Survey Variable2 Name | C98: Travel time reliability Spot location | L98: PerformanceTravelReliability | M98: PerformanceTravelReliability
B99: Data File Variable2 Name | L99: 13_AM_Q49_1R02C01 | M99: 16_AM_Q41_1R06C01
B101: Question # (Where to find in survey) | L101: 49 | M101: 41
B102: Question Format | L102: Boolean | M102: Boolean
B103: Values | L103: 0,1 | M103: 0,1
B104: Value Labels | L104: 0=No;1=Yes | M104: 0-No;1=Yes
B105: Survey Variable3 Name | C105: Vehicles per lane mile Spot location | L105: PerformanceVehicleLane | M105: PerformancePersonLane
B106: Data File Variable3 Name | L106: 13_AM_Q49_1R03C01 | M106: 16_AM_Q41_1R09C01
B108: Question # (Where to find in survey) | L108: 49 | M108: 41
B109: Question Format | L109: Boolean | M109: Boolean
B110: Values | L110: 0,1 | M110: 0,1
B111: Value Labels | L111: 0=No;1=Yes | M111: 0-No;1=Yes
B112: Survey Variable4 Name | C112: Vehicles per hour Spot location | L112: PerformanceVehicleHour | M112: PerformanceVehicleHour
B113: Data File Variable4 Name | L113: 13_AM_Q49_1R04C01 | M113: 16_AM_Q41_1R08C01
B115: Question # (Where to find in survey) | L115: 49 | M115: 41
B116: Question Format | L116: Boolean | M116: Boolean
B117: Values | L117: 0,1 | M117: 0,1
B118: Value Labels | L118: 0=No;1=Yes | M118: 0-No;1=Yes
B119: Survey Variable5 Name | C119: Throughput per lane per hour Spot location | L119: PerformancePersonLane | M119: PerformanceVehicleLane
B120: Data File Variable5 Name | L120: 13_AM_Q49_1R05C01 | M120: 16_AM_Q41_1R07C01
B122: Question # (Where to find in survey) | L122: 49 | M122: 41
B123: Question Format | L123: Boolean | M123: Boolean
B124: Values | L124: 0,1 | M124: 0,1
B125: Value Labels | L125: 0=No;1=Yes | M125: 0-No;1=Yes
B126: Survey Variable6 Name | C126: Person throughput per hour Spot location | L126: PerformancePersonHour | M126: PerformancePersonHour
B127: Data File Variable6 Name | L127: 13_AM_Q49_1R06C01 | M127: 16_AM_Q41_1R10C01
B129: Question # (Where to find in survey) | L129: 49 | M129: 41
B130: Question Format | L130: Boolean | M130: Boolean
B131: Values | L131: 0,1 | M131: 0,1
B132: Value Labels | L132: 0=No;1=Yes | M132: 0-No;1=Yes
B133: Survey Variable7 Name | C133: Average auto occupancy Spot location | L133: PerformanceAverage | M133: PerformanceAverage
B134: Data File Variable7 Name | L134: 13_AM_Q49_1R07C01 | M134: 16_AM_Q41_1R11C01
B136: Question # (Where to find in survey) | L136: 49 | M136: 41
B137: Question Format | L137: Boolean | M137: Boolean
B138: Values | L138: 0,1 | M138: 0,1
B139: Value Labels | L139: 0=No;1=Yes | M139: 0-No;1=Yes
B140: Survey Variable8 Name | C140: Average queue length | L140: PerformanceAverageQueue | M140: PerformanceAverageQueue
B141: Data File Variable8 Name | L141: 13_AM_Q49_1R08C01 | M141: 16_AM_Q41_1R12C01
B143: Question # (Where to find in survey) | L143: 49 | M143: 41
B144: Question Format | L144: Text | M144: Text
B145: Values
B146: Value Labels
B147: Survey Variable9 Name | C147: Other (description) | L147: PerformanceOthertext | M147: PerformanceOtherText
B148: Data File Variable9 Name | L148: 13_AM_Q49_1R09C01TXT | M148: 16_AM_Q41_1R14C01TXT
B150: Question # (Where to find in survey) | L150: 49 | M150: 41
B151: Question Format | L151: Boolean | M151: Boolean
B152: Values | L152: 0,1 | M152: 0,1
B153: Value Labels | L153: 0=No;1=Yes | M153: 0-No;1=Yes
B154: Survey Variable10 Name | C154: Performance measures not used | L154: PerformanceNotUsed | M154: PerformanceNotUsed
B155: Data File Variable10 Name | L155: 13_AM_Q49_1R10C01 | M155: 16_AM_Q41_1R13C01
B157: Question # (Where to find in survey) | M157: 41
B158: Question Format | M158: Boolean
B159: Values | M159: 0,1
B160: Value Labels | M160: 0-No;1=Yes
B161: Survey Variable11 Name | C161: Average speed | M161: PerformanceSpeed
B162: Data File Variable11 Name | M162: 16_AM_Q41_1R01C01
B164: Question # (Where to find in survey) | M164: 41
B165: Question Format | M165: Boolean
B166: Values | M166: 0,1
B167: Value Labels | M167: 0-No;1=Yes
B168: Survey Variable12 Name | C168: Average delay per vehicle | M168: PerformanceDelayVeh
B169: Data File Variable12 Name | M169: 16_AM_Q41_1R02C01
B171: Question # (Where to find in survey) | M171: 41
B172: Question Format | M172: Boolean
B173: Values | M173: 0,1
B174: Value Labels | M174: 0-No;1=Yes
B175: Survey Variable13 Name | C175: Delay per incident | M175: PerformanceDelayInc
B176: Data File Variable13 Name | M176: 16_AM_Q41_1R03C01
B178: Question # (Where to find in survey) | M178: 41
B179: Question Format | M179: Boolean
B180: Values | M180: 0,1
B181: Value Labels | M181: 0-No;1=Yes
B182: Survey Variable14 Name | C182: Frequency of severe congestions | M182: PerformanceFrequency
B183: Data File Variable14 Name | M183: 16_AM_Q41_1R04C01

Sheet TMC (1)
B2: Traffic Management Center (1)
C3: Choices (in batteries) | D3: 1999 | E3: 2000 | F3: 2002 | G3: 2004 | H3: 2005 | I3: 2006 | J3: 2007 | K3: 2010 | L3: 2013 | M3: 2016
B7: METHODS TO DISTRIBUTE TRAVEL TIME INFORMATION, TRAVEL SPEED INFORMATION
B8: Question Wording | G8: Does your agency operate a Traffic Operations Center (TOC) or Traffic Management Center (TMC)? | I8: Does your agency operate a Traffic Management Center (TMC) | J8: Does your agency operate a Traffic Management Center (TMC) | L8: Does your agency operate a Traffic Management Center (TMC)
B9: Question # (Where to find in survey) | G9: 34 | I9: 50 | J9: 43 | L9: 24
B10: Question Format | G10: Multiple Choice | I10: Multiple Choice | J10: Multiple Choice | L10: Multiple Choice
B11: Values | G11: 0,1,2 | I11: 0,1,2 | J11: 0,1,2 | L11: 0,1,2
B12: Value Labels | G12: 0=No;1=Yes;2=No Response | I12: 0=No;1=Yes;2=No Response | J12: 0=No;1=Yes;2=No Response | L12: 0=No;1=Yes;2=No Response
B13: Survey Variable1 Name | C13: Operate TMC | G13: OperateTOC-TMC | I13: ScreenOperateTMC | J13: ScreenOperateTMC | L13: OperateTmc
B14: Data File Variable1 Name | G14: 04_AM_Q34_1R01C01 | I14: 06_AM_Q50_1R01C01 | J14: 07_AM_Q43_1R01C01 | L14: 13_AM_Q24_1R01C01
I16: What is the name and location of the center? | J16: What is the name of the center? | L16: What is the name of the center?
B17: Question # (Where to find in survey) | I17: 50 | J17: 43 | L17: 24
B18: Question Format | I18: Text | J18: Text | L18: Text
B19: Values
B20: Value Labels
B21: Survey Variable1 Name | C21: TMC name | I21: TMCName | J21: TMCName | L21: OperateTmcName
B22: Data File Variable1 Name | I22: 06_AM_Q50_2R01C01TXT | J22: 07_AM_Q43_2R01C01TXT | L22: 13_AM_Q24_2R01C01TXT
B24: Question # (Where to find in survey) | I24: 51
B25: Question Format | I25: Text
B26: Values
B27: Value Labels
B28: Survey Variable2 Name | C28: TMC location | I28: TMC_Location
B29: Data File Variable2 Name | I29: 06_AM_Q51_1R01C01TXT
I31: What is the geographic are of coverage or area of responsibility? | L31: What is the geographic are of coverage or area of responsibility?
B32: Question # (Where to find in survey) | I32: 52 | L32: 24
B33: Question Format | I33: Text | L33: Text
B34: Values
B35: Value Labels
B36: Survey Variable1 Name | C36: TMC coverage | I36: TMC_Coverage | L36: OperateTmcCoverage
B37: Data File Variable1 Name | I37: 06_AM_Q52_1R01C01TXT | L37: 13_AM_Q24_2R02C01TXT
B39: TYPES OF ARTERIAL OPERATIONS
B40: Question Wording | D40: Which of the following best describe the types of operations conducted by your agency or contractor staff for arterial management (Circle all the numbers that apply)
B41: Question # (Where to find in survey) | D41: 04
B42: Question Format | D42: Boolean
B43: Values | D43: 0,1
B44: Value Labels | D44: 0=No;1=Yes
B45: Survey Variable1 Name | C45: Incident detection and management | D45: IncidentDetectionManagement
B46: Data File Variable1 Name | D46: 99_AM_Q04_1R01C01
B48: Question # (Where to find in survey) | D48: 04
B49: Question Format | D49: Boolean
B50: Values | D50: 0,1
B51: Value Labels | D51: 0=No;1=Yes
B52: Survey Variable2 Name | C52: Incident detection and management this metropolitan area | D52: ThisMetroArea
B53: Data File Variable2 Name | D53: 99_AM_Q04_1R02C01
B55: Question # (Where to find in survey) | D55: 04
B56: Question Format | D56: Boolean
B57: Values | D57: 0,1
B58: Value Labels | D58: 0=No;1=Yes
B59: Survey Variable3 Name | C59: Incident detection and management other metropolitan area | D59: OtherMetroArea
B60: Data File Variable3 Name | D60: 99_AM_Q04_1R03C01
B62: Question # (Where to find in survey) | D62: 04
B63: Question Format | D63: Boolean
B64: Values | D64: 0,1
B65: Value Labels | D65: 0=No;1=Yes
B66: Survey Variable4 Name | C66: Monitoring and troubleshooting status of system components | D66: MonitorStatusSystem
B67: Data File Variable4 Name | D67: 99_AM_Q04_2R01C01
B69: Question # (Where to find in survey) | D69: 04
B70: Question Format | D70: Boolean
B71: Values | D71: 0,1
B72: Value Labels | D72: 0=No;1=Yes
B73: Survey Variable5 Name | C73: Manual override of ramp metering rates at freeway on-ramps | D73: ManualOverride
B74: Data File Variable5 Name | D74: 99_AM_Q04_5R01C01
B76: Question # (Where to find in survey) | D76: 04
B77: Question Format | D77: Boolean
B78: Values | D78: 0,1
B79: Value Labels | D79: 0=No;1=Yes
B80: Survey Variable6 Name | C80: Operating transportation management roadside devices | D80: OperatingRoadsideDevices
B81: Data File Variable6 Name | D81: 99_AM_Q04_6R01C01
B83: Question # (Where to find in survey) | D83: 04
B84: Question Format | D84: Boolean
B85: Values | D85: 0,1
B86: Value Labels | D86: 0=No;1=Yes
B87: Survey Variable7 Name | C87: Radio communications with other agencies | D87: RadioCommunication
B88: Data File Variable7 Name | D88: 99_AM_Q04_3R01C01
B90: Question # (Where to find in survey) | D90: 04
B91: Question Format | D91: Boolean
B92: Values | D92: 0,1
B93: Value Labels | D93: 0=No;1=Yes
B94: Survey Variable8 Name | C94: Exchange of electronic data with other agencies such as computer aided dispatch | D94: ExchangeElecData
B95: Data File Variable8 Name | D95: 99_AM_Q04_4R01C01
B97: Question # (Where to find in survey) | D97: 04
B98: Question Format | D98: Text
B99: Values
B100: Value Labels
B101: Survey Variable9 Name | C101: Other (please describe) | D101: TypeOfOperationOther
B102: Data File Variable9 Name | D102: 99_AM_Q04_7R01C01TXT
B104: FUNCTIONAL CAPABILITIES OF ARTERIAL OPERATIONS
B105: Question Wording | E105: Which of the following best describes the functional capabilities of your arterial management system? | I105: Which of the following best describes the functional capabilities of your arterial management system?
B106: Question # (Where to find in survey) | E106: 03 | I106: 53
B107: Question Format | E107: Boolean | I107: Boolean
B108: Values | E108: 0,1 | I108: 0,1
B109: Value Labels | E109: 0=No;1=Yes | I109: 0=No;1=Yes
B110: Survey Variable1 Name | C110: Network or roadway surveillance and data collection | E110: Network_surveillance | I110: TMCCapabilitiesNetwork
B111: Data File Variable1 Name | E111: 00_AM_Q03_1R01C01 | I111: 06_AM_Q53_1R01C01
B113: Question # (Where to find in survey) | E113: 03 | I113: 53
B114: Question Format | E114: Boolean | I114: Boolean
B115: Values | E115: 0,1 | I115: 0,1
B116: Value Labels | E116: 0=No;1=Yes | I116: 0=No;1=Yes
B117: Survey Variable2 Name | C117: Incident management (e.g., detection, verification and monitoring of incident status) | E117: Incident_management | I117: TMCCapabilitiesIncident
B118: Data File Variable2 Name | E118: 00_AM_Q03_1R02C01 | I118: 06_AM_Q53_1R02C01
B120: Question # (Where to find in survey) | E120: 03 | I120: 53
B121: Question Format | E121: Boolean | I121: Boolean
B122: Values | E122: 0,1 | I122: 0,1
B123: Value Labels | E123: 0=No;1=Yes | I123: 0=No;1=Yes
B124: Survey Variable3 Name | C124: Information dissemination (public, private and interagency) | E124: Information_dissemination | I124: TMCCapabilitiesInformation
B125: Data File Variable3 Name | E125: 00_AM_Q03_1R03C01 | I125: 06_AM_Q53_1R03C01
B127: Question # (Where to find in survey) | E127: 03 | I127: 53
B128: Question Format | E128: Boolean | I128: Boolean
B129: Values | E129: 0,1 | I129: 0,1
B130: Value Labels | E130: 0=No;1=Yes | I130: 0=No;1=Yes
B131: Survey Variable4 Name | C131: En-route driver information | E131: EnRoute_driver_info | I131: TMCCapabilitiesEnroute
B132: Data File Variable4 Name | E132: 00_AM_Q03_1R04C01 | I132: 06_AM_Q53_1R04C01
B134: Question # (Where to find in survey) | E134: 03 | I134: 53
B135: Question Format | E135: Boolean | I135: Boolean
B136: Values | E136: 0,1 | I136: 0,1
B137: Value Labels | E137: 0=No;1=Yes | I137: 0=No;1=Yes
B138: Survey Variable5 Name | C138: Environmental monitoring (e.g., air quality, noise and weather) Special event traffic management | E138: Environmental_monitoring | I138: TMCCapabilitiesEnvironment
B139: Data File Variable5 Name | E139: 00_AM_Q03_1R05C01 | I139: 06_AM_Q53_1R05C01
B141: Question # (Where to find in survey) | E141: 03 | I141: 53
B142: Question Format | E142: Boolean | I142: Boolean
B143: Values | E143: 0,1 | I143: 0,1
B144: Value Labels | E144: 0=No;1=Yes | I144: 0=No;1=Yes
B145: Survey Variable6 Name | C145: Special event traffic management | E145: Special_event_traffic_mgmt | I145: TMCCapabilitiesSpecial
B146: Data File Variable6 Name | E146: 00_AM_Q03_1R06C01 | I146: 06_AM_Q53_1R06C01
B148: Question # (Where to find in survey) | E148: 03 | I148: 53
B149: Question Format | E149: Boolean | I149: Boolean
B150: Values | E150: 0,1 | I150: 0,1
B151: Value Labels | E151: 0=No;1=Yes | I151: 0=No;1=Yes
B152: Survey Variable7 Name | C152: Disaster/ evacuation management and traffic coordination | E152: Disaster_management | I152: TMCCapabilitiesEvacuation
B153: Data File Variable7 Name | E153: 00_AM_Q03_1R07C01 | I153: 06_AM_Q53_1R07C01
B155: Question # (Where to find in survey) | E155: 03 | I155: 53
B156: Question Format | E156: Boolean | I156: Boolean
B157: Values | E157: 0,1 | I157: 0,1
B158: Value Labels | E158: 0=No;1=Yes | I158: 0=No;1=Yes
B159: Survey Variable8 Name | C159: Emergency services traffic control coordination | E159: Emergency_services_traffic_ctrl | I159: TMCCapabilitiesEmergency
B160: Data File Variable8 Name | E160: 00_AM_Q03_1R08C01 | I160: 06_AM_Q53_1R08C01
B162: Question # (Where to find in survey) | E162: 03
B163: Question Format | E163: Boolean
B164: Values | E164: 0,1
B165: Value Labels | E165: 0=No;1=Yes
B166: Survey Variable9 Name | C166: Signal management and control | E166: Signal_management_and_control
B167: Data File Variable9 Name | E167: 00_AM_Q03_1R09C01
B169: Question # (Where to find in survey) | E169: 03 | I169: 53
B170: Question Format | E170: Boolean | I170: Boolean
B171: Values | E171: 0,1 | I171: 0,1
B172: Value Labels | E172: 0=No;1=Yes | I172: 0=No;1=Yes
B173: Survey Variable10 Name | C173: Corridor management/traffic signal coordination or control | E173: Corridor_management_control | I173: TMCCapabilitiesCorridor
B174: Data File Variable10 Name | E174: 00_AM_Q03_1R10C01 | I174: 06_AM_Q53_1R11C01
B176: Question # (Where to find in survey) | E176: 03 | I176: 53
B177: Question Format | E177: Boolean | I177: Boolean
B178: Values | E178: 0,1 | I178: 0,1
B179: Value Labels | E179: 0=No;1=Yes | I179: 0=No;1=Yes
B180: Survey Variable11 Name | C180: Network performance monitoring, evaluation and reporting | E180: Network_performance_monitoring | I180: TMCCapabilitiesPerformance
B181: Data File Variable11 Name | E181: 00_AM_Q03_1R11C01 | I181: 06_AM_Q53_1R12C01
B183: Question # (Where to find in survey) | E183: 03
B184: Question Format | E184: Boolean
B185: Values | E185: 0,1
B186: Value Labels | E186: 0=No;1=Yes
B187: Survey Variable12 Name | C187: No Arterial or Incident management activities | E187: No_Arterial_or_incident_mgmt
B188: Data File Variable12 Name | E188: 00_AM_Q03_1R12C01
B190: Question # (Where to find in survey) | I190: 53
B191: Question Format | I191: Boolean
B192: Values | I192: 0,1
B193: Value Labels | I193: 0=No;1=Yes
B194: Survey Variable13 Name | C194: Ramp management and control | I194: TMCCapabilitiesRamp
B195: Data File Variable13 Name | I195: 06_AM_Q53_1R09C01
B197: Question # (Where to find in survey) | I197: 53
B198: Question Format | I198: Boolean
B199: Values | I199: 0,1
B200: Value Labels | I200: 0=No;1=Yes
B201: Survey Variable14 Name | C201: Lane management and control (e.g., HOV, reversible lanes) | I201: TMCCapabilitiesLane
B202: Data File Variable14 Name | I202: 06_AM_Q53_1R10C01
B204: Question # (Where to find in survey) | I204: 53
B205: Question Format | I205: Boolean
B206: Values | I206: 0,1
B207: Value Labels | I207: 0=No;1=Yes
B208: Survey Variable15 Name | C208: Road Weather Management | I208: TMCCapabilitiesRwm
B209: Data File Variable15 Name | I209: 06_AM_Q53_1R13C01
B211: Question # (Where to find in survey) | E211: 03 | I211: 53
B212: Question Format | E212: Text | I212: Text
B213: Values
B214: Value Labels
B215: Survey Variable16 Name | C215: Other (description) | E215: OTHER_AMQ3 | I215: TMCCapabilitiesOther
B216: Data File Variable16 Name | E216: 00_AM_Q03_1R13C01TXT | I216: 06_AM_Q53_1R14C01TXT

Sheet TMC (2)
B2: Traffic Management Center (2)
C3: Choices (in batteries) | D3: 1999 | E3: 2000 | F3: 2002 | G3: 2004 | H3: 2005 | I3: 2006 | J3: 2007 | K3: 2010 | L3: 2013 | M3: 2016
B7: TMC FACILITIES
B8: Question Wording | D8: Which of the following best describe the type of facilities used to conduct arterial management activities by your agency? | E8: Which of the following best describe the type of facilities used to conduct arterial management and/or incident management activities by your agency?
B9: Question # (Where to find in survey) | E9: 04
B10: Question Format | E10: Boolean
B11: Values | E11: 0,1
B12: Value Labels | E12: 0=No;1=Yes
B13: Survey Variable1 Name | C13: Building | E13: Building
B14: Data File Variable1 Name | E14: 00_AM_Q04_1R01C01
B16: Question # (Where to find in survey) | D16: 02 | E16: 04
B17: Question Format | D17: Boolean | E17: Boolean
B18: Values | D18: 0,1 | E18: 0,1
B19: Value Labels | D19: 0=No;1=Yes | E19: 0=No;1=Yes
B20: Survey Variable2 Name | C20: Activities housed in a free-standing dedicated building | D20: FreeStandingBuilding | E20: FreeStandingBuilding
B21: Data File Variable2 Name | D21: 99_AM_Q02_1R05C01 | E21: 00_AM_Q04_1R02C01
B23: Question # (Where to find in survey) | D23: 02 | E23: 04
B24: Question Format | D24: Boolean | E24: Boolean
B25: Values | D25: 0,1 | E25: 0,1
B26: Value Labels | D26: 0=No;1=Yes | E26: 0=No;1=Yes
B27: Survey Variable3 Name | C27: Activities housed in a building shared with other activities | D27: BuildingShared | E27: BuildingShared
B28: Data File Variable3 Name | D28: 99_AM_Q02_2R06C01 | E28: 00_AM_Q04_1R03C01
B30: Question # (Where to find in survey) | D30: 02 | E30: 04
B31: Question Format | D31: Boolean | E31: Boolean
B32: Values | D32: 0,1 | E32: 0,1
B33: Value Labels | D33: 0=No;1=Yes | E33: 0=No;1=Yes
B34: Survey Variable4 Name | C34: Activities conducted in a dedicated control room | D34: DedicatedControlRoom | E34: DedicatedControlRoom
B35: Data File Variable4 Name | D35: 99_AM_Q02_3R01C01 | E35: 00_AM_Q04_1R04C01
B37: Question # (Where to find in survey) | D37: 02 | E37: 04
B38: Question Format | D38: Boolean | E38: Boolean
B39: Values | D39: 0,1 | E39: 0,1
B40: Value Labels | D40: 0=No;1=Yes | E40: 0=No;1=Yes
B41: Survey Variable5 Name | C41: Control room contains operator console(s) | D41: ControlRoomOperator | E41: ControlRoomOperator
B42: Data File Variable5 Name | D42: 99_AM_Q02_3R02C01 | E42: 00_AM_Q04_1R05C01
B44: Question # (Where to find in survey) | D44: 02 | E44: 04
B45: Question Format | D45: Boolean | E45: Boolean
B46: Values | D46: 0,1 | E46: 0,1
B47: Value Labels | D47: 0=No;1=Yes | E47: 0=No;1=Yes
B48: Survey Variable6 Name | C48: Control room contains electronic wall map | D48: ControlRoomWallMap | E48: ControlRoomWallMap
B49: Data File Variable6 Name | D49: 99_AM_Q02_3R03C01 | E49: 00_AM_Q04_1R06C01
B51: Question # (Where to find in survey) | D51: 02 | E51: 04
B52: Question Format | D52: Boolean | E52: Boolean
B53: Values | D53: 0,1 | E53: 0,1
B54: Value Labels | D54: 0=No;1=Yes | E54: 0=No;1=Yes
B55: Survey Variable7 Name | C55: Control room contains CCTV display(s) | D55: ControlRoomCCTV | E55: ControlRoomCCTV
B56: Data File Variable7 Name | D56: 99_AM_Q02_3R04C01 | E56: 00_AM_Q04_1R07C01
B58: Question # (Where to find in survey) | D58: 02 | E58: 04
B59: Question Format | D59: Boolean | E59: Boolean
B60: Values | D60: 0,1 | E60: 0,1
B61: Value Labels | D61: 0=No;1=Yes | E61: 0=No;1=Yes
B62: Survey Variable8 Name | C62: Activities conducted in a room containing workstations or PCs that manage traffic | D62: ContainWorkstations | E62: ContainWorkstations
B63: Data File Variable8 Name | D63: 99_AM_Q02_4R11C01 | E63: 00_AM_Q04_1R10C01
B65: Question # (Where to find in survey) | D65: 02
B66: Question Format | D66: Boolean
B67: Values | D67: 0,1
B68: Value Labels | D68: 0=No;1=Yes
B69: Survey Variable9 Name | C69: Facilities are electronically linked to other transportation management facilities | D69: ElectronicallyLinked
B70: Data File Variable9 Name | D70: 99_AM_Q02_5R12C01
B72: Question # (Where to find in survey) | E72: 04
B73: Question Format | E73: Boolean
B74: Values | E74: 0,1
B75: Value Labels | E75: 0=No;1=Yes
B76: Survey Variable10 Name | C76: Shared with other activities (e.g. transit, arterial management, public safety) | E76: SharedActivities
B77: Data File Variable10 Name | E77: 00_AM_Q04_1R09C01
B79: Question # (Where to find in survey) | E79: 04
B80: Question Format | E80: Boolean
B81: Values | E81: 0,1
B82: Value Labels | E82: 0=No;1=Yes
B83: Survey Variable11 Name | C83: No Arterial Management Facilities | E83: NoArterialFacilities
B84: Data File Variable11 Name | E84: 00_AM_Q04_1R11C01
B86: Question # (Where to find in survey) | E86: 04
B87: Question Format | E87: Boolean
B88: Values | E88: 0,1
B89: Value Labels | E89: 0=No;1=Yes
B90: Survey Variable12 Name | C90: Other (please describe) and/or additional information | E90: OtherFacilities
B91: Data File Variable12 Name | E91: 00_AM_Q04_1R12C01
B93: Question # (Where to find in survey) | D93: 02 | E93: 04
B94: Question Format | D94: Text | E94: Text
B95: Values
B96: Value Labels
B97: Survey Variable13 Name | C97: Other (please describe) and/or additional information | D97: OtherTypeOfFacility | E97: OtherFacilitiesDescribe
B98: Data File Variable13 Name | D98: 99_AM_Q02_6R01C01TXT | E98: 00_AM_Q04_1R13C01TXT
B100: TMC STAFFING
B101: Question Wording | D101: Which of the following best describe the staffing and hours of operation of your arterial management activities? (Circle all the numbers that apply)
B102: Question # (Where to find in survey) | D102: 03
B103: Question Format | D103: Numeric
B104: Values
B105: Value Labels
B106: Survey Variable1 Name | C106: Number of full-time agency staff members on staff | D106: StaffedFullTimeEmployee
B107: Data File Variable1 Name | D107: 99_AM_Q03_1R01C01
B109: Question # (Where to find in survey) | D109: 03
B110: Question Format | D110: Numeric
B111: Values
B112: Value Labels
B113: Survey Variable2 Name | C113: Number of full-time contractor staff members on staff | D113: StaffedFullTimeContractor
B114: Data File Variable2 Name | D114: 99_AM_Q03_1R01C02
B116: Question # (Where to find in survey) | D116: 03
B117: Question Format | D117: Numeric
B118: Values
B119: Value Labels
B120: Survey Variable3 Name | C120: Number of part-time agency staff members on staff | D120: StaffedPartTimeEmployee
B121: Data File Variable3 Name | D121: 99_AM_Q03_2R01C01
B123: Question # (Where to find in survey) | D123: 03
B124: Question Format | D124: Numeric
B125: Values
B126: Value Labels
B127: Survey Variable4 Name | C127: Number of part-time contractor staff members on staff | D127: StaffedPartTimeContractor
B128: Data File Variable4 Name | D128: 99_AM_Q03_2R01C02
B130: Question Wording | D130: Staffing Hours
B131: Question # (Where to find in survey) | D131: 03
B132: Question Format | D132: Multiple Choice
B133: Values | D133: 1,2,3
B134: Value Labels | D134: 1=Agency staff;2=Others;3=No Response
B135: Survey Variable1 Name | C135: Staffed 24 hours a day | D135: Staffed24Hours
B136: Data File Variable1 Name | D136: 99_AM_Q03_3R01C01
B138: Question # (Where to find in survey) | D138: 03
B139: Question Format | D139: Multiple Choice
B140: Values | D140: 1,2,3
B141: Value Labels | D141: 1=Agency staff;2=Others;3=No Response
B142: Survey Variable2 Name | C142: Staff during peak hours on | D142: StaffedPeakHours
B143: Data File Variable2 Name | D143: 99_AM_Q03_4R01C01
B145: Question Wording | E145: Hours of Operations
B146: Question # (Where to find in survey) | E146: 04
B147: Question Format | E147: Multiple Choice
B148: Values | E148: 1,2,3,4
B149: Value Labels | E149: 1=24 hours a day;2=Peak hours only;3=Other;4=No Response
B150: Survey Variable1 Name | C150: Hours of operation | E150: HoursofOperation
B151: Data File Variable1 Name | E151: 00_AM_Q04_1R14C01
B153: Question # (Where to find in survey) | E153: 04
B154: Question Format | E154: Text
B155: Values
B156: Value Labels
B157: Survey Variable2 Name | C157: Other | E157: HoursOtherDescribe
B158: Data File Variable2 Name | E158: 00_AM_Q04_1R15C01TXT
B160: Question Wording | D160: Staffing Policies
B161: Question # (Where to find in survey) | D161: 03
B162: Question Format | D162: Boolean
B163: Values | D163: 0,1
B164: Value Labels | D164: 0=No;1=Yes
B165: Survey Variable1 Name | C165: Staffed by others during off-peak hours | D165: StaffedOthersOffPeak
B166: Data File Variable1 Name | D166: 99_AM_Q03_5R01C01
B168: Question # (Where to find in survey) | D168: 03
B169: Question Format | D169: Boolean
B170: Values | D170: 0,1
B171: Value Labels | D171: 0=No;1=Yes
B172: Survey Variable2 Name | C172: Agency staff perform transportation management as ancillary duty | D172: StaffAncillaryDury
B173: Data File Variable2 Name | D173: 99_AM_Q03_6R01C01
B175: Question # (Where to find in survey) | D175: 03
B176: Question Format | D176: Boolean
B177: Values | D177: 0,1
B178: Value Labels | D178: 0=No;1=Yes
B179: Survey Variable3 Name | C179: Agency staff dedicated to transportation management duty | D179: StaffDedicatedTransportation
B180: Data File Variable3 Name | D180: 99_AM_Q03_7R01C01
B182: Question # (Where to find in survey) | D182: 03
B183: Question Format | D183: Text
B184: Values
B185: Value Labels
B186: Survey Variable4 Name | C186: Other (please describe) | D186: StaffingAndHoursOther
B187: Data File Variable4 Name | D187: 99_AM_Q03_8R01C01TXT
B189: NUMBER OF DEDICATED ARTERIAL MANAGEMENT STAFF
B190: Question Wording | E190: Number of dedicated Arterial Management Staff
B191: Question # (Where to find in survey) | E191: 05
B192: Question Format | E192: Numeric
B193: Values
B194: Value Labels
B195: Survey Variable1 Name | C195: Professional Engineer - Full Time Agency Staff | E195: FullProfEngineer
B196: Data File Variable1 Name | E196: 00_AM_Q05_1R01C01
B198: Question # (Where to find in survey) | E198: 05
B199: Question Format | E199: Numeric
B200: Values
B201: Value Labels
B202: Survey Variable2 Name | C202: Other Professional- Full Time Agency Staff | E202: FullProfOther
B203: Data File Variable2 Name | E203: 00_AM_Q05_1R01C02
B205: Question # (Where to find in survey) | E205: 05
B206: Question Format | E206: Numeric
B207: Values
B208: Value Labels
B209: Survey Variable3 Name | C209: Technical - Full Time Agency Staff | E209: FullTech
B210: Data File Variable3 Name | E210: 00_AM_Q05_1R01C03
B212: Question # (Where to find in survey) | E212: 05
B213: Question Format | E213: Numeric
B214: Values
B215: Value Labels
B216: Survey Variable4 Name | C216: Administrative - Full Time Agency Staff | E216: FullAdmin
B217: Data File Variable4 Name | E217: 00_AM_Q05_1R01C04
B219: Question # (Where to find in survey) | E219: 05
B220: Question Format | E220: Numeric
B221: Values
B222: Value Labels
B223: Survey Variable5 Name | C223: Other - Full Time Agency Staff | E223: FullOther
B224: Data File Variable5 Name | E224: 00_AM_Q05_1R01C05
B226: Question # (Where to find in survey) | E226: 05
B227: Question Format | E227: Numeric
B228: Values
B229: Value Labels
B230: Survey Variable6 Name | C230: Professional Engineer - Part Time Agency Staff | E230: PartProfEngineer
B231: Data File Variable6 Name | E231: 00_AM_Q05_1R02C01
B233: Question # (Where to find in survey) | E233: 05
B234: Question Format | E234: Numeric
B235: Values
... 161 more rows

Sheet TMC (3)
D1: 1=Most Important;2=Second Most Important;3=Third Most Important
B2: Traffic Management Center (3)
C3: Choices (in batteries) | D3: 1999 | E3: 2000 | F3: 2002 | G3: 2004 | H3: 2005 | I3: 2006 | J3: 2007 | K3: 2010 | L3: 2013 | M3: 2016
B7: TOC/TMC DEPLOYMENT
B8: Question Wording | I8: Select the 3 most important factors in making a decision to invest in a TOC/TMC from the list below. Please rank your choices using a scale of 1-3 where 1=most important
B9: Question # (Where to find in survey) | I9: 54
B10: Question Format | I10: Multiple Choice
B11: Values | I11: 1,2,3
B12: Value Labels | I12: 1=Most Important;2=Second Most Important;3=Third Most Important
B13: Survey Variable1 Name | C13: Agency cost savings | I13: TMCInvestFactorsCost
B14: Data File Variable1 Name | I14: 06_AM_Q54_1R01C01
B16: Question # (Where to find in survey) | I16: 54
B17: Question Format | I17: Multiple Choice
B18: Values | I18: 1,2,3
B19: Value Labels | I19: 1=Most Important;2=Second Most Important;3=Third Most Important
B20: Survey Variable2 Name | C20: Incident management | I20: TMCInvestFactorsIm
B21: Data File Variable2 Name | I21: 06_AM_Q54_1R02C01
B23: Question # (Where to find in survey) | I23: 54
B24: Question Format | I24: Multiple Choice
B25: Values | I25: 1,2,3
B26: Value Labels | I26: 1=Most Important;2=Second Most Important;3=Third Most Important
B27: Survey Variable3 Name | C27: Voter or customer satisfaction | I27: TMCInvestFactorsVoter
B28: Data File Variable3 Name | I28: 06_AM_Q54_1R03C01
B30: Question # (Where to find in survey) | I30: 54
B31: Question Format | I31: Multiple Choice
B32: Values | I32: 1,2,3
B33: Value Labels | I33: 1=Most Important;2=Second Most Important;3=Third Most Important
B34: Survey Variable4 Name | C34: Improved environment | I34: TMCInvestFactorsEnvir
B35: Data File Variable4 Name | I35: 06_AM_Q54_1R04C01
B37: Question # (Where to find in survey) | I37: 54
B38: Question Format | I38: Multiple Choice
B39: Values | I39: 1,2,3
B40: Value Labels | I40: 1=Most Important;2=Second Most Important;3=Third Most Important
B41: Survey Variable5 Name | C41: Improved travel time reliability | I41: TMCInvestFactorsTravel
B42: Data File Variable5 Name | I42: 06_AM_Q54_1R05C01
B44: Question # (Where to find in survey) | I44: 54
B45: Question Format | I45: Multiple Choice
B46: Values | I46: 1,2,3
B47: Value Labels | I47: 1=Most Important;2=Second Most Important;3=Third Most Important
B48: Survey Variable6 Name | C48: Improved safety | I48: TMCInvestFactorsSafety
B49: Data File Variable6 Name | I49: 06_AM_Q54_1R06C01
B51: Question # (Where to find in survey) | I51: 54
B52: Question Format | I52: Multiple Choice
B53: Values | I53: 1,2,3
B54: Value Labels | I54: 1=Most Important;2=Second Most Important;3=Third Most Important
B55: Survey Variable7 Name | C55: Evacuation management | I55: TMCInvestFactorsEvac
B56: Data File Variable7 Name | I56: 06_AM_Q54_1R07C01
B58: Question # (Where to find in survey) | I58: 54
B59: Question Format | I59: Multiple Choice
B60: Values | I60: 1,2,3
B61: Value Labels | I61: 1=Most Important;2=Second Most Important;3=Third Most Important
B62: Survey Variable8 Name | C62: Other (please specify) | I62: TMCInvestFactorsOther
B63: Data File Variable8 Name | I63: 06_AM_Q54_1R08C01
B65: Question # (Where to find in survey) | I65: 54
B66: Question Format | I66: Text
B67: Values
B68: Value Labels
B69: Survey Variable9 Name | C69: Other (please specify) | I69: TMCInvestFactorsOtherText
B70: Data File Variable9 Name | I70: 06_AM_Q54_2R08C01TXT
B72: Question Wording | I72: Select the 3 most effective methods in persuading the public to support deployment of your TOC/TMC from the list below. Please rank your choices using a scale of 1-3 where 1=most effective.
B73: Question # (Where to find in survey) | I73: 56
B74: Question Format | I74: Multiple Choice
B75: Values | I75: 1,2,3
B76: Value Labels | I76: 1=Most Important;2=Second Most Important;3=Third Most Important
B77: Survey Variable1 Name | C77: Open meeting with the public | I77: TMCMethodsPersuadeMeetings
B78: Data File Variable1 Name | I78: 06_AM_Q56_1R01C01
B80: Question # (Where to find in survey) | I80: 56
B81: Question Format | I81: Multiple Choice
B82: Values | I82: 1,2,3
B83: Value Labels | I83: 2=Most Important, 2,3
B84: Survey Variable2 Name | C84: Contractor provided briefings | I84: TMCMethodsPersuadeContractor
B85: Data File Variable2 Name | I85: 06_AM_Q56_1R02C01
B87: Question # (Where to find in survey) | I87: 56
B88: Question Format | I88: Multiple Choice
B89: Values | I89: 1,2,3
B90: Value Labels | I90: 3=Most Important, 2,3
B91: Survey Variable3 Name | C91: Emergency situation | I91: TMCMethodsPersuadeEmergency
B92: Data File Variable3 Name | I92: 06_AM_Q56_1R03C01
B94: Question # (Where to find in survey) | I94: 56
B95: Question Format | I95: Multiple Choice
B96: Values | I96: 1,2,3
B97: Value Labels | I97: 4=Most Important, 2,3
B98: Survey Variable4 Name | C98: Public involvement | I98: TMCMethodsPersuadeInvolve
B99: Data File Variable4 Name | I99: 06_AM_Q56_1R04C01
B101: Question # (Where to find in survey) | I101: 56
B102: Question Format | I102: Multiple Choice
B103: Values | I103: 1,2,3
B104: Value Labels | I104: 5=Most Important, 2,3
B105: Survey Variable5 Name | C105: Newspaper articles and other local media (e.g., radio, TV) | I105: TMCMethodsPersuadeMedia
B106: Data File Variable5 Name | I106: 06_AM_Q56_1R05C01
B108: Question # (Where to find in survey) | I108: 56
B109: Question Format | I109: Multiple Choice
B110: Values | I110: 1,2,3
B111: Value Labels | I111: 6=Most Important, 2,3
B112: Survey Variable6 Name | C112: Scanning tours for elected officials | I112: TMCMethodsPersuadeScanning
B113: Data File Variable6 Name | I113: 06_AM_Q56_1R06C01
B115: Question # (Where to find in survey) | I115: 56
B116: Question Format | I116: Multiple Choice
B117: Values | I117: 1,2,3
B118: Value Labels | I118: 7=Most Important, 2,3
B119: Survey Variable7 Name | C119: On-line message boards | I119: TMCMethodsPersuadeOnline
B120: Data File Variable7 Name | I120: 06_AM_Q56_1R07C01
B122: Question # (Where to find in survey) | I122: 56
B123: Question Format | I123: Multiple Choice
B124: Values | I124: 1,2,3
B125: Value Labels | I125: 8=Most Important, 2,3
B126: Survey Variable8 Name | C126: Other (please specify) | I126: TMCMethodsPersuadeOther
B127: Data File Variable8 Name | I127: 06_AM_Q56_1R08C01
B129: Question # (Where to find in survey) | I129: 56
B130: Question Format | I130: Text
B131: Values
B132: Value Labels
B133: Survey Variable9 Name | C133: Other (please specify) | I133: TMCMethodsPersuadeOtherText
B134: Data File Variable9 Name | I134: 06_AM_Q56_2R08C01TXT
B136: Question Wording | I136: Select the 3 most important legal issues involved with making a decision to deploy a TOC/TMC from the list below. Please rank your choices using a scale of 1-3 where 1=most important.
B137: Question # (Where to find in survey) | I137: 60
B138: Question Format | I138: Multiple Choice
B139: Values | I139: 1,2,3
B140: Value Labels | I140: 1=Most Important;2=Second Most Important;3=Third Most Important
B141: Survey Variable1 Name | C141: Rules and regulations | I141: TMCLegalIssuesRules
B142: Data File Variable1 Name | I142: 06_AM_Q60_1R01C01
B144: Question # (Where to find in survey) | I144: 60
B145: Question Format | I145: Multiple Choice
B146: Values | I146: 1,2,3
B147: Value Labels | I147: 1=Most Important;2=Second Most Important;3=Third Most Important
B148: Survey Variable2 Name | C148: Contract disputes and claims | I148: TMCLegalIssuesContract
B149: Data File Variable2 Name | I149: 06_AM_Q60_1R02C01
B151: Question # (Where to find in survey) | I151: 60
B152: Question Format | I152: Multiple Choice
B153: Values | I153: 1,2,3
B154: Value Labels | I154: 1=Most Important;2=Second Most Important;3=Third Most Important
B155: Survey Variable3 Name | C155: Intellectual property | I155: TMCLegalIssuesProperty
B156: Data File Variable3 Name | I156: 06_AM_Q60_1R03C01
B158: Question # (Where to find in survey) | I158: 60
B159: Question Format | I159: Multiple Choice
B160: Values | I160: 1,2,3
B161: Value Labels | I161: 1=Most Important;2=Second Most Important;3=Third Most Important
B162: Survey Variable4 Name | C162: Liability | I162: TMCLegalIssuesLiability
B163: Data File Variable4 Name | I163: 06_AM_Q60_1R04C01
B165: Question # (Where to find in survey) | I165: 60
B166: Question Format | I166: Multiple Choice
B167: Values | I167: 1,2,3
B168: Value Labels | I168: 1=Most Important;2=Second Most Important;3=Third Most Important
B169: Survey Variable5 Name | C169: Privacy | I169: TMCLegalIssuesPrivacy
B170: Data File Variable5 Name | I170: 06_AM_Q60_1R05C01
B172: Question # (Where to find in survey) | I172: 60
B173: Question Format | I173: Multiple Choice
B174: Values | I174: 1,2,3
B175: Value Labels | I175: 1=Most Important;2=Second Most Important;3=Third Most Important
B176: Survey Variable6 Name | C176: Other (please specify) | I176: TMCLegalIssuesOther
B177: Data File Variable6 Name | I177: 06_AM_Q60_1R06C01
B179: Question # (Where to find in survey) | I179: 60
B180: Question Format | I180: Text
B181: Values
B182: Value Labels
B183: Survey Variable7 Name | C183: Other (please specify) text | I183: TMCLegalIssuesOtherText
B184: Data File Variable7 Name | I184: 06_AM_Q60_2R06C01TXT
B186: Question Wording | I186: Select the 3 most effective methods for recruiting TOC/TMC personnel from the list below. Please rank your choices using a scale of 1-3 where 1=most effective.
B187: Question # (Where to find in survey) | I187: 61
B188: Question Format | I188: Multiple Choice
B189: Values | I189: 1,2,3
B190: Value Labels | I190: 1=Most Effective;2=Second Most Effective;3=Third Most Effective
B191: Survey Variable1 Name | C191: College outreach | I191: TMCRecruitingCollege
B192: Data File Variable1 Name | I192: 06_AM_Q61_1R01C01
B194: Question # (Where to find in survey) | I194: 61
B195: Question Format | I195: Multiple Choice
B196: Values | I196: 1,2,3
B197: Value Labels | I197: 1=Most Effective;2=Second Most Effective;3=Third Most Effective
B198: Survey Variable2 Name | C198: Advertising in local media | I198: TMCRecruitingMedia
B199: Data File Variable2 Name | I199: 06_AM_Q61_1R02C01
B201: Question # (Where to find in survey) | I201: 61
B202: Question Format | I202: Multiple Choice
B203: Values | I203: 1,2,3
B204: Value Labels | I204: 1=Most Effective;2=Second Most Effective;3=Third Most Effective
B205: Survey Variable3 Name | C205: Recruiting services | I205: TMCRecruitingServices
B206: Data File Variable3 Name | I206: 06_AM_Q61_1R03C01
B208: Question # (Where to find in survey) | I208: 61
B209: Question Format | I209: Multiple Choice
B210: Values | I210: 1,2,3
B211: Value Labels | I211: 1=Most Effective;2=Second Most Effective;3=Third Most Effective
B212: Survey Variable4 Name | C212: Notices in trade publications | I212: TMCRecruitingNotices
B213: Data File Variable4 Name | I213: 06_AM_Q61_1R04C01
B215: Question # (Where to find in survey) | I215: 61
B216: Question Format | I216: Multiple Choice
B217: Values | I217: 1,2,3
B218: Value Labels | I218: 1=Most Effective;2=Second Most Effective;3=Third Most Effective
B219: Survey Variable5 Name | C219: Other (please specify) | I219: TMCRecruitingOther
B220: Data File Variable5 Name | I220: 06_AM_Q61_1R05C01
B222: Question # (Where to find in survey) | I222: 61
B223: Question Format | I223: Text
B224: Values
B225: Value Labels
B226: Survey Variable6 Name | C226: Other (describe) | I226: TMCRecruitingOtherText
B227: Data File Variable6 Name | I227: 06_AM_Q61_2R05C01TXT

Sheet Traffic Signals (1)
B2: Traffic Signals (1)
C3: Choices (in batteries) | D3: 1999 | E3: 2000 | F3: 2002 | G3: 2004 | H3: 2005 | I3: 2006 | J3: 2007 | K3: 2010 | L3: 2013 | M3: 2016
B7: AGENCY ROLE IN TRAFFIC SIGNAL CONTROL
